Workbook

Sheet Menu
F18: VERSÃO GRATUITA
C20: Proibido vender, copiar, divulgar ou postar em sites sem prévia autorização. LEI Nº 9.610
D22: © 2012 - Pedro Paulo Andriani. Todos os direitos reservados. | I22: Planilhas para Confecção
B24: Versão 2.0 - Gratuita
G51: 2100-01-01
G52: =IF(G60=0,0,IF(G51<TODAY(),0,1)) -> 1
E54: =Menu!F18 -> VERSÃO GRATUITA | G54: VERSÃO GRATUITA
E55: =Menu!C20 -> Proibido vender, copiar, divulgar ou postar em sites sem prévia autorização. LEI Nº 9.610 | G55: Proibido vender, copiar, divulgar ou postar em sites sem prévia autorização. LEI Nº 9.610
G56: © 2012 - Pedro Paulo Andriani. Todos os direitos reservados.
G57: Planilhas para Confecção
G58: =CONCATENATE(G54,G55,G56,G57) -> VERSÃO GRATUITAProibido vender, copiar, divulgar ou postar em sites sem prévia autorização. LEI Nº 9.610© 2012 - Pedro Paulo Andriani. Todos os direitos reservados. Planilhas para Confecção
G59: =CONCATENATE(Menu!C61,Menu!C62,Menu!C63,Menu!C64) -> VERSÃO GRATUITAProibido vender, copiar, divulgar ou postar em sites sem prévia autorização. LEI Nº 9.610© 2012 - Pedro Paulo Andriani. Todos os direitos reservados. Planilhas para Confecção
G60: =IF(G58<>G59,0,1) -> 1
C61: =F18 -> VERSÃO GRATUITA
C62: =C20 -> Proibido vender, copiar, divulgar ou postar em sites sem prévia autorização. LEI Nº 9.610
C63: =D22 -> © 2012 - Pedro Paulo Andriani. Todos os direitos reservados.
C64: =I22 -> Planilhas para Confecção

Sheet Seq. Operacional
C1: Sequência Operacional e Tempo Padrão | E1: Data cadastro: | F1: =TODAY() -> 2016-09-16 | N1: =IF(OR(F1=0,C2=0),0,1) -> 0
N2: =IF(OR(C6=0,C7=0),0,1) -> 0
C3: =IF(C2=0,"",VLOOKUP(C2,Ref!A:B,2,FALSE)) ->  | N3: =IF(C2=0,"",IF(ISERROR(VLOOKUP(C2,'BD Seq Op'!B:H,1,FALSE)),"","Já cadastrada.")) -> 
A4: Filtro | B4: Seq. | C4: Descrição operacional | D4: Tipo Máq. | E4: Tipo Apar. | F4: Tempo Padrão
A5: Sim | B5: Seq. | C5: Descrição das Operações | D5: Tipo Máq. | E5: Tipo Apar. | F5: Tempo Padrão | H5: =IF(SUM(G6:G125)>0," ATENÇÃO! Você deixou alguma linha acima em branco, não é permitido.","") ->  | N5: =IF(N3="Já cadastrada.","- - -",IF(SUM(N6:N125)>0,"- - -",IF(N1+N2=2,"Cadastrar","- - -"))) -> - - -
A6: =IF(C6=0,"Não","Sim") -> Não | B6: 10 | F6: =IF(C6=0,0,IF(ISERROR(VLOOKUP(C6,Operações!A:D,4,FALSE)),0,VLOOKUP(C6,Operações!A:D,4,FALSE))) -> 0 | N6: =IF(C6=0,0,IF(F6<>0,0,1)) -> 0
A7: =IF(C7=0,"Não","Sim") -> Não | B7: 20 | F7: =IF(C7=0,0,IF(ISERROR(VLOOKUP(C7,Operações!A:D,4,FALSE)),0,VLOOKUP(C7,Operações!A:D,4,FALSE))) -> 0 | G7: =IF(AND(C6=0,C7<>0),1,0) -> 0 | N7: =IF(C7=0,0,IF(F7<>0,0,1)) -> 0
A8: Não | B8: 30 | F8: =IF(C8=0,0,IF(ISERROR(VLOOKUP(C8,Operações!A:D,4,FALSE)),0,VLOOKUP(C8,Operações!A:D,4,FALSE))) -> 0 | G8: =IF(AND(C7=0,C8<>0),1,0) -> 0 | N8: 0
A9: Não | B9: 40 | F9: =IF(C9=0,0,IF(ISERROR(VLOOKUP(C9,Operações!A:D,4,FALSE)),0,VLOOKUP(C9,Operações!A:D,4,FALSE))) -> 0 | G9: =IF(AND(C8=0,C9<>0),1,0) -> 0 | N9: 0
A10: Não | B10: 50 | F10: =IF(C10=0,0,IF(ISERROR(VLOOKUP(C10,Operações!A:D,4,FALSE)),0,VLOOKUP(C10,Operações!A:D,4,FALSE))) -> 0 | G10: 0 | N10: 0
A11: Não | B11: 60 | F11: =IF(C11=0,0,IF(ISERROR(VLOOKUP(C11,Operações!A:D,4,FALSE)),0,VLOOKUP(C11,Operações!A:D,4,FALSE))) -> 0 | G11: 0 | N11: 0
A12: Não | B12: 70 | F12: =IF(C12=0,0,IF(ISERROR(VLOOKUP(C12,Operações!A:D,4,FALSE)),0,VLOOKUP(C12,Operações!A:D,4,FALSE))) -> 0 | G12: 0 | N12: 0
A13: Não | B13: 80 | F13: =IF(C13=0,0,IF(ISERROR(VLOOKUP(C13,Operações!A:D,4,FALSE)),0,VLOOKUP(C13,Operações!A:D,4,FALSE))) -> 0 | G13: 0 | N13: 0
A14: Não | B14: 90 | F14: =IF(C14=0,0,IF(ISERROR(VLOOKUP(C14,Operações!A:D,4,FALSE)),0,VLOOKUP(C14,Operações!A:D,4,FALSE))) -> 0 | G14: 0 | N14: 0
A15: Não | B15: 100 | F15: =IF(C15=0,0,IF(ISERROR(VLOOKUP(C15,Operações!A:D,4,FALSE)),0,VLOOKUP(C15,Operações!A:D,4,FALSE))) -> 0 | G15: 0 | N15: 0
A16: Não | B16: 110 | F16: =IF(C16=0,0,IF(ISERROR(VLOOKUP(C16,Operações!A:D,4,FALSE)),0,VLOOKUP(C16,Operações!A:D,4,FALSE))) -> 0 | G16: 0 | N16: 0
A17: Não | B17: 120 | F17: =IF(C17=0,0,IF(ISERROR(VLOOKUP(C17,Operações!A:D,4,FALSE)),0,VLOOKUP(C17,Operações!A:D,4,FALSE))) -> 0 | G17: 0 | N17: 0
A18: Não | B18: 130 | F18: =IF(C18=0,0,IF(ISERROR(VLOOKUP(C18,Operações!A:D,4,FALSE)),0,VLOOKUP(C18,Operações!A:D,4,FALSE))) -> 0 | G18: 0 | N18: 0
A19: Não | B19: 140 | F19: =IF(C19=0,0,IF(ISERROR(VLOOKUP(C19,Operações!A:D,4,FALSE)),0,VLOOKUP(C19,Operações!A:D,4,FALSE))) -> 0 | G19: 0 | N19: 0
A20: Não | B20: 150 | F20: =IF(C20=0,0,IF(ISERROR(VLOOKUP(C20,Operações!A:D,4,FALSE)),0,VLOOKUP(C20,Operações!A:D,4,FALSE))) -> 0 | G20: 0 | N20: 0
A21: Não | B21: 160 | F21: =IF(C21=0,0,IF(ISERROR(VLOOKUP(C21,Operações!A:D,4,FALSE)),0,VLOOKUP(C21,Operações!A:D,4,FALSE))) -> 0 | G21: 0 | N21: 0
A22: Não | B22: 170 | F22: =IF(C22=0,0,IF(ISERROR(VLOOKUP(C22,Operações!A:D,4,FALSE)),0,VLOOKUP(C22,Operações!A:D,4,FALSE))) -> 0 | G22: 0 | N22: 0
A23: Não | B23: 180 | F23: =IF(C23=0,0,IF(ISERROR(VLOOKUP(C23,Operações!A:D,4,FALSE)),0,VLOOKUP(C23,Operações!A:D,4,FALSE))) -> 0 | G23: 0 | N23: 0
A24: Não | B24: 190 | F24: =IF(C24=0,0,IF(ISERROR(VLOOKUP(C24,Operações!A:D,4,FALSE)),0,VLOOKUP(C24,Operações!A:D,4,FALSE))) -> 0 | G24: 0 | N24: 0
A25: Não | B25: 200 | F25: =IF(C25=0,0,IF(ISERROR(VLOOKUP(C25,Operações!A:D,4,FALSE)),0,VLOOKUP(C25,Operações!A:D,4,FALSE))) -> 0 | G25: 0 | N25: 0
A26: Não | B26: 210 | F26: =IF(C26=0,0,IF(ISERROR(VLOOKUP(C26,Operações!A:D,4,FALSE)),0,VLOOKUP(C26,Operações!A:D,4,FALSE))) -> 0 | G26: 0 | N26: 0
A27: Não | B27: 220 | F27: =IF(C27=0,0,IF(ISERROR(VLOOKUP(C27,Operações!A:D,4,FALSE)),0,VLOOKUP(C27,Operações!A:D,4,FALSE))) -> 0 | G27: 0 | N27: 0
A28: Não | B28: 230 | F28: =IF(C28=0,0,IF(ISERROR(VLOOKUP(C28,Operações!A:D,4,FALSE)),0,VLOOKUP(C28,Operações!A:D,4,FALSE))) -> 0 | G28: 0 | N28: 0
A29: Não | B29: 240 | F29: =IF(C29=0,0,IF(ISERROR(VLOOKUP(C29,Operações!A:D,4,FALSE)),0,VLOOKUP(C29,Operações!A:D,4,FALSE))) -> 0 | G29: 0 | N29: 0
A30: Não | B30: 250 | F30: =IF(C30=0,0,IF(ISERROR(VLOOKUP(C30,Operações!A:D,4,FALSE)),0,VLOOKUP(C30,Operações!A:D,4,FALSE))) -> 0 | G30: 0 | N30: 0
A31: Não | B31: 260 | F31: =IF(C31=0,0,IF(ISERROR(VLOOKUP(C31,Operações!A:D,4,FALSE)),0,VLOOKUP(C31,Operações!A:D,4,FALSE))) -> 0 | G31: 0 | N31: 0
A32: Não | B32: 270 | F32: =IF(C32=0,0,IF(ISERROR(VLOOKUP(C32,Operações!A:D,4,FALSE)),0,VLOOKUP(C32,Operações!A:D,4,FALSE))) -> 0 | G32: 0 | N32: 0
A33: Não | B33: 280 | F33: =IF(C33=0,0,IF(ISERROR(VLOOKUP(C33,Operações!A:D,4,FALSE)),0,VLOOKUP(C33,Operações!A:D,4,FALSE))) -> 0 | G33: 0 | N33: 0
A34: Não | B34: 290 | F34: =IF(C34=0,0,IF(ISERROR(VLOOKUP(C34,Operações!A:D,4,FALSE)),0,VLOOKUP(C34,Operações!A:D,4,FALSE))) -> 0 | G34: 0 | N34: 0
A35: Não | B35: 300 | F35: =IF(C35=0,0,IF(ISERROR(VLOOKUP(C35,Operações!A:D,4,FALSE)),0,VLOOKUP(C35,Operações!A:D,4,FALSE))) -> 0 | G35: 0 | N35: 0
A36: Não | B36: 310 | F36: =IF(C36=0,0,IF(ISERROR(VLOOKUP(C36,Operações!A:D,4,FALSE)),0,VLOOKUP(C36,Operações!A:D,4,FALSE))) -> 0 | G36: 0 | N36: 0
A37: Não | B37: 320 | F37: =IF(C37=0,0,IF(ISERROR(VLOOKUP(C37,Operações!A:D,4,FALSE)),0,VLOOKUP(C37,Operações!A:D,4,FALSE))) -> 0 | G37: 0 | N37: 0
A38: Não | B38: 330 | F38: =IF(C38=0,0,IF(ISERROR(VLOOKUP(C38,Operações!A:D,4,FALSE)),0,VLOOKUP(C38,Operações!A:D,4,FALSE))) -> 0 | G38: 0 | N38: 0
A39: Não | B39: 340 | F39: =IF(C39=0,0,IF(ISERROR(VLOOKUP(C39,Operações!A:D,4,FALSE)),0,VLOOKUP(C39,Operações!A:D,4,FALSE))) -> 0 | G39: 0 | N39: 0
A40: Não | B40: 350 | F40: =IF(C40=0,0,IF(ISERROR(VLOOKUP(C40,Operações!A:D,4,FALSE)),0,VLOOKUP(C40,Operações!A:D,4,FALSE))) -> 0 | G40: 0 | N40: 0
A41: Não | B41: 360 | F41: =IF(C41=0,0,IF(ISERROR(VLOOKUP(C41,Operações!A:D,4,FALSE)),0,VLOOKUP(C41,Operações!A:D,4,FALSE))) -> 0 | G41: 0 | N41: 0
A42: Não | B42: 370 | F42: =IF(C42=0,0,IF(ISERROR(VLOOKUP(C42,Operações!A:D,4,FALSE)),0,VLOOKUP(C42,Operações!A:D,4,FALSE))) -> 0 | G42: 0 | N42: 0
A43: Não | B43: 380 | F43: =IF(C43=0,0,IF(ISERROR(VLOOKUP(C43,Operações!A:D,4,FALSE)),0,VLOOKUP(C43,Operações!A:D,4,FALSE))) -> 0 | G43: 0 | N43: 0
A44: Não | B44: 390 | F44: =IF(C44=0,0,IF(ISERROR(VLOOKUP(C44,Operações!A:D,4,FALSE)),0,VLOOKUP(C44,Operações!A:D,4,FALSE))) -> 0 | G44: 0 | N44: 0
A45: Não | B45: 400 | F45: =IF(C45=0,0,IF(ISERROR(VLOOKUP(C45,Operações!A:D,4,FALSE)),0,VLOOKUP(C45,Operações!A:D,4,FALSE))) -> 0 | G45: 0 | N45: 0
A46: Não | B46: 410 | F46: =IF(C46=0,0,IF(ISERROR(VLOOKUP(C46,Operações!A:D,4,FALSE)),0,VLOOKUP(C46,Operações!A:D,4,FALSE))) -> 0 | G46: 0 | N46: 0
A47: Não | B47: 420 | F47: =IF(C47=0,0,IF(ISERROR(VLOOKUP(C47,Operações!A:D,4,FALSE)),0,VLOOKUP(C47,Operações!A:D,4,FALSE))) -> 0 | G47: 0 | N47: 0
A48: Não | B48: 430 | F48: =IF(C48=0,0,IF(ISERROR(VLOOKUP(C48,Operações!A:D,4,FALSE)),0,VLOOKUP(C48,Operações!A:D,4,FALSE))) -> 0 | G48: 0 | N48: 0
A49: Não | B49: 440 | F49: =IF(C49=0,0,IF(ISERROR(VLOOKUP(C49,Operações!A:D,4,FALSE)),0,VLOOKUP(C49,Operações!A:D,4,FALSE))) -> 0 | G49: 0 | N49: 0
A50: Não | B50: 450 | F50: =IF(C50=0,0,IF(ISERROR(VLOOKUP(C50,Operações!A:D,4,FALSE)),0,VLOOKUP(C50,Operações!A:D,4,FALSE))) -> 0 | G50: 0 | N50: 0
A51: Não | B51: 460 | F51: =IF(C51=0,0,IF(ISERROR(VLOOKUP(C51,Operações!A:D,4,FALSE)),0,VLOOKUP(C51,Operações!A:D,4,FALSE))) -> 0 | G51: 0 | N51: 0
A52: Não | B52: 470 | F52: =IF(C52=0,0,IF(ISERROR(VLOOKUP(C52,Operações!A:D,4,FALSE)),0,VLOOKUP(C52,Operações!A:D,4,FALSE))) -> 0 | G52: 0 | N52: 0
A53: Não | B53: 480 | F53: =IF(C53=0,0,IF(ISERROR(VLOOKUP(C53,Operações!A:D,4,FALSE)),0,VLOOKUP(C53,Operações!A:D,4,FALSE))) -> 0 | G53: 0 | N53: 0
A54: Não | B54: 490 | F54: =IF(C54=0,0,IF(ISERROR(VLOOKUP(C54,Operações!A:D,4,FALSE)),0,VLOOKUP(C54,Operações!A:D,4,FALSE))) -> 0 | G54: 0 | N54: 0
A55: Não | B55: 500 | F55: =IF(C55=0,0,IF(ISERROR(VLOOKUP(C55,Operações!A:D,4,FALSE)),0,VLOOKUP(C55,Operações!A:D,4,FALSE))) -> 0 | G55: 0 | N55: 0
A56: Não | B56: 510 | F56: =IF(C56=0,0,IF(ISERROR(VLOOKUP(C56,Operações!A:D,4,FALSE)),0,VLOOKUP(C56,Operações!A:D,4,FALSE))) -> 0 | G56: 0 | N56: 0
A57: Não | B57: 520 | F57: =IF(C57=0,0,IF(ISERROR(VLOOKUP(C57,Operações!A:D,4,FALSE)),0,VLOOKUP(C57,Operações!A:D,4,FALSE))) -> 0 | G57: 0 | N57: 0
A58: Não | B58: 530 | F58: =IF(C58=0,0,IF(ISERROR(VLOOKUP(C58,Operações!A:D,4,FALSE)),0,VLOOKUP(C58,Operações!A:D,4,FALSE))) -> 0 | G58: 0 | N58: 0
A59: Não | B59: 540 | F59: =IF(C59=0,0,IF(ISERROR(VLOOKUP(C59,Operações!A:D,4,FALSE)),0,VLOOKUP(C59,Operações!A:D,4,FALSE))) -> 0 | G59: 0 | N59: 0
A60: Não | B60: 550 | F60: =IF(C60=0,0,IF(ISERROR(VLOOKUP(C60,Operações!A:D,4,FALSE)),0,VLOOKUP(C60,Operações!A:D,4,FALSE))) -> 0 | G60: 0 | N60: 0
A61: Não | B61: 560 | F61: =IF(C61=0,0,IF(ISERROR(VLOOKUP(C61,Operações!A:D,4,FALSE)),0,VLOOKUP(C61,Operações!A:D,4,FALSE))) -> 0 | G61: 0 | N61: 0
A62: Não | B62: 570 | F62: =IF(C62=0,0,IF(ISERROR(VLOOKUP(C62,Operações!A:D,4,FALSE)),0,VLOOKUP(C62,Operações!A:D,4,FALSE))) -> 0 | G62: 0 | N62: 0
A63: Não | B63: 580 | F63: =IF(C63=0,0,IF(ISERROR(VLOOKUP(C63,Operações!A:D,4,FALSE)),0,VLOOKUP(C63,Operações!A:D,4,FALSE))) -> 0 | G63: 0 | N63: 0
A64: Não | B64: 590 | F64: =IF(C64=0,0,IF(ISERROR(VLOOKUP(C64,Operações!A:D,4,FALSE)),0,VLOOKUP(C64,Operações!A:D,4,FALSE))) -> 0 | G64: 0 | N64: 0
A65: Não | B65: 600 | F65: =IF(C65=0,0,IF(ISERROR(VLOOKUP(C65,Operações!A:D,4,FALSE)),0,VLOOKUP(C65,Operações!A:D,4,FALSE))) -> 0 | G65: 0 | N65: 0
A66: Não | B66: 610 | F66: =IF(C66=0,0,IF(ISERROR(VLOOKUP(C66,Operações!A:D,4,FALSE)),0,VLOOKUP(C66,Operações!A:D,4,FALSE))) -> 0 | G66: 0 | N66: 0
A67: Não | B67: 620 | F67: =IF(C67=0,0,IF(ISERROR(VLOOKUP(C67,Operações!A:D,4,FALSE)),0,VLOOKUP(C67,Operações!A:D,4,FALSE))) -> 0 | G67: 0 | N67: 0
A68: Não | B68: 630 | F68: =IF(C68=0,0,IF(ISERROR(VLOOKUP(C68,Operações!A:D,4,FALSE)),0,VLOOKUP(C68,Operações!A:D,4,FALSE))) -> 0 | G68: 0 | N68: 0
A69: Não | B69: 640 | F69: =IF(C69=0,0,IF(ISERROR(VLOOKUP(C69,Operações!A:D,4,FALSE)),0,VLOOKUP(C69,Operações!A:D,4,FALSE))) -> 0 | G69: 0 | N69: 0
A70: Não | B70: 650 | F70: =IF(C70=0,0,IF(ISERROR(VLOOKUP(C70,Operações!A:D,4,FALSE)),0,VLOOKUP(C70,Operações!A:D,4,FALSE))) -> 0 | G70: 0 | N70: 0
A71: =IF(C71=0,"Não","Sim") -> Não | B71: 660 | F71: =IF(C71=0,0,IF(ISERROR(VLOOKUP(C71,Operações!A:D,4,FALSE)),0,VLOOKUP(C71,Operações!A:D,4,FALSE))) -> 0 | G71: 0 | N71: =IF(C71=0,0,IF(F71<>0,0,1)) -> 0
A72: Não | B72: 670 | F72: =IF(C72=0,0,IF(ISERROR(VLOOKUP(C72,Operações!A:D,4,FALSE)),0,VLOOKUP(C72,Operações!A:D,4,FALSE))) -> 0 | G72: 0 | N72: 0
A73: Não | B73: 680 | F73: =IF(C73=0,0,IF(ISERROR(VLOOKUP(C73,Operações!A:D,4,FALSE)),0,VLOOKUP(C73,Operações!A:D,4,FALSE))) -> 0 | G73: =IF(AND(C72=0,C73<>0),1,0) -> 0 | N73: 0
A74: Não | B74: 690 | F74: =IF(C74=0,0,IF(ISERROR(VLOOKUP(C74,Operações!A:D,4,FALSE)),0,VLOOKUP(C74,Operações!A:D,4,FALSE))) -> 0 | G74: 0 | N74: 0
A75: Não | B75: 700 | F75: =IF(C75=0,0,IF(ISERROR(VLOOKUP(C75,Operações!A:D,4,FALSE)),0,VLOOKUP(C75,Operações!A:D,4,FALSE))) -> 0 | G75: 0 | N75: 0
A76: Não | B76: 710 | F76: =IF(C76=0,0,IF(ISERROR(VLOOKUP(C76,Operações!A:D,4,FALSE)),0,VLOOKUP(C76,Operações!A:D,4,FALSE))) -> 0 | G76: 0 | N76: 0
A77: Não | B77: 720 | F77: =IF(C77=0,0,IF(ISERROR(VLOOKUP(C77,Operações!A:D,4,FALSE)),0,VLOOKUP(C77,Operações!A:D,4,FALSE))) -> 0 | G77: 0 | N77: 0
A78: Não | B78: 730 | F78: =IF(C78=0,0,IF(ISERROR(VLOOKUP(C78,Operações!A:D,4,FALSE)),0,VLOOKUP(C78,Operações!A:D,4,FALSE))) -> 0 | G78: 0 | N78: 0
A79: Não | B79: 740 | F79: =IF(C79=0,0,IF(ISERROR(VLOOKUP(C79,Operações!A:D,4,FALSE)),0,VLOOKUP(C79,Operações!A:D,4,FALSE))) -> 0 | G79: 0 | N79: 0
A80: Não | B80: 750 | F80: =IF(C80=0,0,IF(ISERROR(VLOOKUP(C80,Operações!A:D,4,FALSE)),0,VLOOKUP(C80,Operações!A:D,4,FALSE))) -> 0 | G80: 0 | N80: 0
A81: Não | B81: 760 | F81: =IF(C81=0,0,IF(ISERROR(VLOOKUP(C81,Operações!A:D,4,FALSE)),0,VLOOKUP(C81,Operações!A:D,4,FALSE))) -> 0 | G81: 0 | N81: 0
A82: Não | B82: 770 | F82: =IF(C82=0,0,IF(ISERROR(VLOOKUP(C82,Operações!A:D,4,FALSE)),0,VLOOKUP(C82,Operações!A:D,4,FALSE))) -> 0 | G82: 0 | N82: 0
A83: Não | B83: 780 | F83: =IF(C83=0,0,IF(ISERROR(VLOOKUP(C83,Operações!A:D,4,FALSE)),0,VLOOKUP(C83,Operações!A:D,4,FALSE))) -> 0 | G83: 0 | N83: 0
A84: Não | B84: 790 | F84: =IF(C84=0,0,IF(ISERROR(VLOOKUP(C84,Operações!A:D,4,FALSE)),0,VLOOKUP(C84,Operações!A:D,4,FALSE))) -> 0 | G84: 0 | N84: 0
A85: Não | B85: 800 | F85: =IF(C85=0,0,IF(ISERROR(VLOOKUP(C85,Operações!A:D,4,FALSE)),0,VLOOKUP(C85,Operações!A:D,4,FALSE))) -> 0 | G85: 0 | N85: 0
A86: Não | B86: 810 | F86: =IF(C86=0,0,IF(ISERROR(VLOOKUP(C86,Operações!A:D,4,FALSE)),0,VLOOKUP(C86,Operações!A:D,4,FALSE))) -> 0 | G86: 0 | N86: 0
A87: Não | B87: 820 | F87: =IF(C87=0,0,IF(ISERROR(VLOOKUP(C87,Operações!A:D,4,FALSE)),0,VLOOKUP(C87,Operações!A:D,4,FALSE))) -> 0 | G87: 0 | N87: 0
A88: Não | B88: 830 | F88: =IF(C88=0,0,IF(ISERROR(VLOOKUP(C88,Operações!A:D,4,FALSE)),0,VLOOKUP(C88,Operações!A:D,4,FALSE))) -> 0 | G88: 0 | N88: 0
A89: Não | B89: 840 | F89: =IF(C89=0,0,IF(ISERROR(VLOOKUP(C89,Operações!A:D,4,FALSE)),0,VLOOKUP(C89,Operações!A:D,4,FALSE))) -> 0 | G89: 0 | N89: 0
A90: Não | B90: 850 | F90: =IF(C90=0,0,IF(ISERROR(VLOOKUP(C90,Operações!A:D,4,FALSE)),0,VLOOKUP(C90,Operações!A:D,4,FALSE))) -> 0 | G90: 0 | N90: 0
A91: Não | B91: 860 | F91: =IF(C91=0,0,IF(ISERROR(VLOOKUP(C91,Operações!A:D,4,FALSE)),0,VLOOKUP(C91,Operações!A:D,4,FALSE))) -> 0 | G91: 0 | N91: 0
A92: Não | B92: 870 | F92: =IF(C92=0,0,IF(ISERROR(VLOOKUP(C92,Operações!A:D,4,FALSE)),0,VLOOKUP(C92,Operações!A:D,4,FALSE))) -> 0 | G92: 0 | N92: 0
A93: Não | B93: 880 | F93: =IF(C93=0,0,IF(ISERROR(VLOOKUP(C93,Operações!A:D,4,FALSE)),0,VLOOKUP(C93,Operações!A:D,4,FALSE))) -> 0 | G93: 0 | N93: 0
A94: Não | B94: 890 | F94: =IF(C94=0,0,IF(ISERROR(VLOOKUP(C94,Operações!A:D,4,FALSE)),0,VLOOKUP(C94,Operações!A:D,4,FALSE))) -> 0 | G94: 0 | N94: 0
A95: Não | B95: 900 | F95: =IF(C95=0,0,IF(ISERROR(VLOOKUP(C95,Operações!A:D,4,FALSE)),0,VLOOKUP(C95,Operações!A:D,4,FALSE))) -> 0 | G95: 0 | N95: 0
A96: Não | B96: 910 | F96: =IF(C96=0,0,IF(ISERROR(VLOOKUP(C96,Operações!A:D,4,FALSE)),0,VLOOKUP(C96,Operações!A:D,4,FALSE))) -> 0 | G96: 0 | N96: 0
A97: Não | B97: 920 | F97: =IF(C97=0,0,IF(ISERROR(VLOOKUP(C97,Operações!A:D,4,FALSE)),0,VLOOKUP(C97,Operações!A:D,4,FALSE))) -> 0 | G97: 0 | N97: 0
A98: Não | B98: 930 | F98: =IF(C98=0,0,IF(ISERROR(VLOOKUP(C98,Operações!A:D,4,FALSE)),0,VLOOKUP(C98,Operações!A:D,4,FALSE))) -> 0 | G98: 0 | N98: 0
A99: Não | B99: 940 | F99: =IF(C99=0,0,IF(ISERROR(VLOOKUP(C99,Operações!A:D,4,FALSE)),0,VLOOKUP(C99,Operações!A:D,4,FALSE))) -> 0 | G99: 0 | N99: 0
A100: Não | B100: 950 | F100: =IF(C100=0,0,IF(ISERROR(VLOOKUP(C100,Operações!A:D,4,FALSE)),0,VLOOKUP(C100,Operações!A:D,4,FALSE))) -> 0 | G100: 0 | N100: 0
A101: Não | B101: 960 | F101: =IF(C101=0,0,IF(ISERROR(VLOOKUP(C101,Operações!A:D,4,FALSE)),0,VLOOKUP(C101,Operações!A:D,4,FALSE))) -> 0 | G101: 0 | N101: 0
A102: Não | B102: 970 | F102: =IF(C102=0,0,IF(ISERROR(VLOOKUP(C102,Operações!A:D,4,FALSE)),0,VLOOKUP(C102,Operações!A:D,4,FALSE))) -> 0 | G102: 0 | N102: 0
A103: Não | B103: 980 | F103: =IF(C103=0,0,IF(ISERROR(VLOOKUP(C103,Operações!A:D,4,FALSE)),0,VLOOKUP(C103,Operações!A:D,4,FALSE))) -> 0 | G103: 0 | N103: 0
A104: =IF(C104=0,"Não","Sim") -> Não | B104: 990 | F104: =IF(C104=0,0,IF(ISERROR(VLOOKUP(C104,Operações!A:D,4,FALSE)),0,VLOOKUP(C104,Operações!A:D,4,FALSE))) -> 0 | G104: 0 | N104: 0
A105: Não | B105: 1000 | F105: =IF(C105=0,0,IF(ISERROR(VLOOKUP(C105,Operações!A:D,4,FALSE)),0,VLOOKUP(C105,Operações!A:D,4,FALSE))) -> 0 | G105: 0 | N105: 0
A106: Não | B106: 1010 | F106: =IF(C106=0,0,IF(ISERROR(VLOOKUP(C106,Operações!A:D,4,FALSE)),0,VLOOKUP(C106,Operações!A:D,4,FALSE))) -> 0 | G106: 0 | N106: 0
A107: Não | B107: 1020 | F107: =IF(C107=0,0,IF(ISERROR(VLOOKUP(C107,Operações!A:D,4,FALSE)),0,VLOOKUP(C107,Operações!A:D,4,FALSE))) -> 0 | G107: 0 | N107: 0
A108: Não | B108: 1030 | F108: =IF(C108=0,0,IF(ISERROR(VLOOKUP(C108,Operações!A:D,4,FALSE)),0,VLOOKUP(C108,Operações!A:D,4,FALSE))) -> 0 | G108: 0 | N108: 0
A109: Não | B109: 1040 | F109: =IF(C109=0,0,IF(ISERROR(VLOOKUP(C109,Operações!A:D,4,FALSE)),0,VLOOKUP(C109,Operações!A:D,4,FALSE))) -> 0 | G109: 0 | N109: 0
A110: Não | B110: 1050 | F110: =IF(C110=0,0,IF(ISERROR(VLOOKUP(C110,Operações!A:D,4,FALSE)),0,VLOOKUP(C110,Operações!A:D,4,FALSE))) -> 0 | G110: 0 | N110: 0
A111: Não | B111: 1060 | F111: =IF(C111=0,0,IF(ISERROR(VLOOKUP(C111,Operações!A:D,4,FALSE)),0,VLOOKUP(C111,Operações!A:D,4,FALSE))) -> 0 | G111: 0 | N111: 0
A112: Não | B112: 1070 | F112: =IF(C112=0,0,IF(ISERROR(VLOOKUP(C112,Operações!A:D,4,FALSE)),0,VLOOKUP(C112,Operações!A:D,4,FALSE))) -> 0 | G112: 0 | N112: 0
A113: Não | B113: 1080 | F113: =IF(C113=0,0,IF(ISERROR(VLOOKUP(C113,Operações!A:D,4,FALSE)),0,VLOOKUP(C113,Operações!A:D,4,FALSE))) -> 0 | G113: 0 | N113: 0
A114: Não | B114: 1090 | F114: =IF(C114=0,0,IF(ISERROR(VLOOKUP(C114,Operações!A:D,4,FALSE)),0,VLOOKUP(C114,Operações!A:D,4,FALSE))) -> 0 | G114: 0 | N114: 0
A115: Não | B115: 1100 | F115: =IF(C115=0,0,IF(ISERROR(VLOOKUP(C115,Operações!A:D,4,FALSE)),0,VLOOKUP(C115,Operações!A:D,4,FALSE))) -> 0 | G115: 0 | N115: 0
A116: Não | B116: 1110 | F116: =IF(C116=0,0,IF(ISERROR(VLOOKUP(C116,Operações!A:D,4,FALSE)),0,VLOOKUP(C116,Operações!A:D,4,FALSE))) -> 0 | G116: 0 | N116: 0
A117: Não | B117: 1120 | F117: =IF(C117=0,0,IF(ISERROR(VLOOKUP(C117,Operações!A:D,4,FALSE)),0,VLOOKUP(C117,Operações!A:D,4,FALSE))) -> 0 | G117: 0 | N117: 0
A118: Não | B118: 1130 | F118: =IF(C118=0,0,IF(ISERROR(VLOOKUP(C118,Operações!A:D,4,FALSE)),0,VLOOKUP(C118,Operações!A:D,4,FALSE))) -> 0 | G118: 0 | N118: 0
A119: Não | B119: 1140 | F119: =IF(C119=0,0,IF(ISERROR(VLOOKUP(C119,Operações!A:D,4,FALSE)),0,VLOOKUP(C119,Operações!A:D,4,FALSE))) -> 0 | G119: 0 | N119: 0
A120: Não | B120: 1150 | F120: =IF(C120=0,0,IF(ISERROR(VLOOKUP(C120,Operações!A:D,4,FALSE)),0,VLOOKUP(C120,Operações!A:D,4,FALSE))) -> 0 | G120: 0 | N120: 0
A121: Não | B121: 1160 | F121: =IF(C121=0,0,IF(ISERROR(VLOOKUP(C121,Operações!A:D,4,FALSE)),0,VLOOKUP(C121,Operações!A:D,4,FALSE))) -> 0 | G121: 0 | N121: 0
A122: Não | B122: 1170 | F122: =IF(C122=0,0,IF(ISERROR(VLOOKUP(C122,Operações!A:D,4,FALSE)),0,VLOOKUP(C122,Operações!A:D,4,FALSE))) -> 0 | G122: 0 | N122: 0
A123: Não | B123: 1180 | F123: =IF(C123=0,0,IF(ISERROR(VLOOKUP(C123,Operações!A:D,4,FALSE)),0,VLOOKUP(C123,Operações!A:D,4,FALSE))) -> 0 | G123: 0 | N123: 0
A124: Não | B124: 1190 | F124: =IF(C124=0,0,IF(ISERROR(VLOOKUP(C124,Operações!A:D,4,FALSE)),0,VLOOKUP(C124,Operações!A:D,4,FALSE))) -> 0 | G124: 0 | N124: 0
A125: Não | B125: 1200 | F125: =IF(C125=0,0,IF(ISERROR(VLOOKUP(C125,Operações!A:D,4,FALSE)),0,VLOOKUP(C125,Operações!A:D,4,FALSE))) -> 0 | G125: 0 | N125: 0
A126: Sim | E126: Tempo Total => | F126: =SUM(F6:F125) -> 0
F130: =IF(C130=0,0,IF(ISERROR(VLOOKUP(C130,Operações!A:D,4,FALSE)),0,VLOOKUP(C130,Operações!A:D,4,FALSE))) -> 0

Sheet Transf Seq Op.
B1: ='Seq. Operacional'!$C$2 -> 0 | C1: =CONCATENATE(B1,"-",A1) -> 0- | H1: ='Seq. Operacional'!$F$1 -> 2016-09-16 | I1: =IF(E1=0,0,CONCATENATE(B1,"-",E1)) -> 0 | J1: =IF(F1=0,0,CONCATENATE(B1,"-",F1)) -> 0
A2: Seq. | B2: Ref. | C2: Concatenar | D2: Descrição das Operações | E2: Tipo Máq. | F2: Tipo Apar. | G2: Tempo Padrão | H2: Data do Cadastro | I2: Somase Máquina | J2: Somase Aparelho

Sheet Consulta Seq. Operacional
C1: Sequência Operacional e Tempo Padrão | E1: Data cadastro: | F1: =IF($C$2=0,"",IF(ISERROR(VLOOKUP($C$2&"-"&B6,'BD Seq Op'!C:H,6,FALSE)),"",VLOOKUP($C$2&"-"&B6,'BD Seq Op'!C:H,6,FALSE))) ->  | N1: =IF(C2=0,"",IF(ISERROR(VLOOKUP(C2&"-"&B6,'BD Seq Op'!C:H,6,FALSE)),"Não cadastrada.","")) -> 
C3: =IF(C2=0,"",IF(N1="Não cadastrada.","",VLOOKUP(C2,Ref!A:B,2,FALSE))) -> 
A4: Filtro | B4: Seq. | C4: Descrição operacional | D4: Tipo Máq. | E4: Tipo Apar. | F4: Tempo Padrão
A5: Sim | B5: Seq. | C5: Descrição das Operações | D5: Tipo Máq. | E5: Tipo Apar. | F5: Tempo Padrão
A6: =IF(C6="","Não","Sim") -> Não | B6: 1 | C6: =IF($C$2=0,"",IF(ISERROR(VLOOKUP($C$2&"-"&$B6,'BD Seq Op'!$C:$H,2,FALSE)),"",VLOOKUP($C$2&"-"&$B6,'BD Seq Op'!$C:$H,2,FALSE))) ->  | F6: =IF($C$2=0,"",IF(ISERROR(VLOOKUP($C$2&"-"&$B6,'BD Seq Op'!$C:$H,5,FALSE)),"",VLOOKUP($C$2&"-"&$B6,'BD Seq Op'!$C:$H,5,FALSE))) -> 
A7: =IF(C7="","Não","Sim") -> Não | B7: 2 | C7: =IF($C$2=0,"",IF(ISERROR(VLOOKUP($C$2&"-"&$B7,'BD Seq Op'!$C:$H,2,FALSE)),"",VLOOKUP($C$2&"-"&$B7,'BD Seq Op'!$C:$H,2,FALSE))) ->  | F7: =IF($C$2=0,"",IF(ISERROR(VLOOKUP($C$2&"-"&$B7,'BD Seq Op'!$C:$H,5,FALSE)),"",VLOOKUP($C$2&"-"&$B7,'BD Seq Op'!$C:$H,5,FALSE))) -> 
A8: Não | B8: 3 | C8: =IF($C$2=0,"",IF(ISERROR(VLOOKUP($C$2&"-"&$B8,'BD Seq Op'!$C:$H,2,FALSE)),"",VLOOKUP($C$2&"-"&$B8,'BD Seq Op'!$C:$H,2,FALSE))) ->  | F8: =IF($C$2=0,"",IF(ISERROR(VLOOKUP($C$2&"-"&$B8,'BD Seq Op'!$C:$H,5,FALSE)),"",VLOOKUP($C$2&"-"&$B8,'BD Seq Op'!$C:$H,5,FALSE))) -> 
A9: Não | B9: 4 | C9: =IF($C$2=0,"",IF(ISERROR(VLOOKUP($C$2&"-"&$B9,'BD Seq Op'!$C:$H,2,FALSE)),"",VLOOKUP($C$2&"-"&$B9,'BD Seq Op'!$C:$H,2,FALSE))) ->  | F9: =IF($C$2=0,"",IF(ISERROR(VLOOKUP($C$2&"-"&$B9,'BD Seq Op'!$C:$H,5,FALSE)),"",VLOOKUP($C$2&"-"&$B9,'BD Seq Op'!$C:$H,5,FALSE))) -> 
A10: Não | B10: 5 | C10: =IF($C$2=0,"",IF(ISERROR(VLOOKUP($C$2&"-"&$B10,'BD Seq Op'!$C:$H,2,FALSE)),"",VLOOKUP($C$2&"-"&$B10,'BD Seq Op'!$C:$H,2,FALSE))) ->  | F10: =IF($C$2=0,"",IF(ISERROR(VLOOKUP($C$2&"-"&$B10,'BD Seq Op'!$C:$H,5,FALSE)),"",VLOOKUP($C$2&"-"&$B10,'BD Seq Op'!$C:$H,5,FALSE))) -> 
A11: Não | B11: 6 | C11: =IF($C$2=0,"",IF(ISERROR(VLOOKUP($C$2&"-"&$B11,'BD Seq Op'!$C:$H,2,FALSE)),"",VLOOKUP($C$2&"-"&$B11,'BD Seq Op'!$C:$H,2,FALSE))) ->  | F11: =IF($C$2=0,"",IF(ISERROR(VLOOKUP($C$2&"-"&$B11,'BD Seq Op'!$C:$H,5,FALSE)),"",VLOOKUP($C$2&"-"&$B11,'BD Seq Op'!$C:$H,5,FALSE))) -> 
A12: Não | B12: 7 | C12: =IF($C$2=0,"",IF(ISERROR(VLOOKUP($C$2&"-"&$B12,'BD Seq Op'!$C:$H,2,FALSE)),"",VLOOKUP($C$2&"-"&$B12,'BD Seq Op'!$C:$H,2,FALSE))) ->  | F12: =IF($C$2=0,"",IF(ISERROR(VLOOKUP($C$2&"-"&$B12,'BD Seq Op'!$C:$H,5,FALSE)),"",VLOOKUP($C$2&"-"&$B12,'BD Seq Op'!$C:$H,5,FALSE))) -> 
A13: Não | B13: 8 | C13: =IF($C$2=0,"",IF(ISERROR(VLOOKUP($C$2&"-"&$B13,'BD Seq Op'!$C:$H,2,FALSE)),"",VLOOKUP($C$2&"-"&$B13,'BD Seq Op'!$C:$H,2,FALSE))) ->  | F13: =IF($C$2=0,"",IF(ISERROR(VLOOKUP($C$2&"-"&$B13,'BD Seq Op'!$C:$H,5,FALSE)),"",VLOOKUP($C$2&"-"&$B13,'BD Seq Op'!$C:$H,5,FALSE))) -> 
A14: Não | B14: 9 | C14: =IF($C$2=0,"",IF(ISERROR(VLOOKUP($C$2&"-"&$B14,'BD Seq Op'!$C:$H,2,FALSE)),"",VLOOKUP($C$2&"-"&$B14,'BD Seq Op'!$C:$H,2,FALSE))) ->  | F14: =IF($C$2=0,"",IF(ISERROR(VLOOKUP($C$2&"-"&$B14,'BD Seq Op'!$C:$H,5,FALSE)),"",VLOOKUP($C$2&"-"&$B14,'BD Seq Op'!$C:$H,5,FALSE))) -> 
A15: Não | B15: 10 | C15: =IF($C$2=0,"",IF(ISERROR(VLOOKUP($C$2&"-"&$B15,'BD Seq Op'!$C:$H,2,FALSE)),"",VLOOKUP($C$2&"-"&$B15,'BD Seq Op'!$C:$H,2,FALSE))) ->  | F15: =IF($C$2=0,"",IF(ISERROR(VLOOKUP($C$2&"-"&$B15,'BD Seq Op'!$C:$H,5,FALSE)),"",VLOOKUP($C$2&"-"&$B15,'BD Seq Op'!$C:$H,5,FALSE))) -> 
A16: Não | B16: 11 | C16: =IF($C$2=0,"",IF(ISERROR(VLOOKUP($C$2&"-"&$B16,'BD Seq Op'!$C:$H,2,FALSE)),"",VLOOKUP($C$2&"-"&$B16,'BD Seq Op'!$C:$H,2,FALSE))) ->  | F16: =IF($C$2=0,"",IF(ISERROR(VLOOKUP($C$2&"-"&$B16,'BD Seq Op'!$C:$H,5,FALSE)),"",VLOOKUP($C$2&"-"&$B16,'BD Seq Op'!$C:$H,5,FALSE))) -> 
A17: Não | B17: 12 | C17: =IF($C$2=0,"",IF(ISERROR(VLOOKUP($C$2&"-"&$B17,'BD Seq Op'!$C:$H,2,FALSE)),"",VLOOKUP($C$2&"-"&$B17,'BD Seq Op'!$C:$H,2,FALSE))) ->  | F17: =IF($C$2=0,"",IF(ISERROR(VLOOKUP($C$2&"-"&$B17,'BD Seq Op'!$C:$H,5,FALSE)),"",VLOOKUP($C$2&"-"&$B17,'BD Seq Op'!$C:$H,5,FALSE))) -> 
A18: Não | B18: 13 | C18: =IF($C$2=0,"",IF(ISERROR(VLOOKUP($C$2&"-"&$B18,'BD Seq Op'!$C:$H,2,FALSE)),"",VLOOKUP($C$2&"-"&$B18,'BD Seq Op'!$C:$H,2,FALSE))) ->  | F18: =IF($C$2=0,"",IF(ISERROR(VLOOKUP($C$2&"-"&$B18,'BD Seq Op'!$C:$H,5,FALSE)),"",VLOOKUP($C$2&"-"&$B18,'BD Seq Op'!$C:$H,5,FALSE))) -> 
A19: Não | B19: 14 | C19: =IF($C$2=0,"",IF(ISERROR(VLOOKUP($C$2&"-"&$B19,'BD Seq Op'!$C:$H,2,FALSE)),"",VLOOKUP($C$2&"-"&$B19,'BD Seq Op'!$C:$H,2,FALSE))) ->  | F19: =IF($C$2=0,"",IF(ISERROR(VLOOKUP($C$2&"-"&$B19,'BD Seq Op'!$C:$H,5,FALSE)),"",VLOOKUP($C$2&"-"&$B19,'BD Seq Op'!$C:$H,5,FALSE))) -> 
A20: Não | B20: 15 | C20: =IF($C$2=0,"",IF(ISERROR(VLOOKUP($C$2&"-"&$B20,'BD Seq Op'!$C:$H,2,FALSE)),"",VLOOKUP($C$2&"-"&$B20,'BD Seq Op'!$C:$H,2,FALSE))) ->  | F20: =IF($C$2=0,"",IF(ISERROR(VLOOKUP($C$2&"-"&$B20,'BD Seq Op'!$C:$H,5,FALSE)),"",VLOOKUP($C$2&"-"&$B20,'BD Seq Op'!$C:$H,5,FALSE))) -> 
A21: Não | B21: 16 | C21: =IF($C$2=0,"",IF(ISERROR(VLOOKUP($C$2&"-"&$B21,'BD Seq Op'!$C:$H,2,FALSE)),"",VLOOKUP($C$2&"-"&$B21,'BD Seq Op'!$C:$H,2,FALSE))) ->  | F21: =IF($C$2=0,"",IF(ISERROR(VLOOKUP($C$2&"-"&$B21,'BD Seq Op'!$C:$H,5,FALSE)),"",VLOOKUP($C$2&"-"&$B21,'BD Seq Op'!$C:$H,5,FALSE))) -> 
A22: Não | B22: 17 | C22: =IF($C$2=0,"",IF(ISERROR(VLOOKUP($C$2&"-"&$B22,'BD Seq Op'!$C:$H,2,FALSE)),"",VLOOKUP($C$2&"-"&$B22,'BD Seq Op'!$C:$H,2,FALSE))) ->  | F22: =IF($C$2=0,"",IF(ISERROR(VLOOKUP($C$2&"-"&$B22,'BD Seq Op'!$C:$H,5,FALSE)),"",VLOOKUP($C$2&"-"&$B22,'BD Seq Op'!$C:$H,5,FALSE))) -> 
A23: Não | B23: 18 | C23: =IF($C$2=0,"",IF(ISERROR(VLOOKUP($C$2&"-"&$B23,'BD Seq Op'!$C:$H,2,FALSE)),"",VLOOKUP($C$2&"-"&$B23,'BD Seq Op'!$C:$H,2,FALSE))) ->  | F23: =IF($C$2=0,"",IF(ISERROR(VLOOKUP($C$2&"-"&$B23,'BD Seq Op'!$C:$H,5,FALSE)),"",VLOOKUP($C$2&"-"&$B23,'BD Seq Op'!$C:$H,5,FALSE))) -> 
A24: Não | B24: 19 | C24: =IF($C$2=0,"",IF(ISERROR(VLOOKUP($C$2&"-"&$B24,'BD Seq Op'!$C:$H,2,FALSE)),"",VLOOKUP($C$2&"-"&$B24,'BD Seq Op'!$C:$H,2,FALSE))) ->  | F24: =IF($C$2=0,"",IF(ISERROR(VLOOKUP($C$2&"-"&$B24,'BD Seq Op'!$C:$H,5,FALSE)),"",VLOOKUP($C$2&"-"&$B24,'BD Seq Op'!$C:$H,5,FALSE))) -> 
A25: Não | B25: 20 | C25: =IF($C$2=0,"",IF(ISERROR(VLOOKUP($C$2&"-"&$B25,'BD Seq Op'!$C:$H,2,FALSE)),"",VLOOKUP($C$2&"-"&$B25,'BD Seq Op'!$C:$H,2,FALSE))) ->  | F25: =IF($C$2=0,"",IF(ISERROR(VLOOKUP($C$2&"-"&$B25,'BD Seq Op'!$C:$H,5,FALSE)),"",VLOOKUP($C$2&"-"&$B25,'BD Seq Op'!$C:$H,5,FALSE))) -> 
A26: Não | B26: 21 | C26: =IF($C$2=0,"",IF(ISERROR(VLOOKUP($C$2&"-"&$B26,'BD Seq Op'!$C:$H,2,FALSE)),"",VLOOKUP($C$2&"-"&$B26,'BD Seq Op'!$C:$H,2,FALSE))) ->  | F26: =IF($C$2=0,"",IF(ISERROR(VLOOKUP($C$2&"-"&$B26,'BD Seq Op'!$C:$H,5,FALSE)),"",VLOOKUP($C$2&"-"&$B26,'BD Seq Op'!$C:$H,5,FALSE))) -> 
A27: Não | B27: 22 | C27: =IF($C$2=0,"",IF(ISERROR(VLOOKUP($C$2&"-"&$B27,'BD Seq Op'!$C:$H,2,FALSE)),"",VLOOKUP($C$2&"-"&$B27,'BD Seq Op'!$C:$H,2,FALSE))) ->  | F27: =IF($C$2=0,"",IF(ISERROR(VLOOKUP($C$2&"-"&$B27,'BD Seq Op'!$C:$H,5,FALSE)),"",VLOOKUP($C$2&"-"&$B27,'BD Seq Op'!$C:$H,5,FALSE))) -> 
A28: Não | B28: 23 | C28: =IF($C$2=0,"",IF(ISERROR(VLOOKUP($C$2&"-"&$B28,'BD Seq Op'!$C:$H,2,FALSE)),"",VLOOKUP($C$2&"-"&$B28,'BD Seq Op'!$C:$H,2,FALSE))) ->  | F28: =IF($C$2=0,"",IF(ISERROR(VLOOKUP($C$2&"-"&$B28,'BD Seq Op'!$C:$H,5,FALSE)),"",VLOOKUP($C$2&"-"&$B28,'BD Seq Op'!$C:$H,5,FALSE))) -> 
A29: Não | B29: 24 | C29: =IF($C$2=0,"",IF(ISERROR(VLOOKUP($C$2&"-"&$B29,'BD Seq Op'!$C:$H,2,FALSE)),"",VLOOKUP($C$2&"-"&$B29,'BD Seq Op'!$C:$H,2,FALSE))) ->  | F29: =IF($C$2=0,"",IF(ISERROR(VLOOKUP($C$2&"-"&$B29,'BD Seq Op'!$C:$H,5,FALSE)),"",VLOOKUP($C$2&"-"&$B29,'BD Seq Op'!$C:$H,5,FALSE))) -> 
A30: Não | B30: 25 | C30: =IF($C$2=0,"",IF(ISERROR(VLOOKUP($C$2&"-"&$B30,'BD Seq Op'!$C:$H,2,FALSE)),"",VLOOKUP($C$2&"-"&$B30,'BD Seq Op'!$C:$H,2,FALSE))) ->  | F30: =IF($C$2=0,"",IF(ISERROR(VLOOKUP($C$2&"-"&$B30,'BD Seq Op'!$C:$H,5,FALSE)),"",VLOOKUP($C$2&"-"&$B30,'BD Seq Op'!$C:$H,5,FALSE))) -> 
A31: Não | B31: 26 | C31: =IF($C$2=0,"",IF(ISERROR(VLOOKUP($C$2&"-"&$B31,'BD Seq Op'!$C:$H,2,FALSE)),"",VLOOKUP($C$2&"-"&$B31,'BD Seq Op'!$C:$H,2,FALSE))) ->  | F31: =IF($C$2=0,"",IF(ISERROR(VLOOKUP($C$2&"-"&$B31,'BD Seq Op'!$C:$H,5,FALSE)),"",VLOOKUP($C$2&"-"&$B31,'BD Seq Op'!$C:$H,5,FALSE))) -> 
A32: Não | B32: 27 | C32: =IF($C$2=0,"",IF(ISERROR(VLOOKUP($C$2&"-"&$B32,'BD Seq Op'!$C:$H,2,FALSE)),"",VLOOKUP($C$2&"-"&$B32,'BD Seq Op'!$C:$H,2,FALSE))) ->  | F32: =IF($C$2=0,"",IF(ISERROR(VLOOKUP($C$2&"-"&$B32,'BD Seq Op'!$C:$H,5,FALSE)),"",VLOOKUP($C$2&"-"&$B32,'BD Seq Op'!$C:$H,5,FALSE))) -> 
A33: Não | B33: 28 | C33: =IF($C$2=0,"",IF(ISERROR(VLOOKUP($C$2&"-"&$B33,'BD Seq Op'!$C:$H,2,FALSE)),"",VLOOKUP($C$2&"-"&$B33,'BD Seq Op'!$C:$H,2,FALSE))) ->  | F33: =IF($C$2=0,"",IF(ISERROR(VLOOKUP($C$2&"-"&$B33,'BD Seq Op'!$C:$H,5,FALSE)),"",VLOOKUP($C$2&"-"&$B33,'BD Seq Op'!$C:$H,5,FALSE))) -> 
A34: Não | B34: 29 | C34: =IF($C$2=0,"",IF(ISERROR(VLOOKUP($C$2&"-"&$B34,'BD Seq Op'!$C:$H,2,FALSE)),"",VLOOKUP($C$2&"-"&$B34,'BD Seq Op'!$C:$H,2,FALSE))) ->  | F34: =IF($C$2=0,"",IF(ISERROR(VLOOKUP($C$2&"-"&$B34,'BD Seq Op'!$C:$H,5,FALSE)),"",VLOOKUP($C$2&"-"&$B34,'BD Seq Op'!$C:$H,5,FALSE))) -> 
A35: Não | B35: 30 | C35: =IF($C$2=0,"",IF(ISERROR(VLOOKUP($C$2&"-"&$B35,'BD Seq Op'!$C:$H,2,FALSE)),"",VLOOKUP($C$2&"-"&$B35,'BD Seq Op'!$C:$H,2,FALSE))) ->  | F35: =IF($C$2=0,"",IF(ISERROR(VLOOKUP($C$2&"-"&$B35,'BD Seq Op'!$C:$H,5,FALSE)),"",VLOOKUP($C$2&"-"&$B35,'BD Seq Op'!$C:$H,5,FALSE))) -> 
A36: Não | B36: 31 | C36: =IF($C$2=0,"",IF(ISERROR(VLOOKUP($C$2&"-"&$B36,'BD Seq Op'!$C:$H,2,FALSE)),"",VLOOKUP($C$2&"-"&$B36,'BD Seq Op'!$C:$H,2,FALSE))) ->  | F36: =IF($C$2=0,"",IF(ISERROR(VLOOKUP($C$2&"-"&$B36,'BD Seq Op'!$C:$H,5,FALSE)),"",VLOOKUP($C$2&"-"&$B36,'BD Seq Op'!$C:$H,5,FALSE))) -> 
A37: Não | B37: 32 | C37: =IF($C$2=0,"",IF(ISERROR(VLOOKUP($C$2&"-"&$B37,'BD Seq Op'!$C:$H,2,FALSE)),"",VLOOKUP($C$2&"-"&$B37,'BD Seq Op'!$C:$H,2,FALSE))) ->  | F37: =IF($C$2=0,"",IF(ISERROR(VLOOKUP($C$2&"-"&$B37,'BD Seq Op'!$C:$H,5,FALSE)),"",VLOOKUP($C$2&"-"&$B37,'BD Seq Op'!$C:$H,5,FALSE))) -> 
A38: Não | B38: 33 | C38: =IF($C$2=0,"",IF(ISERROR(VLOOKUP($C$2&"-"&$B38,'BD Seq Op'!$C:$H,2,FALSE)),"",VLOOKUP($C$2&"-"&$B38,'BD Seq Op'!$C:$H,2,FALSE))) ->  | F38: =IF($C$2=0,"",IF(ISERROR(VLOOKUP($C$2&"-"&$B38,'BD Seq Op'!$C:$H,5,FALSE)),"",VLOOKUP($C$2&"-"&$B38,'BD Seq Op'!$C:$H,5,FALSE))) -> 
A39: Não | B39: 34 | C39: =IF($C$2=0,"",IF(ISERROR(VLOOKUP($C$2&"-"&$B39,'BD Seq Op'!$C:$H,2,FALSE)),"",VLOOKUP($C$2&"-"&$B39,'BD Seq Op'!$C:$H,2,FALSE))) ->  | F39: =IF($C$2=0,"",IF(ISERROR(VLOOKUP($C$2&"-"&$B39,'BD Seq Op'!$C:$H,5,FALSE)),"",VLOOKUP($C$2&"-"&$B39,'BD Seq Op'!$C:$H,5,FALSE))) -> 
A40: Não | B40: 35 | C40: =IF($C$2=0,"",IF(ISERROR(VLOOKUP($C$2&"-"&$B40,'BD Seq Op'!$C:$H,2,FALSE)),"",VLOOKUP($C$2&"-"&$B40,'BD Seq Op'!$C:$H,2,FALSE))) ->  | F40: =IF($C$2=0,"",IF(ISERROR(VLOOKUP($C$2&"-"&$B40,'BD Seq Op'!$C:$H,5,FALSE)),"",VLOOKUP($C$2&"-"&$B40,'BD Seq Op'!$C:$H,5,FALSE))) -> 
A41: Não | B41: 36 | C41: =IF($C$2=0,"",IF(ISERROR(VLOOKUP($C$2&"-"&$B41,'BD Seq Op'!$C:$H,2,FALSE)),"",VLOOKUP($C$2&"-"&$B41,'BD Seq Op'!$C:$H,2,FALSE))) ->  | F41: =IF($C$2=0,"",IF(ISERROR(VLOOKUP($C$2&"-"&$B41,'BD Seq Op'!$C:$H,5,FALSE)),"",VLOOKUP($C$2&"-"&$B41,'BD Seq Op'!$C:$H,5,FALSE))) -> 
A42: Não | B42: 37 | C42: =IF($C$2=0,"",IF(ISERROR(VLOOKUP($C$2&"-"&$B42,'BD Seq Op'!$C:$H,2,FALSE)),"",VLOOKUP($C$2&"-"&$B42,'BD Seq Op'!$C:$H,2,FALSE))) ->  | F42: =IF($C$2=0,"",IF(ISERROR(VLOOKUP($C$2&"-"&$B42,'BD Seq Op'!$C:$H,5,FALSE)),"",VLOOKUP($C$2&"-"&$B42,'BD Seq Op'!$C:$H,5,FALSE))) -> 
A43: Não | B43: 38 | C43: =IF($C$2=0,"",IF(ISERROR(VLOOKUP($C$2&"-"&$B43,'BD Seq Op'!$C:$H,2,FALSE)),"",VLOOKUP($C$2&"-"&$B43,'BD Seq Op'!$C:$H,2,FALSE))) ->  | F43: =IF($C$2=0,"",IF(ISERROR(VLOOKUP($C$2&"-"&$B43,'BD Seq Op'!$C:$H,5,FALSE)),"",VLOOKUP($C$2&"-"&$B43,'BD Seq Op'!$C:$H,5,FALSE))) -> 
A44: Não | B44: 39 | C44: =IF($C$2=0,"",IF(ISERROR(VLOOKUP($C$2&"-"&$B44,'BD Seq Op'!$C:$H,2,FALSE)),"",VLOOKUP($C$2&"-"&$B44,'BD Seq Op'!$C:$H,2,FALSE))) ->  | F44: =IF($C$2=0,"",IF(ISERROR(VLOOKUP($C$2&"-"&$B44,'BD Seq Op'!$C:$H,5,FALSE)),"",VLOOKUP($C$2&"-"&$B44,'BD Seq Op'!$C:$H,5,FALSE))) -> 
A45: Não | B45: 40 | C45: =IF($C$2=0,"",IF(ISERROR(VLOOKUP($C$2&"-"&$B45,'BD Seq Op'!$C:$H,2,FALSE)),"",VLOOKUP($C$2&"-"&$B45,'BD Seq Op'!$C:$H,2,FALSE))) ->  | F45: =IF($C$2=0,"",IF(ISERROR(VLOOKUP($C$2&"-"&$B45,'BD Seq Op'!$C:$H,5,FALSE)),"",VLOOKUP($C$2&"-"&$B45,'BD Seq Op'!$C:$H,5,FALSE))) -> 
A46: Não | B46: 41 | C46: =IF($C$2=0,"",IF(ISERROR(VLOOKUP($C$2&"-"&$B46,'BD Seq Op'!$C:$H,2,FALSE)),"",VLOOKUP($C$2&"-"&$B46,'BD Seq Op'!$C:$H,2,FALSE))) ->  | F46: =IF($C$2=0,"",IF(ISERROR(VLOOKUP($C$2&"-"&$B46,'BD Seq Op'!$C:$H,5,FALSE)),"",VLOOKUP($C$2&"-"&$B46,'BD Seq Op'!$C:$H,5,FALSE))) -> 
A47: Não | B47: 42 | C47: =IF($C$2=0,"",IF(ISERROR(VLOOKUP($C$2&"-"&$B47,'BD Seq Op'!$C:$H,2,FALSE)),"",VLOOKUP($C$2&"-"&$B47,'BD Seq Op'!$C:$H,2,FALSE))) ->  | F47: =IF($C$2=0,"",IF(ISERROR(VLOOKUP($C$2&"-"&$B47,'BD Seq Op'!$C:$H,5,FALSE)),"",VLOOKUP($C$2&"-"&$B47,'BD Seq Op'!$C:$H,5,FALSE))) -> 
A48: Não | B48: 43 | C48: =IF($C$2=0,"",IF(ISERROR(VLOOKUP($C$2&"-"&$B48,'BD Seq Op'!$C:$H,2,FALSE)),"",VLOOKUP($C$2&"-"&$B48,'BD Seq Op'!$C:$H,2,FALSE))) ->  | F48: =IF($C$2=0,"",IF(ISERROR(VLOOKUP($C$2&"-"&$B48,'BD Seq Op'!$C:$H,5,FALSE)),"",VLOOKUP($C$2&"-"&$B48,'BD Seq Op'!$C:$H,5,FALSE))) -> 
A49: Não | B49: 44 | C49: =IF($C$2=0,"",IF(ISERROR(VLOOKUP($C$2&"-"&$B49,'BD Seq Op'!$C:$H,2,FALSE)),"",VLOOKUP($C$2&"-"&$B49,'BD Seq Op'!$C:$H,2,FALSE))) ->  | F49: =IF($C$2=0,"",IF(ISERROR(VLOOKUP($C$2&"-"&$B49,'BD Seq Op'!$C:$H,5,FALSE)),"",VLOOKUP($C$2&"-"&$B49,'BD Seq Op'!$C:$H,5,FALSE))) -> 
A50: Não | B50: 45 | C50: =IF($C$2=0,"",IF(ISERROR(VLOOKUP($C$2&"-"&$B50,'BD Seq Op'!$C:$H,2,FALSE)),"",VLOOKUP($C$2&"-"&$B50,'BD Seq Op'!$C:$H,2,FALSE))) ->  | F50: =IF($C$2=0,"",IF(ISERROR(VLOOKUP($C$2&"-"&$B50,'BD Seq Op'!$C:$H,5,FALSE)),"",VLOOKUP($C$2&"-"&$B50,'BD Seq Op'!$C:$H,5,FALSE))) -> 
A51: Não | B51: 46 | C51: =IF($C$2=0,"",IF(ISERROR(VLOOKUP($C$2&"-"&$B51,'BD Seq Op'!$C:$H,2,FALSE)),"",VLOOKUP($C$2&"-"&$B51,'BD Seq Op'!$C:$H,2,FALSE))) ->  | F51: =IF($C$2=0,"",IF(ISERROR(VLOOKUP($C$2&"-"&$B51,'BD Seq Op'!$C:$H,5,FALSE)),"",VLOOKUP($C$2&"-"&$B51,'BD Seq Op'!$C:$H,5,FALSE))) -> 
A52: Não | B52: 47 | C52: =IF($C$2=0,"",IF(ISERROR(VLOOKUP($C$2&"-"&$B52,'BD Seq Op'!$C:$H,2,FALSE)),"",VLOOKUP($C$2&"-"&$B52,'BD Seq Op'!$C:$H,2,FALSE))) ->  | F52: =IF($C$2=0,"",IF(ISERROR(VLOOKUP($C$2&"-"&$B52,'BD Seq Op'!$C:$H,5,FALSE)),"",VLOOKUP($C$2&"-"&$B52,'BD Seq Op'!$C:$H,5,FALSE))) -> 
A53: Não | B53: 48 | C53: =IF($C$2=0,"",IF(ISERROR(VLOOKUP($C$2&"-"&$B53,'BD Seq Op'!$C:$H,2,FALSE)),"",VLOOKUP($C$2&"-"&$B53,'BD Seq Op'!$C:$H,2,FALSE))) ->  | F53: =IF($C$2=0,"",IF(ISERROR(VLOOKUP($C$2&"-"&$B53,'BD Seq Op'!$C:$H,5,FALSE)),"",VLOOKUP($C$2&"-"&$B53,'BD Seq Op'!$C:$H,5,FALSE))) -> 
A54: Não | B54: 49 | C54: =IF($C$2=0,"",IF(ISERROR(VLOOKUP($C$2&"-"&$B54,'BD Seq Op'!$C:$H,2,FALSE)),"",VLOOKUP($C$2&"-"&$B54,'BD Seq Op'!$C:$H,2,FALSE))) ->  | F54: =IF($C$2=0,"",IF(ISERROR(VLOOKUP($C$2&"-"&$B54,'BD Seq Op'!$C:$H,5,FALSE)),"",VLOOKUP($C$2&"-"&$B54,'BD Seq Op'!$C:$H,5,FALSE))) -> 
A55: Não | B55: 50 | C55: =IF($C$2=0,"",IF(ISERROR(VLOOKUP($C$2&"-"&$B55,'BD Seq Op'!$C:$H,2,FALSE)),"",VLOOKUP($C$2&"-"&$B55,'BD Seq Op'!$C:$H,2,FALSE))) ->  | F55: =IF($C$2=0,"",IF(ISERROR(VLOOKUP($C$2&"-"&$B55,'BD Seq Op'!$C:$H,5,FALSE)),"",VLOOKUP($C$2&"-"&$B55,'BD Seq Op'!$C:$H,5,FALSE))) -> 
A56: Não | B56: 51 | C56: =IF($C$2=0,"",IF(ISERROR(VLOOKUP($C$2&"-"&$B56,'BD Seq Op'!$C:$H,2,FALSE)),"",VLOOKUP($C$2&"-"&$B56,'BD Seq Op'!$C:$H,2,FALSE))) ->  | F56: =IF($C$2=0,"",IF(ISERROR(VLOOKUP($C$2&"-"&$B56,'BD Seq Op'!$C:$H,5,FALSE)),"",VLOOKUP($C$2&"-"&$B56,'BD Seq Op'!$C:$H,5,FALSE))) -> 
A57: Não | B57: 52 | C57: =IF($C$2=0,"",IF(ISERROR(VLOOKUP($C$2&"-"&$B57,'BD Seq Op'!$C:$H,2,FALSE)),"",VLOOKUP($C$2&"-"&$B57,'BD Seq Op'!$C:$H,2,FALSE))) ->  | F57: =IF($C$2=0,"",IF(ISERROR(VLOOKUP($C$2&"-"&$B57,'BD Seq Op'!$C:$H,5,FALSE)),"",VLOOKUP($C$2&"-"&$B57,'BD Seq Op'!$C:$H,5,FALSE))) -> 
A58: Não | B58: 53 | C58: =IF($C$2=0,"",IF(ISERROR(VLOOKUP($C$2&"-"&$B58,'BD Seq Op'!$C:$H,2,FALSE)),"",VLOOKUP($C$2&"-"&$B58,'BD Seq Op'!$C:$H,2,FALSE))) ->  | F58: =IF($C$2=0,"",IF(ISERROR(VLOOKUP($C$2&"-"&$B58,'BD Seq Op'!$C:$H,5,FALSE)),"",VLOOKUP($C$2&"-"&$B58,'BD Seq Op'!$C:$H,5,FALSE))) -> 
A59: Não | B59: 54 | C59: =IF($C$2=0,"",IF(ISERROR(VLOOKUP($C$2&"-"&$B59,'BD Seq Op'!$C:$H,2,FALSE)),"",VLOOKUP($C$2&"-"&$B59,'BD Seq Op'!$C:$H,2,FALSE))) ->  | F59: =IF($C$2=0,"",IF(ISERROR(VLOOKUP($C$2&"-"&$B59,'BD Seq Op'!$C:$H,5,FALSE)),"",VLOOKUP($C$2&"-"&$B59,'BD Seq Op'!$C:$H,5,FALSE))) -> 
A60: Não | B60: 55 | C60: =IF($C$2=0,"",IF(ISERROR(VLOOKUP($C$2&"-"&$B60,'BD Seq Op'!$C:$H,2,FALSE)),"",VLOOKUP($C$2&"-"&$B60,'BD Seq Op'!$C:$H,2,FALSE))) ->  | F60: =IF($C$2=0,"",IF(ISERROR(VLOOKUP($C$2&"-"&$B60,'BD Seq Op'!$C:$H,5,FALSE)),"",VLOOKUP($C$2&"-"&$B60,'BD Seq Op'!$C:$H,5,FALSE))) -> 
A61: Não | B61: 56 | C61: =IF($C$2=0,"",IF(ISERROR(VLOOKUP($C$2&"-"&$B61,'BD Seq Op'!$C:$H,2,FALSE)),"",VLOOKUP($C$2&"-"&$B61,'BD Seq Op'!$C:$H,2,FALSE))) ->  | F61: =IF($C$2=0,"",IF(ISERROR(VLOOKUP($C$2&"-"&$B61,'BD Seq Op'!$C:$H,5,FALSE)),"",VLOOKUP($C$2&"-"&$B61,'BD Seq Op'!$C:$H,5,FALSE))) -> 
A62: Não | B62: 57 | C62: =IF($C$2=0,"",IF(ISERROR(VLOOKUP($C$2&"-"&$B62,'BD Seq Op'!$C:$H,2,FALSE)),"",VLOOKUP($C$2&"-"&$B62,'BD Seq Op'!$C:$H,2,FALSE))) ->  | F62: =IF($C$2=0,"",IF(ISERROR(VLOOKUP($C$2&"-"&$B62,'BD Seq Op'!$C:$H,5,FALSE)),"",VLOOKUP($C$2&"-"&$B62,'BD Seq Op'!$C:$H,5,FALSE))) -> 
A63: Não | B63: 58 | C63: =IF($C$2=0,"",IF(ISERROR(VLOOKUP($C$2&"-"&$B63,'BD Seq Op'!$C:$H,2,FALSE)),"",VLOOKUP($C$2&"-"&$B63,'BD Seq Op'!$C:$H,2,FALSE))) ->  | F63: =IF($C$2=0,"",IF(ISERROR(VLOOKUP($C$2&"-"&$B63,'BD Seq Op'!$C:$H,5,FALSE)),"",VLOOKUP($C$2&"-"&$B63,'BD Seq Op'!$C:$H,5,FALSE))) -> 
A64: Não | B64: 59 | C64: =IF($C$2=0,"",IF(ISERROR(VLOOKUP($C$2&"-"&$B64,'BD Seq Op'!$C:$H,2,FALSE)),"",VLOOKUP($C$2&"-"&$B64,'BD Seq Op'!$C:$H,2,FALSE))) ->  | F64: =IF($C$2=0,"",IF(ISERROR(VLOOKUP($C$2&"-"&$B64,'BD Seq Op'!$C:$H,5,FALSE)),"",VLOOKUP($C$2&"-"&$B64,'BD Seq Op'!$C:$H,5,FALSE))) -> 
A65: Não | B65: 60 | C65: =IF($C$2=0,"",IF(ISERROR(VLOOKUP($C$2&"-"&$B65,'BD Seq Op'!$C:$H,2,FALSE)),"",VLOOKUP($C$2&"-"&$B65,'BD Seq Op'!$C:$H,2,FALSE))) ->  | F65: =IF($C$2=0,"",IF(ISERROR(VLOOKUP($C$2&"-"&$B65,'BD Seq Op'!$C:$H,5,FALSE)),"",VLOOKUP($C$2&"-"&$B65,'BD Seq Op'!$C:$H,5,FALSE))) -> 
A66: Não | B66: 61 | C66: =IF($C$2=0,"",IF(ISERROR(VLOOKUP($C$2&"-"&$B66,'BD Seq Op'!$C:$H,2,FALSE)),"",VLOOKUP($C$2&"-"&$B66,'BD Seq Op'!$C:$H,2,FALSE))) ->  | F66: =IF($C$2=0,"",IF(ISERROR(VLOOKUP($C$2&"-"&$B66,'BD Seq Op'!$C:$H,5,FALSE)),"",VLOOKUP($C$2&"-"&$B66,'BD Seq Op'!$C:$H,5,FALSE))) -> 
A67: Não | B67: 62 | C67: =IF($C$2=0,"",IF(ISERROR(VLOOKUP($C$2&"-"&$B67,'BD Seq Op'!$C:$H,2,FALSE)),"",VLOOKUP($C$2&"-"&$B67,'BD Seq Op'!$C:$H,2,FALSE))) ->  | F67: =IF($C$2=0,"",IF(ISERROR(VLOOKUP($C$2&"-"&$B67,'BD Seq Op'!$C:$H,5,FALSE)),"",VLOOKUP($C$2&"-"&$B67,'BD Seq Op'!$C:$H,5,FALSE))) -> 
A68: Não | B68: 63 | C68: =IF($C$2=0,"",IF(ISERROR(VLOOKUP($C$2&"-"&$B68,'BD Seq Op'!$C:$H,2,FALSE)),"",VLOOKUP($C$2&"-"&$B68,'BD Seq Op'!$C:$H,2,FALSE))) ->  | F68: =IF($C$2=0,"",IF(ISERROR(VLOOKUP($C$2&"-"&$B68,'BD Seq Op'!$C:$H,5,FALSE)),"",VLOOKUP($C$2&"-"&$B68,'BD Seq Op'!$C:$H,5,FALSE))) -> 
A69: Não | B69: 64 | C69: =IF($C$2=0,"",IF(ISERROR(VLOOKUP($C$2&"-"&$B69,'BD Seq Op'!$C:$H,2,FALSE)),"",VLOOKUP($C$2&"-"&$B69,'BD Seq Op'!$C:$H,2,FALSE))) ->  | F69: =IF($C$2=0,"",IF(ISERROR(VLOOKUP($C$2&"-"&$B69,'BD Seq Op'!$C:$H,5,FALSE)),"",VLOOKUP($C$2&"-"&$B69,'BD Seq Op'!$C:$H,5,FALSE))) -> 
A70: Não | B70: 65 | C70: =IF($C$2=0,"",IF(ISERROR(VLOOKUP($C$2&"-"&$B70,'BD Seq Op'!$C:$H,2,FALSE)),"",VLOOKUP($C$2&"-"&$B70,'BD Seq Op'!$C:$H,2,FALSE))) ->  | F70: =IF($C$2=0,"",IF(ISERROR(VLOOKUP($C$2&"-"&$B70,'BD Seq Op'!$C:$H,5,FALSE)),"",VLOOKUP($C$2&"-"&$B70,'BD Seq Op'!$C:$H,5,FALSE))) -> 
A71: =IF(C71="","Não","Sim") -> Não | B71: 66 | C71: =IF($C$2=0,"",IF(ISERROR(VLOOKUP($C$2&"-"&$B71,'BD Seq Op'!$C:$H,2,FALSE)),"",VLOOKUP($C$2&"-"&$B71,'BD Seq Op'!$C:$H,2,FALSE))) ->  | F71: =IF($C$2=0,"",IF(ISERROR(VLOOKUP($C$2&"-"&$B71,'BD Seq Op'!$C:$H,5,FALSE)),"",VLOOKUP($C$2&"-"&$B71,'BD Seq Op'!$C:$H,5,FALSE))) -> 
A72: Não | B72: 67 | C72: =IF($C$2=0,"",IF(ISERROR(VLOOKUP($C$2&"-"&$B72,'BD Seq Op'!$C:$H,2,FALSE)),"",VLOOKUP($C$2&"-"&$B72,'BD Seq Op'!$C:$H,2,FALSE))) ->  | F72: =IF($C$2=0,"",IF(ISERROR(VLOOKUP($C$2&"-"&$B72,'BD Seq Op'!$C:$H,5,FALSE)),"",VLOOKUP($C$2&"-"&$B72,'BD Seq Op'!$C:$H,5,FALSE))) -> 
A73: Não | B73: 68 | C73: =IF($C$2=0,"",IF(ISERROR(VLOOKUP($C$2&"-"&$B73,'BD Seq Op'!$C:$H,2,FALSE)),"",VLOOKUP($C$2&"-"&$B73,'BD Seq Op'!$C:$H,2,FALSE))) ->  | F73: =IF($C$2=0,"",IF(ISERROR(VLOOKUP($C$2&"-"&$B73,'BD Seq Op'!$C:$H,5,FALSE)),"",VLOOKUP($C$2&"-"&$B73,'BD Seq Op'!$C:$H,5,FALSE))) -> 
A74: Não | B74: 69 | C74: =IF($C$2=0,"",IF(ISERROR(VLOOKUP($C$2&"-"&$B74,'BD Seq Op'!$C:$H,2,FALSE)),"",VLOOKUP($C$2&"-"&$B74,'BD Seq Op'!$C:$H,2,FALSE))) ->  | F74: =IF($C$2=0,"",IF(ISERROR(VLOOKUP($C$2&"-"&$B74,'BD Seq Op'!$C:$H,5,FALSE)),"",VLOOKUP($C$2&"-"&$B74,'BD Seq Op'!$C:$H,5,FALSE))) -> 
A75: Não | B75: 70 | C75: =IF($C$2=0,"",IF(ISERROR(VLOOKUP($C$2&"-"&$B75,'BD Seq Op'!$C:$H,2,FALSE)),"",VLOOKUP($C$2&"-"&$B75,'BD Seq Op'!$C:$H,2,FALSE))) ->  | F75: =IF($C$2=0,"",IF(ISERROR(VLOOKUP($C$2&"-"&$B75,'BD Seq Op'!$C:$H,5,FALSE)),"",VLOOKUP($C$2&"-"&$B75,'BD Seq Op'!$C:$H,5,FALSE))) -> 
A76: Não | B76: 71 | C76: =IF($C$2=0,"",IF(ISERROR(VLOOKUP($C$2&"-"&$B76,'BD Seq Op'!$C:$H,2,FALSE)),"",VLOOKUP($C$2&"-"&$B76,'BD Seq Op'!$C:$H,2,FALSE))) ->  | F76: =IF($C$2=0,"",IF(ISERROR(VLOOKUP($C$2&"-"&$B76,'BD Seq Op'!$C:$H,5,FALSE)),"",VLOOKUP($C$2&"-"&$B76,'BD Seq Op'!$C:$H,5,FALSE))) -> 
A77: Não | B77: 72 | C77: =IF($C$2=0,"",IF(ISERROR(VLOOKUP($C$2&"-"&$B77,'BD Seq Op'!$C:$H,2,FALSE)),"",VLOOKUP($C$2&"-"&$B77,'BD Seq Op'!$C:$H,2,FALSE))) ->  | F77: =IF($C$2=0,"",IF(ISERROR(VLOOKUP($C$2&"-"&$B77,'BD Seq Op'!$C:$H,5,FALSE)),"",VLOOKUP($C$2&"-"&$B77,'BD Seq Op'!$C:$H,5,FALSE))) -> 
A78: Não | B78: 73 | C78: =IF($C$2=0,"",IF(ISERROR(VLOOKUP($C$2&"-"&$B78,'BD Seq Op'!$C:$H,2,FALSE)),"",VLOOKUP($C$2&"-"&$B78,'BD Seq Op'!$C:$H,2,FALSE))) ->  | F78: =IF($C$2=0,"",IF(ISERROR(VLOOKUP($C$2&"-"&$B78,'BD Seq Op'!$C:$H,5,FALSE)),"",VLOOKUP($C$2&"-"&$B78,'BD Seq Op'!$C:$H,5,FALSE))) -> 
A79: Não | B79: 74 | C79: =IF($C$2=0,"",IF(ISERROR(VLOOKUP($C$2&"-"&$B79,'BD Seq Op'!$C:$H,2,FALSE)),"",VLOOKUP($C$2&"-"&$B79,'BD Seq Op'!$C:$H,2,FALSE))) ->  | F79: =IF($C$2=0,"",IF(ISERROR(VLOOKUP($C$2&"-"&$B79,'BD Seq Op'!$C:$H,5,FALSE)),"",VLOOKUP($C$2&"-"&$B79,'BD Seq Op'!$C:$H,5,FALSE))) -> 
A80: Não | B80: 75 | C80: =IF($C$2=0,"",IF(ISERROR(VLOOKUP($C$2&"-"&$B80,'BD Seq Op'!$C:$H,2,FALSE)),"",VLOOKUP($C$2&"-"&$B80,'BD Seq Op'!$C:$H,2,FALSE))) ->  | F80: =IF($C$2=0,"",IF(ISERROR(VLOOKUP($C$2&"-"&$B80,'BD Seq Op'!$C:$H,5,FALSE)),"",VLOOKUP($C$2&"-"&$B80,'BD Seq Op'!$C:$H,5,FALSE))) -> 
A81: Não | B81: 76 | C81: =IF($C$2=0,"",IF(ISERROR(VLOOKUP($C$2&"-"&$B81,'BD Seq Op'!$C:$H,2,FALSE)),"",VLOOKUP($C$2&"-"&$B81,'BD Seq Op'!$C:$H,2,FALSE))) ->  | F81: =IF($C$2=0,"",IF(ISERROR(VLOOKUP($C$2&"-"&$B81,'BD Seq Op'!$C:$H,5,FALSE)),"",VLOOKUP($C$2&"-"&$B81,'BD Seq Op'!$C:$H,5,FALSE))) -> 
A82: Não | B82: 77 | C82: =IF($C$2=0,"",IF(ISERROR(VLOOKUP($C$2&"-"&$B82,'BD Seq Op'!$C:$H,2,FALSE)),"",VLOOKUP($C$2&"-"&$B82,'BD Seq Op'!$C:$H,2,FALSE))) ->  | F82: =IF($C$2=0,"",IF(ISERROR(VLOOKUP($C$2&"-"&$B82,'BD Seq Op'!$C:$H,5,FALSE)),"",VLOOKUP($C$2&"-"&$B82,'BD Seq Op'!$C:$H,5,FALSE))) -> 
A83: Não | B83: 78 | C83: =IF($C$2=0,"",IF(ISERROR(VLOOKUP($C$2&"-"&$B83,'BD Seq Op'!$C:$H,2,FALSE)),"",VLOOKUP($C$2&"-"&$B83,'BD Seq Op'!$C:$H,2,FALSE))) ->  | F83: =IF($C$2=0,"",IF(ISERROR(VLOOKUP($C$2&"-"&$B83,'BD Seq Op'!$C:$H,5,FALSE)),"",VLOOKUP($C$2&"-"&$B83,'BD Seq Op'!$C:$H,5,FALSE))) -> 
A84: Não | B84: 79 | C84: =IF($C$2=0,"",IF(ISERROR(VLOOKUP($C$2&"-"&$B84,'BD Seq Op'!$C:$H,2,FALSE)),"",VLOOKUP($C$2&"-"&$B84,'BD Seq Op'!$C:$H,2,FALSE))) ->  | F84: =IF($C$2=0,"",IF(ISERROR(VLOOKUP($C$2&"-"&$B84,'BD Seq Op'!$C:$H,5,FALSE)),"",VLOOKUP($C$2&"-"&$B84,'BD Seq Op'!$C:$H,5,FALSE))) -> 
A85: Não | B85: 80 | C85: =IF($C$2=0,"",IF(ISERROR(VLOOKUP($C$2&"-"&$B85,'BD Seq Op'!$C:$H,2,FALSE)),"",VLOOKUP($C$2&"-"&$B85,'BD Seq Op'!$C:$H,2,FALSE))) ->  | F85: =IF($C$2=0,"",IF(ISERROR(VLOOKUP($C$2&"-"&$B85,'BD Seq Op'!$C:$H,5,FALSE)),"",VLOOKUP($C$2&"-"&$B85,'BD Seq Op'!$C:$H,5,FALSE))) -> 
A86: Não | B86: 81 | C86: =IF($C$2=0,"",IF(ISERROR(VLOOKUP($C$2&"-"&$B86,'BD Seq Op'!$C:$H,2,FALSE)),"",VLOOKUP($C$2&"-"&$B86,'BD Seq Op'!$C:$H,2,FALSE))) ->  | F86: =IF($C$2=0,"",IF(ISERROR(VLOOKUP($C$2&"-"&$B86,'BD Seq Op'!$C:$H,5,FALSE)),"",VLOOKUP($C$2&"-"&$B86,'BD Seq Op'!$C:$H,5,FALSE))) -> 
A87: Não | B87: 82 | C87: =IF($C$2=0,"",IF(ISERROR(VLOOKUP($C$2&"-"&$B87,'BD Seq Op'!$C:$H,2,FALSE)),"",VLOOKUP($C$2&"-"&$B87,'BD Seq Op'!$C:$H,2,FALSE))) ->  | F87: =IF($C$2=0,"",IF(ISERROR(VLOOKUP($C$2&"-"&$B87,'BD Seq Op'!$C:$H,5,FALSE)),"",VLOOKUP($C$2&"-"&$B87,'BD Seq Op'!$C:$H,5,FALSE))) -> 
A88: Não | B88: 83 | C88: =IF($C$2=0,"",IF(ISERROR(VLOOKUP($C$2&"-"&$B88,'BD Seq Op'!$C:$H,2,FALSE)),"",VLOOKUP($C$2&"-"&$B88,'BD Seq Op'!$C:$H,2,FALSE))) ->  | F88: =IF($C$2=0,"",IF(ISERROR(VLOOKUP($C$2&"-"&$B88,'BD Seq Op'!$C:$H,5,FALSE)),"",VLOOKUP($C$2&"-"&$B88,'BD Seq Op'!$C:$H,5,FALSE))) -> 
A89: Não | B89: 84 | C89: =IF($C$2=0,"",IF(ISERROR(VLOOKUP($C$2&"-"&$B89,'BD Seq Op'!$C:$H,2,FALSE)),"",VLOOKUP($C$2&"-"&$B89,'BD Seq Op'!$C:$H,2,FALSE))) ->  | F89: =IF($C$2=0,"",IF(ISERROR(VLOOKUP($C$2&"-"&$B89,'BD Seq Op'!$C:$H,5,FALSE)),"",VLOOKUP($C$2&"-"&$B89,'BD Seq Op'!$C:$H,5,FALSE))) -> 
A90: Não | B90: 85 | C90: =IF($C$2=0,"",IF(ISERROR(VLOOKUP($C$2&"-"&$B90,'BD Seq Op'!$C:$H,2,FALSE)),"",VLOOKUP($C$2&"-"&$B90,'BD Seq Op'!$C:$H,2,FALSE))) ->  | F90: =IF($C$2=0,"",IF(ISERROR(VLOOKUP($C$2&"-"&$B90,'BD Seq Op'!$C:$H,5,FALSE)),"",VLOOKUP($C$2&"-"&$B90,'BD Seq Op'!$C:$H,5,FALSE))) -> 
A91: Não | B91: 86 | C91: =IF($C$2=0,"",IF(ISERROR(VLOOKUP($C$2&"-"&$B91,'BD Seq Op'!$C:$H,2,FALSE)),"",VLOOKUP($C$2&"-"&$B91,'BD Seq Op'!$C:$H,2,FALSE))) ->  | F91: =IF($C$2=0,"",IF(ISERROR(VLOOKUP($C$2&"-"&$B91,'BD Seq Op'!$C:$H,5,FALSE)),"",VLOOKUP($C$2&"-"&$B91,'BD Seq Op'!$C:$H,5,FALSE))) -> 
A92: Não | B92: 87 | C92: =IF($C$2=0,"",IF(ISERROR(VLOOKUP($C$2&"-"&$B92,'BD Seq Op'!$C:$H,2,FALSE)),"",VLOOKUP($C$2&"-"&$B92,'BD Seq Op'!$C:$H,2,FALSE))) ->  | F92: =IF($C$2=0,"",IF(ISERROR(VLOOKUP($C$2&"-"&$B92,'BD Seq Op'!$C:$H,5,FALSE)),"",VLOOKUP($C$2&"-"&$B92,'BD Seq Op'!$C:$H,5,FALSE))) -> 
A93: Não | B93: 88 | C93: =IF($C$2=0,"",IF(ISERROR(VLOOKUP($C$2&"-"&$B93,'BD Seq Op'!$C:$H,2,FALSE)),"",VLOOKUP($C$2&"-"&$B93,'BD Seq Op'!$C:$H,2,FALSE))) ->  | F93: =IF($C$2=0,"",IF(ISERROR(VLOOKUP($C$2&"-"&$B93,'BD Seq Op'!$C:$H,5,FALSE)),"",VLOOKUP($C$2&"-"&$B93,'BD Seq Op'!$C:$H,5,FALSE))) -> 
A94: Não | B94: 89 | C94: =IF($C$2=0,"",IF(ISERROR(VLOOKUP($C$2&"-"&$B94,'BD Seq Op'!$C:$H,2,FALSE)),"",VLOOKUP($C$2&"-"&$B94,'BD Seq Op'!$C:$H,2,FALSE))) ->  | F94: =IF($C$2=0,"",IF(ISERROR(VLOOKUP($C$2&"-"&$B94,'BD Seq Op'!$C:$H,5,FALSE)),"",VLOOKUP($C$2&"-"&$B94,'BD Seq Op'!$C:$H,5,FALSE))) -> 
A95: Não | B95: 90 | C95: =IF($C$2=0,"",IF(ISERROR(VLOOKUP($C$2&"-"&$B95,'BD Seq Op'!$C:$H,2,FALSE)),"",VLOOKUP($C$2&"-"&$B95,'BD Seq Op'!$C:$H,2,FALSE))) ->  | F95: =IF($C$2=0,"",IF(ISERROR(VLOOKUP($C$2&"-"&$B95,'BD Seq Op'!$C:$H,5,FALSE)),"",VLOOKUP($C$2&"-"&$B95,'BD Seq Op'!$C:$H,5,FALSE))) -> 
A96: Não | B96: 91 | C96: =IF($C$2=0,"",IF(ISERROR(VLOOKUP($C$2&"-"&$B96,'BD Seq Op'!$C:$H,2,FALSE)),"",VLOOKUP($C$2&"-"&$B96,'BD Seq Op'!$C:$H,2,FALSE))) ->  | F96: =IF($C$2=0,"",IF(ISERROR(VLOOKUP($C$2&"-"&$B96,'BD Seq Op'!$C:$H,5,FALSE)),"",VLOOKUP($C$2&"-"&$B96,'BD Seq Op'!$C:$H,5,FALSE))) -> 
A97: Não | B97: 92 | C97: =IF($C$2=0,"",IF(ISERROR(VLOOKUP($C$2&"-"&$B97,'BD Seq Op'!$C:$H,2,FALSE)),"",VLOOKUP($C$2&"-"&$B97,'BD Seq Op'!$C:$H,2,FALSE))) ->  | F97: =IF($C$2=0,"",IF(ISERROR(VLOOKUP($C$2&"-"&$B97,'BD Seq Op'!$C:$H,5,FALSE)),"",VLOOKUP($C$2&"-"&$B97,'BD Seq Op'!$C:$H,5,FALSE))) -> 
A98: Não | B98: 93 | C98: =IF($C$2=0,"",IF(ISERROR(VLOOKUP($C$2&"-"&$B98,'BD Seq Op'!$C:$H,2,FALSE)),"",VLOOKUP($C$2&"-"&$B98,'BD Seq Op'!$C:$H,2,FALSE))) ->  | F98: =IF($C$2=0,"",IF(ISERROR(VLOOKUP($C$2&"-"&$B98,'BD Seq Op'!$C:$H,5,FALSE)),"",VLOOKUP($C$2&"-"&$B98,'BD Seq Op'!$C:$H,5,FALSE))) -> 
A99: Não | B99: 94 | C99: =IF($C$2=0,"",IF(ISERROR(VLOOKUP($C$2&"-"&$B99,'BD Seq Op'!$C:$H,2,FALSE)),"",VLOOKUP($C$2&"-"&$B99,'BD Seq Op'!$C:$H,2,FALSE))) ->  | F99: =IF($C$2=0,"",IF(ISERROR(VLOOKUP($C$2&"-"&$B99,'BD Seq Op'!$C:$H,5,FALSE)),"",VLOOKUP($C$2&"-"&$B99,'BD Seq Op'!$C:$H,5,FALSE))) -> 
A100: Não | B100: 95 | C100: =IF($C$2=0,"",IF(ISERROR(VLOOKUP($C$2&"-"&$B100,'BD Seq Op'!$C:$H,2,FALSE)),"",VLOOKUP($C$2&"-"&$B100,'BD Seq Op'!$C:$H,2,FALSE))) ->  | F100: =IF($C$2=0,"",IF(ISERROR(VLOOKUP($C$2&"-"&$B100,'BD Seq Op'!$C:$H,5,FALSE)),"",VLOOKUP($C$2&"-"&$B100,'BD Seq Op'!$C:$H,5,FALSE))) -> 
A101: Não | B101: 96 | C101: =IF($C$2=0,"",IF(ISERROR(VLOOKUP($C$2&"-"&$B101,'BD Seq Op'!$C:$H,2,FALSE)),"",VLOOKUP($C$2&"-"&$B101,'BD Seq Op'!$C:$H,2,FALSE))) ->  | F101: =IF($C$2=0,"",IF(ISERROR(VLOOKUP($C$2&"-"&$B101,'BD Seq Op'!$C:$H,5,FALSE)),"",VLOOKUP($C$2&"-"&$B101,'BD Seq Op'!$C:$H,5,FALSE))) -> 
A102: Não | B102: 97 | C102: =IF($C$2=0,"",IF(ISERROR(VLOOKUP($C$2&"-"&$B102,'BD Seq Op'!$C:$H,2,FALSE)),"",VLOOKUP($C$2&"-"&$B102,'BD Seq Op'!$C:$H,2,FALSE))) ->  | F102: =IF($C$2=0,"",IF(ISERROR(VLOOKUP($C$2&"-"&$B102,'BD Seq Op'!$C:$H,5,FALSE)),"",VLOOKUP($C$2&"-"&$B102,'BD Seq Op'!$C:$H,5,FALSE))) -> 
A103: Não | B103: 98 | C103: =IF($C$2=0,"",IF(ISERROR(VLOOKUP($C$2&"-"&$B103,'BD Seq Op'!$C:$H,2,FALSE)),"",VLOOKUP($C$2&"-"&$B103,'BD Seq Op'!$C:$H,2,FALSE))) ->  | F103: =IF($C$2=0,"",IF(ISERROR(VLOOKUP($C$2&"-"&$B103,'BD Seq Op'!$C:$H,5,FALSE)),"",VLOOKUP($C$2&"-"&$B103,'BD Seq Op'!$C:$H,5,FALSE))) -> 
A104: Não | B104: 99 | C104: =IF($C$2=0,"",IF(ISERROR(VLOOKUP($C$2&"-"&$B104,'BD Seq Op'!$C:$H,2,FALSE)),"",VLOOKUP($C$2&"-"&$B104,'BD Seq Op'!$C:$H,2,FALSE))) ->  | F104: =IF($C$2=0,"",IF(ISERROR(VLOOKUP($C$2&"-"&$B104,'BD Seq Op'!$C:$H,5,FALSE)),"",VLOOKUP($C$2&"-"&$B104,'BD Seq Op'!$C:$H,5,FALSE))) -> 
A105: Não | B105: 100 | C105: =IF($C$2=0,"",IF(ISERROR(VLOOKUP($C$2&"-"&$B105,'BD Seq Op'!$C:$H,2,FALSE)),"",VLOOKUP($C$2&"-"&$B105,'BD Seq Op'!$C:$H,2,FALSE))) ->  | F105: =IF($C$2=0,"",IF(ISERROR(VLOOKUP($C$2&"-"&$B105,'BD Seq Op'!$C:$H,5,FALSE)),"",VLOOKUP($C$2&"-"&$B105,'BD Seq Op'!$C:$H,5,FALSE))) -> 
A106: Não | B106: 101 | C106: =IF($C$2=0,"",IF(ISERROR(VLOOKUP($C$2&"-"&$B106,'BD Seq Op'!$C:$H,2,FALSE)),"",VLOOKUP($C$2&"-"&$B106,'BD Seq Op'!$C:$H,2,FALSE))) ->  | F106: =IF($C$2=0,"",IF(ISERROR(VLOOKUP($C$2&"-"&$B106,'BD Seq Op'!$C:$H,5,FALSE)),"",VLOOKUP($C$2&"-"&$B106,'BD Seq Op'!$C:$H,5,FALSE))) -> 
A107: Não | B107: 102 | C107: =IF($C$2=0,"",IF(ISERROR(VLOOKUP($C$2&"-"&$B107,'BD Seq Op'!$C:$H,2,FALSE)),"",VLOOKUP($C$2&"-"&$B107,'BD Seq Op'!$C:$H,2,FALSE))) ->  | F107: =IF($C$2=0,"",IF(ISERROR(VLOOKUP($C$2&"-"&$B107,'BD Seq Op'!$C:$H,5,FALSE)),"",VLOOKUP($C$2&"-"&$B107,'BD Seq Op'!$C:$H,5,FALSE))) -> 
A108: Não | B108: 103 | C108: =IF($C$2=0,"",IF(ISERROR(VLOOKUP($C$2&"-"&$B108,'BD Seq Op'!$C:$H,2,FALSE)),"",VLOOKUP($C$2&"-"&$B108,'BD Seq Op'!$C:$H,2,FALSE))) ->  | F108: =IF($C$2=0,"",IF(ISERROR(VLOOKUP($C$2&"-"&$B108,'BD Seq Op'!$C:$H,5,FALSE)),"",VLOOKUP($C$2&"-"&$B108,'BD Seq Op'!$C:$H,5,FALSE))) -> 
A109: Não | B109: 104 | C109: =IF($C$2=0,"",IF(ISERROR(VLOOKUP($C$2&"-"&$B109,'BD Seq Op'!$C:$H,2,FALSE)),"",VLOOKUP($C$2&"-"&$B109,'BD Seq Op'!$C:$H,2,FALSE))) ->  | F109: =IF($C$2=0,"",IF(ISERROR(VLOOKUP($C$2&"-"&$B109,'BD Seq Op'!$C:$H,5,FALSE)),"",VLOOKUP($C$2&"-"&$B109,'BD Seq Op'!$C:$H,5,FALSE))) -> 
A110: Não | B110: 105 | C110: =IF($C$2=0,"",IF(ISERROR(VLOOKUP($C$2&"-"&$B110,'BD Seq Op'!$C:$H,2,FALSE)),"",VLOOKUP($C$2&"-"&$B110,'BD Seq Op'!$C:$H,2,FALSE))) ->  | F110: =IF($C$2=0,"",IF(ISERROR(VLOOKUP($C$2&"-"&$B110,'BD Seq Op'!$C:$H,5,FALSE)),"",VLOOKUP($C$2&"-"&$B110,'BD Seq Op'!$C:$H,5,FALSE))) -> 
A111: Não | B111: 106 | C111: =IF($C$2=0,"",IF(ISERROR(VLOOKUP($C$2&"-"&$B111,'BD Seq Op'!$C:$H,2,FALSE)),"",VLOOKUP($C$2&"-"&$B111,'BD Seq Op'!$C:$H,2,FALSE))) ->  | F111: =IF($C$2=0,"",IF(ISERROR(VLOOKUP($C$2&"-"&$B111,'BD Seq Op'!$C:$H,5,FALSE)),"",VLOOKUP($C$2&"-"&$B111,'BD Seq Op'!$C:$H,5,FALSE))) -> 
A112: Não | B112: 107 | C112: =IF($C$2=0,"",IF(ISERROR(VLOOKUP($C$2&"-"&$B112,'BD Seq Op'!$C:$H,2,FALSE)),"",VLOOKUP($C$2&"-"&$B112,'BD Seq Op'!$C:$H,2,FALSE))) ->  | F112: =IF($C$2=0,"",IF(ISERROR(VLOOKUP($C$2&"-"&$B112,'BD Seq Op'!$C:$H,5,FALSE)),"",VLOOKUP($C$2&"-"&$B112,'BD Seq Op'!$C:$H,5,FALSE))) -> 
A113: Não | B113: 108 | C113: =IF($C$2=0,"",IF(ISERROR(VLOOKUP($C$2&"-"&$B113,'BD Seq Op'!$C:$H,2,FALSE)),"",VLOOKUP($C$2&"-"&$B113,'BD Seq Op'!$C:$H,2,FALSE))) ->  | F113: =IF($C$2=0,"",IF(ISERROR(VLOOKUP($C$2&"-"&$B113,'BD Seq Op'!$C:$H,5,FALSE)),"",VLOOKUP($C$2&"-"&$B113,'BD Seq Op'!$C:$H,5,FALSE))) -> 
A114: Não | B114: 109 | C114: =IF($C$2=0,"",IF(ISERROR(VLOOKUP($C$2&"-"&$B114,'BD Seq Op'!$C:$H,2,FALSE)),"",VLOOKUP($C$2&"-"&$B114,'BD Seq Op'!$C:$H,2,FALSE))) ->  | F114: =IF($C$2=0,"",IF(ISERROR(VLOOKUP($C$2&"-"&$B114,'BD Seq Op'!$C:$H,5,FALSE)),"",VLOOKUP($C$2&"-"&$B114,'BD Seq Op'!$C:$H,5,FALSE))) -> 
A115: Não | B115: 110 | C115: =IF($C$2=0,"",IF(ISERROR(VLOOKUP($C$2&"-"&$B115,'BD Seq Op'!$C:$H,2,FALSE)),"",VLOOKUP($C$2&"-"&$B115,'BD Seq Op'!$C:$H,2,FALSE))) ->  | F115: =IF($C$2=0,"",IF(ISERROR(VLOOKUP($C$2&"-"&$B115,'BD Seq Op'!$C:$H,5,FALSE)),"",VLOOKUP($C$2&"-"&$B115,'BD Seq Op'!$C:$H,5,FALSE))) -> 
A116: Não | B116: 111 | C116: =IF($C$2=0,"",IF(ISERROR(VLOOKUP($C$2&"-"&$B116,'BD Seq Op'!$C:$H,2,FALSE)),"",VLOOKUP($C$2&"-"&$B116,'BD Seq Op'!$C:$H,2,FALSE))) ->  | F116: =IF($C$2=0,"",IF(ISERROR(VLOOKUP($C$2&"-"&$B116,'BD Seq Op'!$C:$H,5,FALSE)),"",VLOOKUP($C$2&"-"&$B116,'BD Seq Op'!$C:$H,5,FALSE))) -> 
A117: Não | B117: 112 | C117: =IF($C$2=0,"",IF(ISERROR(VLOOKUP($C$2&"-"&$B117,'BD Seq Op'!$C:$H,2,FALSE)),"",VLOOKUP($C$2&"-"&$B117,'BD Seq Op'!$C:$H,2,FALSE))) ->  | F117: =IF($C$2=0,"",IF(ISERROR(VLOOKUP($C$2&"-"&$B117,'BD Seq Op'!$C:$H,5,FALSE)),"",VLOOKUP($C$2&"-"&$B117,'BD Seq Op'!$C:$H,5,FALSE))) -> 
A118: Não | B118: 113 | C118: =IF($C$2=0,"",IF(ISERROR(VLOOKUP($C$2&"-"&$B118,'BD Seq Op'!$C:$H,2,FALSE)),"",VLOOKUP($C$2&"-"&$B118,'BD Seq Op'!$C:$H,2,FALSE))) ->  | F118: =IF($C$2=0,"",IF(ISERROR(VLOOKUP($C$2&"-"&$B118,'BD Seq Op'!$C:$H,5,FALSE)),"",VLOOKUP($C$2&"-"&$B118,'BD Seq Op'!$C:$H,5,FALSE))) -> 
A119: Não | B119: 114 | C119: =IF($C$2=0,"",IF(ISERROR(VLOOKUP($C$2&"-"&$B119,'BD Seq Op'!$C:$H,2,FALSE)),"",VLOOKUP($C$2&"-"&$B119,'BD Seq Op'!$C:$H,2,FALSE))) ->  | F119: =IF($C$2=0,"",IF(ISERROR(VLOOKUP($C$2&"-"&$B119,'BD Seq Op'!$C:$H,5,FALSE)),"",VLOOKUP($C$2&"-"&$B119,'BD Seq Op'!$C:$H,5,FALSE))) -> 
A120: Não | B120: 115 | C120: =IF($C$2=0,"",IF(ISERROR(VLOOKUP($C$2&"-"&$B120,'BD Seq Op'!$C:$H,2,FALSE)),"",VLOOKUP($C$2&"-"&$B120,'BD Seq Op'!$C:$H,2,FALSE))) ->  | F120: =IF($C$2=0,"",IF(ISERROR(VLOOKUP($C$2&"-"&$B120,'BD Seq Op'!$C:$H,5,FALSE)),"",VLOOKUP($C$2&"-"&$B120,'BD Seq Op'!$C:$H,5,FALSE))) -> 
A121: Não | B121: 116 | C121: =IF($C$2=0,"",IF(ISERROR(VLOOKUP($C$2&"-"&$B121,'BD Seq Op'!$C:$H,2,FALSE)),"",VLOOKUP($C$2&"-"&$B121,'BD Seq Op'!$C:$H,2,FALSE))) ->  | F121: =IF($C$2=0,"",IF(ISERROR(VLOOKUP($C$2&"-"&$B121,'BD Seq Op'!$C:$H,5,FALSE)),"",VLOOKUP($C$2&"-"&$B121,'BD Seq Op'!$C:$H,5,FALSE))) -> 
A122: Não | B122: 117 | C122: =IF($C$2=0,"",IF(ISERROR(VLOOKUP($C$2&"-"&$B122,'BD Seq Op'!$C:$H,2,FALSE)),"",VLOOKUP($C$2&"-"&$B122,'BD Seq Op'!$C:$H,2,FALSE))) ->  | F122: =IF($C$2=0,"",IF(ISERROR(VLOOKUP($C$2&"-"&$B122,'BD Seq Op'!$C:$H,5,FALSE)),"",VLOOKUP($C$2&"-"&$B122,'BD Seq Op'!$C:$H,5,FALSE))) -> 
A123: Não | B123: 118 | C123: =IF($C$2=0,"",IF(ISERROR(VLOOKUP($C$2&"-"&$B123,'BD Seq Op'!$C:$H,2,FALSE)),"",VLOOKUP($C$2&"-"&$B123,'BD Seq Op'!$C:$H,2,FALSE))) ->  | F123: =IF($C$2=0,"",IF(ISERROR(VLOOKUP($C$2&"-"&$B123,'BD Seq Op'!$C:$H,5,FALSE)),"",VLOOKUP($C$2&"-"&$B123,'BD Seq Op'!$C:$H,5,FALSE))) -> 
A124: Não | B124: 119 | C124: =IF($C$2=0,"",IF(ISERROR(VLOOKUP($C$2&"-"&$B124,'BD Seq Op'!$C:$H,2,FALSE)),"",VLOOKUP($C$2&"-"&$B124,'BD Seq Op'!$C:$H,2,FALSE))) ->  | F124: =IF($C$2=0,"",IF(ISERROR(VLOOKUP($C$2&"-"&$B124,'BD Seq Op'!$C:$H,5,FALSE)),"",VLOOKUP($C$2&"-"&$B124,'BD Seq Op'!$C:$H,5,FALSE))) -> 
A125: Não | B125: 120 | C125: =IF($C$2=0,"",IF(ISERROR(VLOOKUP($C$2&"-"&$B125,'BD Seq Op'!$C:$H,2,FALSE)),"",VLOOKUP($C$2&"-"&$B125,'BD Seq Op'!$C:$H,2,FALSE))) ->  | F125: =IF($C$2=0,"",IF(ISERROR(VLOOKUP($C$2&"-"&$B125,'BD Seq Op'!$C:$H,5,FALSE)),"",VLOOKUP($C$2&"-"&$B125,'BD Seq Op'!$C:$H,5,FALSE))) -> 
A126: Sim | E126: Tempo Total => | F126: =SUM(F6:F125) -> 0
D130: =IF(C130=0,"",IF(ISERROR(VLOOKUP(C130,Operações!A:D,2,FALSE)),"-",VLOOKUP(C130,Operações!A:D,2,FALSE))) ->  | E130: =IF(C130=0,"",IF(ISERROR(VLOOKUP(C130,Operações!A:D,3,FALSE)),"-",VLOOKUP(C130,Operações!A:D,3,FALSE))) ->  | F130: =IF(C130=0,"",IF(ISERROR(VLOOKUP(C130,Operações!A:D,4,FALSE)),"-",VLOOKUP(C130,Operações!A:D,4,FALSE))) -> 

Sheet BD Seq Op
A1: Seq. . | B1: Ref. | C1: Concatenar | D1: Descrição das Operações | E1: Tipo Máq. | F1: Tipo Apar. | G1: Tempo Padrão | H1: Data do Cadastro | I1: Somase Máquina | J1: Somase Aparelho
A2: 1 | B2: 10000 | C2: =CONCATENATE(B2,"-",A2) -> 10000-1 | D2: Bainha 2 ag. mangas | G2: 0.39 | H2: 2016-09-15 | I2: =IF(E2=0,0,CONCATENATE(B2,"-",E2)) -> 0 | J2: =IF(F2=0,0,CONCATENATE(B2,"-",F2)) -> 0
A3: 2 | B3: 10000 | C3: 10000-2 | D3: Separar mangas c/ tesoura | G3: 0.1 | H3: 2016-09-15 | I3: 0 | J3: 0
A4: 3 | B4: 10000 | C4: 10000-3 | D4: Fechar ombros e laterais | G4: 0.75 | H4: 2016-09-15 | I4: 0 | J4: 0
A5: 4 | B5: 10000 | C5: 10000-4 | D5: Fechar ribana decote e pregar | G5: 0.5 | H5: 2016-09-15 | I5: 0 | J5: 0
A6: 5 | B6: 10000 | C6: 10000-5 | D6: Rematar mangas | G6: 0.8 | H6: 2016-09-15 | I6: 0 | J6: 0
A7: 6 | B7: 10000 | C7: 10000-6 | D7: Pregar mangas fechada | G7: 0.7 | H7: 2016-09-15 | I7: 0 | J7: 0
A8: 7 | B8: 10000 | C8: 10000-7 | D8: Bainha 2 ag. barra | G8: 0.47 | H8: 2016-09-15 | I8: 0 | J8: 0
A9: 8 | B9: 10000 | C9: 10000-8 | D9: Revisar e limpar fios | G9: 1.1 | H9: 2016-09-15 | I9: 0 | J9: 0
A10: 9 | B10: 10000 | C10: 10000-9 | D10: Colocar tag na peça | G10: 0.16 | H10: 2016-09-15 | I10: 0 | J10: 0
A11: 10 | B11: 10000 | C11: 10000-10 | D11: Dobrar peça e embalar | G11: 0.41 | H11: 2016-09-15 | I11: 0 | J11: 0
A12: 1 | B12: 10150 | C12: 10150-1 | D12: Fazer bainha mangas | G12: 0.95 | H12: 2016-08-27 | I12: 0 | J12: 0
A13: 2 | B13: 10150 | C13: 10150-2 | D13: Fechar ombros | G13: 0.42 | H13: 2016-08-27 | I13: 0 | J13: 0
A14: 3 | B14: 10150 | C14: 10150-3 | D14: Fechar laterais c/ etiq | G14: 0.65 | H14: 2016-08-27 | I14: 0 | J14: 0
A15: 4 | B15: 10150 | C15: 10150-4 | D15: Fechar/pregar mangas tubular | G15: 1.85 | H15: 2016-08-27 | I15: 0 | J15: 0
A16: 5 | B16: 10150 | C16: 10150-5 | D16: Fechar/pregar ribana decote | G16: 1.25 | H16: 2016-08-27 | I16: 0 | J16: 0
A17: 6 | B17: 10150 | C17: 10150-6 | D17: Pregar etiqueta decote | G17: 0.45 | H17: 2016-08-27 | I17: 0 | J17: 0
A18: 7 | B18: 10150 | C18: 10150-7 | D18: Fazer bainha barra | G18: 0.6 | H18: 2016-08-27 | I18: 0 | J18: 0
A19: 8 | B19: 10150 | C19: 10150-8 | D19: Limpar fios | G19: 0.98 | H19: 2016-08-27 | I19: 0 | J19: 0
A20: 9 | B20: 10150 | C20: 10150-9 | D20: Revisar | G20: 0.8 | H20: 2016-08-27 | I20: 0 | J20: 0
A21: 10 | B21: 10150 | C21: 10150-10 | D21: Dobrar peça e embalar | G21: 0.45 | H21: 2016-08-27 | I21: 0 | J21: 0

Sheet Ficha Acompanhamento
G1: =IF(U1=TRUE,"Tempo para Produzir","") ->  | L1: 0.1 | M1: Cor : | U1: FALSE
G2: =IF(U1=TRUE,"Operador(a)","") ->  | H2: =IF(U1=TRUE,"Dias","") ->  | I2: =IF(U1=TRUE,"+ Horas","") ->  | K2: Qtde Peças : | M2: Tam. : | U2: FALSE
G3: =IF(U1=TRUE,L5,"") ->  | H3: =IF(G3="","",IF(OR(L5=0,M5=0),0,V5)) ->  | I3: =IF(G3="","",AB5) -> 
K4: Total Min. | L4: Operador(a) | M4: Min./dia | N4: Dias | O4: + Horas | P4: Qtde peças
K5: =F129 -> 6720 | N5: =V5 -> 0 | O5: =AB5 -> 0:00 | U5: =IF(OR(L5=0,M5=0),0,K5/(L5*M5)) -> 0 | V5: =ROUNDDOWN(U5,0) -> 0 | W5: =U5-V5 -> 0 | X5: =(W5*M5)/60 -> 0 | Y5: =ROUNDDOWN(X5,0) -> 0 | Z5: =(X5-Y5)*60 -> 0 | AA5: =ROUNDDOWN(Z5,0) -> 0 | AB5: =IF(AA5<10,Y5&":0"&AA5,Y5&":"&AA5) -> 0:00
B6: =S18 -> *** CLIENTE ESPECIAL *** *** Verificar instruções das etiquetas conforme ficha técnica *** | P6: =IF(AND(P5=0,U1=TRUE),"Informe a qtde de peças.","") -> 
A7: Filtro | B7: Seq. | C7: Descrição das operações | D7: Tempo Padrão | E7: Pçs/h 100% | F7: Código Costureira | G7: Código Costureira | H7: Qtde Peças | I7: Tempo / Pacote
A8: Sim | B8: Seq. | C8: Descrição das Operações | D8: Tempo Padrão | E8: Pçs/h 100% | F8: Código Operador(a) | G8: Código Operador(a) | H8: Qtde Peças | I8: Tempo / Pacote
A9: =IF(C9=0,"Não","Sim") -> Sim | B9: 1 | C9: =IF($L$1=0,0,IF(ISERROR(VLOOKUP($U$11&"-"&B9,'BD Seq Op'!C:H,2,FALSE)),0,VLOOKUP($U$11&"-"&B9,'BD Seq Op'!C:H,2,FALSE))) -> Fazer bainha mangas | D9: =IF($L$1=0,0,IF(ISERROR(VLOOKUP($U$11&"-"&B9,'BD Seq Op'!C:H,5,FALSE)),0,VLOOKUP($U$11&"-"&B9,'BD Seq Op'!C:H,5,FALSE))) -> 0.95 | E9: =IF(C9=0,"",IF($U$1=TRUE,(60*$L$5)/D9,60/D9)) -> 63.15789474 | H9: =IF(C9=0,"",IF($U$1=TRUE,$P$5,IF($L$2=0,$V$15,$L$2))) -> 800 | I9: =IF(C9=0,"",IF(AE9=TRUE,0,D9*H9)) -> 760 | R9: Nº OP : | S9: =IF(L1=0,"",CONCATENATE(R9,U9)) -> Nº OP : 0,1 | U9: =IF(L1=0,"",L1) -> 0.1 | AE9: FALSE
A10: =IF(C10=0,"Não","Sim") -> Sim | B10: 2 | C10: =IF($L$1=0,0,IF(ISERROR(VLOOKUP($U$11&"-"&B10,'BD Seq Op'!C:H,2,FALSE)),0,VLOOKUP($U$11&"-"&B10,'BD Seq Op'!C:H,2,FALSE))) -> Fechar ombros | D10: =IF($L$1=0,0,IF(ISERROR(VLOOKUP($U$11&"-"&B10,'BD Seq Op'!C:H,5,FALSE)),0,VLOOKUP($U$11&"-"&B10,'BD Seq Op'!C:H,5,FALSE))) -> 0.42 | E10: 142.8571429 | H10: =IF(C10=0,"",IF($U$1=TRUE,$P$5,IF($L$2=0,$V$15,$L$2))) -> 800 | I10: =IF(C10=0,"",IF(AE10=TRUE,0,D10*H10)) -> 336 | R10: Data Emissão : | S10: =IF(L1=0,"",IF(U10=0,R10,CONCATENATE(R10,TEXT(U10,"dd/mm/aaaa")))) -> Data Emissão : 05/09/2016 | U10: =IF($L$1=0,"",IF(ISERROR(VLOOKUP($L$1,'BD da OP'!$A:$AC,3,FALSE)),"",VLOOKUP($L$1,'BD da OP'!$A:$AC,3,FALSE))) -> 2016-09-05 | AE10: FALSE
A11: Sim | B11: 3 | C11: =IF($L$1=0,0,IF(ISERROR(VLOOKUP($U$11&"-"&B11,'BD Seq Op'!C:H,2,FALSE)),0,VLOOKUP($U$11&"-"&B11,'BD Seq Op'!C:H,2,FALSE))) -> Fechar laterais c/ etiq | D11: =IF($L$1=0,0,IF(ISERROR(VLOOKUP($U$11&"-"&B11,'BD Seq Op'!C:H,5,FALSE)),0,VLOOKUP($U$11&"-"&B11,'BD Seq Op'!C:H,5,FALSE))) -> 0.65 | E11: 92.30769231 | H11: 800 | I11: 520 | R11: Ref. : | S11: =IF(L1=0,"",CONCATENATE(R11,U11)) -> Ref. : 10150 | U11: =IF($L$1=0,"",IF(ISERROR(VLOOKUP($L$1,'BD da OP'!$A:$AC,4,FALSE)),"",VLOOKUP($L$1,'BD da OP'!$A:$AC,4,FALSE))) -> 10150 | AE11: FALSE
A12: Sim | B12: 4 | C12: =IF($L$1=0,0,IF(ISERROR(VLOOKUP($U$11&"-"&B12,'BD Seq Op'!C:H,2,FALSE)),0,VLOOKUP($U$11&"-"&B12,'BD Seq Op'!C:H,2,FALSE))) -> Fechar/pregar mangas tubular | D12: =IF($L$1=0,0,IF(ISERROR(VLOOKUP($U$11&"-"&B12,'BD Seq Op'!C:H,5,FALSE)),0,VLOOKUP($U$11&"-"&B12,'BD Seq Op'!C:H,5,FALSE))) -> 1.85 | E12: 32.43243243 | H12: 800 | I12: 1480 | R12: Descr. Ref. : | S12: =U12 -> Camiseta com estampa na frente | U12: =IF($L$1=0,"",IF(ISERROR(VLOOKUP(U11,Ref!A:B,2,FALSE)),"",VLOOKUP(U11,Ref!A:B,2,FALSE))) -> Camiseta com estampa na frente | AE12: FALSE
A13: Sim | B13: 5 | C13: =IF($L$1=0,0,IF(ISERROR(VLOOKUP($U$11&"-"&B13,'BD Seq Op'!C:H,2,FALSE)),0,VLOOKUP($U$11&"-"&B13,'BD Seq Op'!C:H,2,FALSE))) -> Fechar/pregar ribana decote | D13: =IF($L$1=0,0,IF(ISERROR(VLOOKUP($U$11&"-"&B13,'BD Seq Op'!C:H,5,FALSE)),0,VLOOKUP($U$11&"-"&B13,'BD Seq Op'!C:H,5,FALSE))) -> 1.25 | E13: 48 | H13: 800 | I13: 1000 | R13: Cor : | S13: =IF(L1=0,"",IF(U2=TRUE,"",IF(N1=0,CONCATENATE(R13,U13),CONCATENATE(R13,N1)))) -> Cor : Branco | U13: =IF($L$1=0,"",IF(ISERROR(VLOOKUP($L$1,'BD da OP'!$A:$AC,6,FALSE)),"",VLOOKUP($L$1,'BD da OP'!$A:$AC,6,FALSE))) -> Branco | V13: =IF($L$1=0,"",IF(ISERROR(VLOOKUP($L$1,'BD da OP'!$A:$AC,7,FALSE)),"",VLOOKUP($L$1,'BD da OP'!$A:$AC,7,FALSE))) -> Laranja | W13: =IF($L$1=0,"",IF(ISERROR(VLOOKUP($L$1,'BD da OP'!$A:$AC,8,FALSE)),"",VLOOKUP($L$1,'BD da OP'!$A:$AC,8,FALSE))) -> Marinho | X13: =IF($L$1=0,"",IF(ISERROR(VLOOKUP($L$1,'BD da OP'!$A:$AC,9,FALSE)),"",VLOOKUP($L$1,'BD da OP'!$A:$AC,9,FALSE))) -> 0 | Y13: =IF($L$1=0,"",IF(ISERROR(VLOOKUP($L$1,'BD da OP'!$A:$AC,10,FALSE)),"",VLOOKUP($L$1,'BD da OP'!$A:$AC,10,FALSE))) -> 0 | Z13: =IF($L$1=0,"",IF(ISERROR(VLOOKUP($L$1,'BD da OP'!$A:$AC,11,FALSE)),"",VLOOKUP($L$1,'BD da OP'!$A:$AC,11,FALSE))) -> 0 | AA13: =IF($L$1=0,"",IF(ISERROR(VLOOKUP($L$1,'BD da OP'!$A:$AC,12,FALSE)),"",VLOOKUP($L$1,'BD da OP'!$A:$AC,12,FALSE))) -> 0 | AB13: =IF($L$1=0,"",IF(ISERROR(VLOOKUP($L$1,'BD da OP'!$A:$AC,13,FALSE)),"",VLOOKUP($L$1,'BD da OP'!$A:$AC,13,FALSE))) -> 0 | AC13: =IF($L$1=0,"",IF(ISERROR(VLOOKUP($L$1,'BD da OP'!$A:$AC,14,FALSE)),"",VLOOKUP($L$1,'BD da OP'!$A:$AC,14,FALSE))) -> 0 | AD13: =IF($L$1=0,"",IF(ISERROR(VLOOKUP($L$1,'BD da OP'!$A:$AC,15,FALSE)),"",VLOOKUP($L$1,'BD da OP'!$A:$AC,15,FALSE))) -> 0 | AE13: FALSE
A14: Sim | B14: 6 | C14: =IF($L$1=0,0,IF(ISERROR(VLOOKUP($U$11&"-"&B14,'BD Seq Op'!C:H,2,FALSE)),0,VLOOKUP($U$11&"-"&B14,'BD Seq Op'!C:H,2,FALSE))) -> Pregar etiqueta decote | D14: =IF($L$1=0,0,IF(ISERROR(VLOOKUP($U$11&"-"&B14,'BD Seq Op'!C:H,5,FALSE)),0,VLOOKUP($U$11&"-"&B14,'BD Seq Op'!C:H,5,FALSE))) -> 0.45 | E14: 133.3333333 | H14: 800 | I14: 360 | R14: Tam. : | S14: =IF(L1=0,"",IF(U2=TRUE,"",IF(N2=0,CONCATENATE(R14,UPPER(U14)),CONCATENATE(R14,UPPER(N2))))) -> Tam. : PP | U14: =IF($L$1=0,"",IF(ISERROR(VLOOKUP($L$1,'BD da OP'!$A:$AC,16,FALSE)),"",VLOOKUP($L$1,'BD da OP'!$A:$AC,16,FALSE))) -> PP | V14: =IF($L$1=0,"",IF(ISERROR(VLOOKUP($L$1,'BD da OP'!$A:$AC,17,FALSE)),"",VLOOKUP($L$1,'BD da OP'!$A:$AC,17,FALSE))) -> P | W14: =IF($L$1=0,"",IF(ISERROR(VLOOKUP($L$1,'BD da OP'!$A:$AC,18,FALSE)),"",VLOOKUP($L$1,'BD da OP'!$A:$AC,18,FALSE))) -> M | X14: =IF($L$1=0,"",IF(ISERROR(VLOOKUP($L$1,'BD da OP'!$A:$AC,19,FALSE)),"",VLOOKUP($L$1,'BD da OP'!$A:$AC,19,FALSE))) -> G | Y14: =IF($L$1=0,"",IF(ISERROR(VLOOKUP($L$1,'BD da OP'!$A:$AC,20,FALSE)),"",VLOOKUP($L$1,'BD da OP'!$A:$AC,20,FALSE))) -> 0 | Z14: =IF($L$1=0,"",IF(ISERROR(VLOOKUP($L$1,'BD da OP'!$A:$AC,21,FALSE)),"",VLOOKUP($L$1,'BD da OP'!$A:$AC,21,FALSE))) -> 0 | AA14: =IF($L$1=0,"",IF(ISERROR(VLOOKUP($L$1,'BD da OP'!$A:$AC,22,FALSE)),"",VLOOKUP($L$1,'BD da OP'!$A:$AC,22,FALSE))) -> 0 | AB14: =IF($L$1=0,"",IF(ISERROR(VLOOKUP($L$1,'BD da OP'!$A:$AC,23,FALSE)),"",VLOOKUP($L$1,'BD da OP'!$A:$AC,23,FALSE))) -> 0 | AC14: =IF($L$1=0,"",IF(ISERROR(VLOOKUP($L$1,'BD da OP'!$A:$AC,24,FALSE)),"",VLOOKUP($L$1,'BD da OP'!$A:$AC,24,FALSE))) -> 0 | AD14: =IF($L$1=0,"",IF(ISERROR(VLOOKUP($L$1,'BD da OP'!$A:$AC,25,FALSE)),"",VLOOKUP($L$1,'BD da OP'!$A:$AC,25,FALSE))) -> 0 | AE14: FALSE
A15: Sim | B15: 7 | C15: =IF($L$1=0,0,IF(ISERROR(VLOOKUP($U$11&"-"&B15,'BD Seq Op'!C:H,2,FALSE)),0,VLOOKUP($U$11&"-"&B15,'BD Seq Op'!C:H,2,FALSE))) -> Fazer bainha barra | D15: =IF($L$1=0,0,IF(ISERROR(VLOOKUP($U$11&"-"&B15,'BD Seq Op'!C:H,5,FALSE)),0,VLOOKUP($U$11&"-"&B15,'BD Seq Op'!C:H,5,FALSE))) -> 0.6 | E15: 100 | H15: 800 | I15: 480 | R15: Qtde Peças : | S15: =IF(L1=0,"",IF(U15<1000,CONCATENATE(R15,U15),CONCATENATE(R15,TEXT(U15,"0.000")))) -> Qtde Peças : 800 | U15: =IF(U1=TRUE,P5,IF(L2=0,V15,L2)) -> 800 | V15: =IF($L$1=0,"",IF(ISERROR(VLOOKUP($L$1,'BD da OP'!$A:$AC,26,FALSE)),"",VLOOKUP($L$1,'BD da OP'!$A:$AC,26,FALSE))) -> 800 | AE15: FALSE
A16: Sim | B16: 8 | C16: =IF($L$1=0,0,IF(ISERROR(VLOOKUP($U$11&"-"&B16,'BD Seq Op'!C:H,2,FALSE)),0,VLOOKUP($U$11&"-"&B16,'BD Seq Op'!C:H,2,FALSE))) -> Limpar fios | D16: =IF($L$1=0,0,IF(ISERROR(VLOOKUP($U$11&"-"&B16,'BD Seq Op'!C:H,5,FALSE)),0,VLOOKUP($U$11&"-"&B16,'BD Seq Op'!C:H,5,FALSE))) -> 0.98 | E16: 61.2244898 | H16: 800 | I16: 784 | R16: =CONCATENATE(Cliente!F1," : ") -> Cliente : | S16: =IF(L1=0,"",IF(U16=0,"",CONCATENATE(R16,U16))) -> Cliente : Magazine de Confecções Ltda. | U16: =IF($L$1=0,"",IF(ISERROR(VLOOKUP($L$1,'BD da OP'!$A:$AC,27,FALSE)),"",VLOOKUP($L$1,'BD da OP'!$A:$AC,27,FALSE))) -> Magazine de Confecções Ltda. | AE16: FALSE
A17: Sim | B17: 9 | C17: =IF($L$1=0,0,IF(ISERROR(VLOOKUP($U$11&"-"&B17,'BD Seq Op'!C:H,2,FALSE)),0,VLOOKUP($U$11&"-"&B17,'BD Seq Op'!C:H,2,FALSE))) -> Revisar | D17: =IF($L$1=0,0,IF(ISERROR(VLOOKUP($U$11&"-"&B17,'BD Seq Op'!C:H,5,FALSE)),0,VLOOKUP($U$11&"-"&B17,'BD Seq Op'!C:H,5,FALSE))) -> 0.8 | E17: 75 | H17: 800 | I17: 640 | R17: Previsão Entrega : | S17: =IF(L1=0,"",IF(U17=0,"Previsão Entrega : não definida",CONCATENATE(R17,TEXT(U17,"dd/mm/aaaa")))) -> Previsão Entrega : 05/10/2016 | U17: =IF($L$1=0,"",IF(ISERROR(VLOOKUP($L$1,'BD da OP'!$A:$AC,28,FALSE)),"",VLOOKUP($L$1,'BD da OP'!$A:$AC,28,FALSE))) -> 2016-10-05 | AE17: FALSE
A18: Sim | B18: 10 | C18: =IF($L$1=0,0,IF(ISERROR(VLOOKUP($U$11&"-"&B18,'BD Seq Op'!C:H,2,FALSE)),0,VLOOKUP($U$11&"-"&B18,'BD Seq Op'!C:H,2,FALSE))) -> Dobrar peça e embalar | D18: =IF($L$1=0,0,IF(ISERROR(VLOOKUP($U$11&"-"&B18,'BD Seq Op'!C:H,5,FALSE)),0,VLOOKUP($U$11&"-"&B18,'BD Seq Op'!C:H,5,FALSE))) -> 0.45 | E18: 133.3333333 | H18: 800 | I18: 360 | R18: Observações : | S18: =IF(U18=0,"",U18) -> *** CLIENTE ESPECIAL *** *** Verificar instruções das etiquetas conforme ficha técnica *** | U18: =IF($L$1=0,"",IF(ISERROR(VLOOKUP($L$1,'BD da OP'!$A:$AC,29,FALSE)),"",VLOOKUP($L$1,'BD da OP'!$A:$AC,29,FALSE))) -> *** CLIENTE ESPECIAL *** *** Verificar instruções das etiquetas conforme ficha técnica *** | AE18: FALSE
A19: Não | B19: 11 | C19: =IF($L$1=0,0,IF(ISERROR(VLOOKUP($U$11&"-"&B19,'BD Seq Op'!C:H,2,FALSE)),0,VLOOKUP($U$11&"-"&B19,'BD Seq Op'!C:H,2,FALSE))) -> 0 | D19: =IF($L$1=0,0,IF(ISERROR(VLOOKUP($U$11&"-"&B19,'BD Seq Op'!C:H,5,FALSE)),0,VLOOKUP($U$11&"-"&B19,'BD Seq Op'!C:H,5,FALSE))) -> 0 | AE19: FALSE
A20: Não | B20: 12 | C20: =IF($L$1=0,0,IF(ISERROR(VLOOKUP($U$11&"-"&B20,'BD Seq Op'!C:H,2,FALSE)),0,VLOOKUP($U$11&"-"&B20,'BD Seq Op'!C:H,2,FALSE))) -> 0 | D20: =IF($L$1=0,0,IF(ISERROR(VLOOKUP($U$11&"-"&B20,'BD Seq Op'!C:H,5,FALSE)),0,VLOOKUP($U$11&"-"&B20,'BD Seq Op'!C:H,5,FALSE))) -> 0 | AE20: FALSE
A21: Não | B21: 13 | C21: =IF($L$1=0,0,IF(ISERROR(VLOOKUP($U$11&"-"&B21,'BD Seq Op'!C:H,2,FALSE)),0,VLOOKUP($U$11&"-"&B21,'BD Seq Op'!C:H,2,FALSE))) -> 0 | D21: =IF($L$1=0,0,IF(ISERROR(VLOOKUP($U$11&"-"&B21,'BD Seq Op'!C:H,5,FALSE)),0,VLOOKUP($U$11&"-"&B21,'BD Seq Op'!C:H,5,FALSE))) -> 0 | AE21: FALSE
A22: Não | B22: 14 | C22: =IF($L$1=0,0,IF(ISERROR(VLOOKUP($U$11&"-"&B22,'BD Seq Op'!C:H,2,FALSE)),0,VLOOKUP($U$11&"-"&B22,'BD Seq Op'!C:H,2,FALSE))) -> 0 | D22: =IF($L$1=0,0,IF(ISERROR(VLOOKUP($U$11&"-"&B22,'BD Seq Op'!C:H,5,FALSE)),0,VLOOKUP($U$11&"-"&B22,'BD Seq Op'!C:H,5,FALSE))) -> 0 | AE22: FALSE
A23: Não | B23: 15 | C23: =IF($L$1=0,0,IF(ISERROR(VLOOKUP($U$11&"-"&B23,'BD Seq Op'!C:H,2,FALSE)),0,VLOOKUP($U$11&"-"&B23,'BD Seq Op'!C:H,2,FALSE))) -> 0 | D23: =IF($L$1=0,0,IF(ISERROR(VLOOKUP($U$11&"-"&B23,'BD Seq Op'!C:H,5,FALSE)),0,VLOOKUP($U$11&"-"&B23,'BD Seq Op'!C:H,5,FALSE))) -> 0 | AE23: FALSE
A24: Não | B24: 16 | C24: =IF($L$1=0,0,IF(ISERROR(VLOOKUP($U$11&"-"&B24,'BD Seq Op'!C:H,2,FALSE)),0,VLOOKUP($U$11&"-"&B24,'BD Seq Op'!C:H,2,FALSE))) -> 0 | D24: =IF($L$1=0,0,IF(ISERROR(VLOOKUP($U$11&"-"&B24,'BD Seq Op'!C:H,5,FALSE)),0,VLOOKUP($U$11&"-"&B24,'BD Seq Op'!C:H,5,FALSE))) -> 0 | AE24: FALSE
A25: Não | B25: 17 | C25: =IF($L$1=0,0,IF(ISERROR(VLOOKUP($U$11&"-"&B25,'BD Seq Op'!C:H,2,FALSE)),0,VLOOKUP($U$11&"-"&B25,'BD Seq Op'!C:H,2,FALSE))) -> 0 | D25: =IF($L$1=0,0,IF(ISERROR(VLOOKUP($U$11&"-"&B25,'BD Seq Op'!C:H,5,FALSE)),0,VLOOKUP($U$11&"-"&B25,'BD Seq Op'!C:H,5,FALSE))) -> 0 | AE25: FALSE
A26: Não | B26: 18 | C26: =IF($L$1=0,0,IF(ISERROR(VLOOKUP($U$11&"-"&B26,'BD Seq Op'!C:H,2,FALSE)),0,VLOOKUP($U$11&"-"&B26,'BD Seq Op'!C:H,2,FALSE))) -> 0 | D26: =IF($L$1=0,0,IF(ISERROR(VLOOKUP($U$11&"-"&B26,'BD Seq Op'!C:H,5,FALSE)),0,VLOOKUP($U$11&"-"&B26,'BD Seq Op'!C:H,5,FALSE))) -> 0 | AE26: FALSE
A27: Não | B27: 19 | C27: =IF($L$1=0,0,IF(ISERROR(VLOOKUP($U$11&"-"&B27,'BD Seq Op'!C:H,2,FALSE)),0,VLOOKUP($U$11&"-"&B27,'BD Seq Op'!C:H,2,FALSE))) -> 0 | D27: =IF($L$1=0,0,IF(ISERROR(VLOOKUP($U$11&"-"&B27,'BD Seq Op'!C:H,5,FALSE)),0,VLOOKUP($U$11&"-"&B27,'BD Seq Op'!C:H,5,FALSE))) -> 0 | AE27: FALSE
A28: Não | B28: 20 | C28: =IF($L$1=0,0,IF(ISERROR(VLOOKUP($U$11&"-"&B28,'BD Seq Op'!C:H,2,FALSE)),0,VLOOKUP($U$11&"-"&B28,'BD Seq Op'!C:H,2,FALSE))) -> 0 | D28: =IF($L$1=0,0,IF(ISERROR(VLOOKUP($U$11&"-"&B28,'BD Seq Op'!C:H,5,FALSE)),0,VLOOKUP($U$11&"-"&B28,'BD Seq Op'!C:H,5,FALSE))) -> 0 | AE28: FALSE
A29: Não | B29: 21 | C29: =IF($L$1=0,0,IF(ISERROR(VLOOKUP($U$11&"-"&B29,'BD Seq Op'!C:H,2,FALSE)),0,VLOOKUP($U$11&"-"&B29,'BD Seq Op'!C:H,2,FALSE))) -> 0 | D29: =IF($L$1=0,0,IF(ISERROR(VLOOKUP($U$11&"-"&B29,'BD Seq Op'!C:H,5,FALSE)),0,VLOOKUP($U$11&"-"&B29,'BD Seq Op'!C:H,5,FALSE))) -> 0 | AE29: FALSE
A30: Não | B30: 22 | C30: =IF($L$1=0,0,IF(ISERROR(VLOOKUP($U$11&"-"&B30,'BD Seq Op'!C:H,2,FALSE)),0,VLOOKUP($U$11&"-"&B30,'BD Seq Op'!C:H,2,FALSE))) -> 0 | D30: =IF($L$1=0,0,IF(ISERROR(VLOOKUP($U$11&"-"&B30,'BD Seq Op'!C:H,5,FALSE)),0,VLOOKUP($U$11&"-"&B30,'BD Seq Op'!C:H,5,FALSE))) -> 0 | AE30: FALSE
A31: Não | B31: 23 | C31: =IF($L$1=0,0,IF(ISERROR(VLOOKUP($U$11&"-"&B31,'BD Seq Op'!C:H,2,FALSE)),0,VLOOKUP($U$11&"-"&B31,'BD Seq Op'!C:H,2,FALSE))) -> 0 | D31: =IF($L$1=0,0,IF(ISERROR(VLOOKUP($U$11&"-"&B31,'BD Seq Op'!C:H,5,FALSE)),0,VLOOKUP($U$11&"-"&B31,'BD Seq Op'!C:H,5,FALSE))) -> 0 | AE31: FALSE
A32: Não | B32: 24 | C32: =IF($L$1=0,0,IF(ISERROR(VLOOKUP($U$11&"-"&B32,'BD Seq Op'!C:H,2,FALSE)),0,VLOOKUP($U$11&"-"&B32,'BD Seq Op'!C:H,2,FALSE))) -> 0 | D32: =IF($L$1=0,0,IF(ISERROR(VLOOKUP($U$11&"-"&B32,'BD Seq Op'!C:H,5,FALSE)),0,VLOOKUP($U$11&"-"&B32,'BD Seq Op'!C:H,5,FALSE))) -> 0 | AE32: FALSE
A33: Não | B33: 25 | C33: =IF($L$1=0,0,IF(ISERROR(VLOOKUP($U$11&"-"&B33,'BD Seq Op'!C:H,2,FALSE)),0,VLOOKUP($U$11&"-"&B33,'BD Seq Op'!C:H,2,FALSE))) -> 0 | D33: =IF($L$1=0,0,IF(ISERROR(VLOOKUP($U$11&"-"&B33,'BD Seq Op'!C:H,5,FALSE)),0,VLOOKUP($U$11&"-"&B33,'BD Seq Op'!C:H,5,FALSE))) -> 0 | AE33: FALSE
A34: Não | B34: 26 | C34: =IF($L$1=0,0,IF(ISERROR(VLOOKUP($U$11&"-"&B34,'BD Seq Op'!C:H,2,FALSE)),0,VLOOKUP($U$11&"-"&B34,'BD Seq Op'!C:H,2,FALSE))) -> 0 | D34: =IF($L$1=0,0,IF(ISERROR(VLOOKUP($U$11&"-"&B34,'BD Seq Op'!C:H,5,FALSE)),0,VLOOKUP($U$11&"-"&B34,'BD Seq Op'!C:H,5,FALSE))) -> 0 | AE34: FALSE
A35: Não | B35: 27 | C35: =IF($L$1=0,0,IF(ISERROR(VLOOKUP($U$11&"-"&B35,'BD Seq Op'!C:H,2,FALSE)),0,VLOOKUP($U$11&"-"&B35,'BD Seq Op'!C:H,2,FALSE))) -> 0 | D35: =IF($L$1=0,0,IF(ISERROR(VLOOKUP($U$11&"-"&B35,'BD Seq Op'!C:H,5,FALSE)),0,VLOOKUP($U$11&"-"&B35,'BD Seq Op'!C:H,5,FALSE))) -> 0 | AE35: FALSE
A36: Não | B36: 28 | C36: =IF($L$1=0,0,IF(ISERROR(VLOOKUP($U$11&"-"&B36,'BD Seq Op'!C:H,2,FALSE)),0,VLOOKUP($U$11&"-"&B36,'BD Seq Op'!C:H,2,FALSE))) -> 0 | D36: =IF($L$1=0,0,IF(ISERROR(VLOOKUP($U$11&"-"&B36,'BD Seq Op'!C:H,5,FALSE)),0,VLOOKUP($U$11&"-"&B36,'BD Seq Op'!C:H,5,FALSE))) -> 0 | AE36: FALSE
A37: Não | B37: 29 | C37: =IF($L$1=0,0,IF(ISERROR(VLOOKUP($U$11&"-"&B37,'BD Seq Op'!C:H,2,FALSE)),0,VLOOKUP($U$11&"-"&B37,'BD Seq Op'!C:H,2,FALSE))) -> 0 | D37: =IF($L$1=0,0,IF(ISERROR(VLOOKUP($U$11&"-"&B37,'BD Seq Op'!C:H,5,FALSE)),0,VLOOKUP($U$11&"-"&B37,'BD Seq Op'!C:H,5,FALSE))) -> 0 | AE37: FALSE
A38: Não | B38: 30 | C38: =IF($L$1=0,0,IF(ISERROR(VLOOKUP($U$11&"-"&B38,'BD Seq Op'!C:H,2,FALSE)),0,VLOOKUP($U$11&"-"&B38,'BD Seq Op'!C:H,2,FALSE))) -> 0 | D38: =IF($L$1=0,0,IF(ISERROR(VLOOKUP($U$11&"-"&B38,'BD Seq Op'!C:H,5,FALSE)),0,VLOOKUP($U$11&"-"&B38,'BD Seq Op'!C:H,5,FALSE))) -> 0 | AE38: FALSE
A39: Não | B39: 31 | C39: =IF($L$1=0,0,IF(ISERROR(VLOOKUP($U$11&"-"&B39,'BD Seq Op'!C:H,2,FALSE)),0,VLOOKUP($U$11&"-"&B39,'BD Seq Op'!C:H,2,FALSE))) -> 0 | D39: =IF($L$1=0,0,IF(ISERROR(VLOOKUP($U$11&"-"&B39,'BD Seq Op'!C:H,5,FALSE)),0,VLOOKUP($U$11&"-"&B39,'BD Seq Op'!C:H,5,FALSE))) -> 0 | AE39: FALSE
A40: Não | B40: 32 | C40: =IF($L$1=0,0,IF(ISERROR(VLOOKUP($U$11&"-"&B40,'BD Seq Op'!C:H,2,FALSE)),0,VLOOKUP($U$11&"-"&B40,'BD Seq Op'!C:H,2,FALSE))) -> 0 | D40: =IF($L$1=0,0,IF(ISERROR(VLOOKUP($U$11&"-"&B40,'BD Seq Op'!C:H,5,FALSE)),0,VLOOKUP($U$11&"-"&B40,'BD Seq Op'!C:H,5,FALSE))) -> 0 | AE40: FALSE
A41: Não | B41: 33 | C41: =IF($L$1=0,0,IF(ISERROR(VLOOKUP($U$11&"-"&B41,'BD Seq Op'!C:H,2,FALSE)),0,VLOOKUP($U$11&"-"&B41,'BD Seq Op'!C:H,2,FALSE))) -> 0 | D41: =IF($L$1=0,0,IF(ISERROR(VLOOKUP($U$11&"-"&B41,'BD Seq Op'!C:H,5,FALSE)),0,VLOOKUP($U$11&"-"&B41,'BD Seq Op'!C:H,5,FALSE))) -> 0 | E41: =IF(C41=0,"",IF($U$1=TRUE,(60*$L$5)/D41,60/D41)) ->  | AE41: FALSE
A42: Não | B42: 34 | C42: =IF($L$1=0,0,IF(ISERROR(VLOOKUP($U$11&"-"&B42,'BD Seq Op'!C:H,2,FALSE)),0,VLOOKUP($U$11&"-"&B42,'BD Seq Op'!C:H,2,FALSE))) -> 0 | D42: =IF($L$1=0,0,IF(ISERROR(VLOOKUP($U$11&"-"&B42,'BD Seq Op'!C:H,5,FALSE)),0,VLOOKUP($U$11&"-"&B42,'BD Seq Op'!C:H,5,FALSE))) -> 0 | AE42: FALSE
A43: Não | B43: 35 | C43: =IF($L$1=0,0,IF(ISERROR(VLOOKUP($U$11&"-"&B43,'BD Seq Op'!C:H,2,FALSE)),0,VLOOKUP($U$11&"-"&B43,'BD Seq Op'!C:H,2,FALSE))) -> 0 | D43: =IF($L$1=0,0,IF(ISERROR(VLOOKUP($U$11&"-"&B43,'BD Seq Op'!C:H,5,FALSE)),0,VLOOKUP($U$11&"-"&B43,'BD Seq Op'!C:H,5,FALSE))) -> 0 | AE43: FALSE
A44: Não | B44: 36 | C44: =IF($L$1=0,0,IF(ISERROR(VLOOKUP($U$11&"-"&B44,'BD Seq Op'!C:H,2,FALSE)),0,VLOOKUP($U$11&"-"&B44,'BD Seq Op'!C:H,2,FALSE))) -> 0 | D44: =IF($L$1=0,0,IF(ISERROR(VLOOKUP($U$11&"-"&B44,'BD Seq Op'!C:H,5,FALSE)),0,VLOOKUP($U$11&"-"&B44,'BD Seq Op'!C:H,5,FALSE))) -> 0 | AE44: FALSE
A45: Não | B45: 37 | C45: =IF($L$1=0,0,IF(ISERROR(VLOOKUP($U$11&"-"&B45,'BD Seq Op'!C:H,2,FALSE)),0,VLOOKUP($U$11&"-"&B45,'BD Seq Op'!C:H,2,FALSE))) -> 0 | D45: =IF($L$1=0,0,IF(ISERROR(VLOOKUP($U$11&"-"&B45,'BD Seq Op'!C:H,5,FALSE)),0,VLOOKUP($U$11&"-"&B45,'BD Seq Op'!C:H,5,FALSE))) -> 0 | AE45: FALSE
A46: Não | B46: 38 | C46: =IF($L$1=0,0,IF(ISERROR(VLOOKUP($U$11&"-"&B46,'BD Seq Op'!C:H,2,FALSE)),0,VLOOKUP($U$11&"-"&B46,'BD Seq Op'!C:H,2,FALSE))) -> 0 | D46: =IF($L$1=0,0,IF(ISERROR(VLOOKUP($U$11&"-"&B46,'BD Seq Op'!C:H,5,FALSE)),0,VLOOKUP($U$11&"-"&B46,'BD Seq Op'!C:H,5,FALSE))) -> 0 | AE46: FALSE
A47: Não | B47: 39 | C47: =IF($L$1=0,0,IF(ISERROR(VLOOKUP($U$11&"-"&B47,'BD Seq Op'!C:H,2,FALSE)),0,VLOOKUP($U$11&"-"&B47,'BD Seq Op'!C:H,2,FALSE))) -> 0 | D47: =IF($L$1=0,0,IF(ISERROR(VLOOKUP($U$11&"-"&B47,'BD Seq Op'!C:H,5,FALSE)),0,VLOOKUP($U$11&"-"&B47,'BD Seq Op'!C:H,5,FALSE))) -> 0 | AE47: FALSE
A48: Não | B48: 40 | C48: =IF($L$1=0,0,IF(ISERROR(VLOOKUP($U$11&"-"&B48,'BD Seq Op'!C:H,2,FALSE)),0,VLOOKUP($U$11&"-"&B48,'BD Seq Op'!C:H,2,FALSE))) -> 0 | D48: =IF($L$1=0,0,IF(ISERROR(VLOOKUP($U$11&"-"&B48,'BD Seq Op'!C:H,5,FALSE)),0,VLOOKUP($U$11&"-"&B48,'BD Seq Op'!C:H,5,FALSE))) -> 0 | AE48: FALSE
A49: Não | B49: 41 | C49: =IF($L$1=0,0,IF(ISERROR(VLOOKUP($U$11&"-"&B49,'BD Seq Op'!C:H,2,FALSE)),0,VLOOKUP($U$11&"-"&B49,'BD Seq Op'!C:H,2,FALSE))) -> 0 | D49: =IF($L$1=0,0,IF(ISERROR(VLOOKUP($U$11&"-"&B49,'BD Seq Op'!C:H,5,FALSE)),0,VLOOKUP($U$11&"-"&B49,'BD Seq Op'!C:H,5,FALSE))) -> 0 | AE49: FALSE
A50: Não | B50: 42 | C50: =IF($L$1=0,0,IF(ISERROR(VLOOKUP($U$11&"-"&B50,'BD Seq Op'!C:H,2,FALSE)),0,VLOOKUP($U$11&"-"&B50,'BD Seq Op'!C:H,2,FALSE))) -> 0 | D50: =IF($L$1=0,0,IF(ISERROR(VLOOKUP($U$11&"-"&B50,'BD Seq Op'!C:H,5,FALSE)),0,VLOOKUP($U$11&"-"&B50,'BD Seq Op'!C:H,5,FALSE))) -> 0 | AE50: FALSE
A51: Não | B51: 43 | C51: =IF($L$1=0,0,IF(ISERROR(VLOOKUP($U$11&"-"&B51,'BD Seq Op'!C:H,2,FALSE)),0,VLOOKUP($U$11&"-"&B51,'BD Seq Op'!C:H,2,FALSE))) -> 0 | D51: =IF($L$1=0,0,IF(ISERROR(VLOOKUP($U$11&"-"&B51,'BD Seq Op'!C:H,5,FALSE)),0,VLOOKUP($U$11&"-"&B51,'BD Seq Op'!C:H,5,FALSE))) -> 0 | AE51: FALSE
A52: Não | B52: 44 | C52: =IF($L$1=0,0,IF(ISERROR(VLOOKUP($U$11&"-"&B52,'BD Seq Op'!C:H,2,FALSE)),0,VLOOKUP($U$11&"-"&B52,'BD Seq Op'!C:H,2,FALSE))) -> 0 | D52: =IF($L$1=0,0,IF(ISERROR(VLOOKUP($U$11&"-"&B52,'BD Seq Op'!C:H,5,FALSE)),0,VLOOKUP($U$11&"-"&B52,'BD Seq Op'!C:H,5,FALSE))) -> 0 | AE52: FALSE
A53: Não | B53: 45 | C53: =IF($L$1=0,0,IF(ISERROR(VLOOKUP($U$11&"-"&B53,'BD Seq Op'!C:H,2,FALSE)),0,VLOOKUP($U$11&"-"&B53,'BD Seq Op'!C:H,2,FALSE))) -> 0 | D53: =IF($L$1=0,0,IF(ISERROR(VLOOKUP($U$11&"-"&B53,'BD Seq Op'!C:H,5,FALSE)),0,VLOOKUP($U$11&"-"&B53,'BD Seq Op'!C:H,5,FALSE))) -> 0 | AE53: FALSE
A54: Não | B54: 46 | C54: =IF($L$1=0,0,IF(ISERROR(VLOOKUP($U$11&"-"&B54,'BD Seq Op'!C:H,2,FALSE)),0,VLOOKUP($U$11&"-"&B54,'BD Seq Op'!C:H,2,FALSE))) -> 0 | D54: =IF($L$1=0,0,IF(ISERROR(VLOOKUP($U$11&"-"&B54,'BD Seq Op'!C:H,5,FALSE)),0,VLOOKUP($U$11&"-"&B54,'BD Seq Op'!C:H,5,FALSE))) -> 0 | AE54: FALSE
A55: Não | B55: 47 | C55: =IF($L$1=0,0,IF(ISERROR(VLOOKUP($U$11&"-"&B55,'BD Seq Op'!C:H,2,FALSE)),0,VLOOKUP($U$11&"-"&B55,'BD Seq Op'!C:H,2,FALSE))) -> 0 | D55: =IF($L$1=0,0,IF(ISERROR(VLOOKUP($U$11&"-"&B55,'BD Seq Op'!C:H,5,FALSE)),0,VLOOKUP($U$11&"-"&B55,'BD Seq Op'!C:H,5,FALSE))) -> 0 | AE55: FALSE
A56: Não | B56: 48 | C56: =IF($L$1=0,0,IF(ISERROR(VLOOKUP($U$11&"-"&B56,'BD Seq Op'!C:H,2,FALSE)),0,VLOOKUP($U$11&"-"&B56,'BD Seq Op'!C:H,2,FALSE))) -> 0 | D56: =IF($L$1=0,0,IF(ISERROR(VLOOKUP($U$11&"-"&B56,'BD Seq Op'!C:H,5,FALSE)),0,VLOOKUP($U$11&"-"&B56,'BD Seq Op'!C:H,5,FALSE))) -> 0 | AE56: FALSE
A57: Não | B57: 49 | C57: =IF($L$1=0,0,IF(ISERROR(VLOOKUP($U$11&"-"&B57,'BD Seq Op'!C:H,2,FALSE)),0,VLOOKUP($U$11&"-"&B57,'BD Seq Op'!C:H,2,FALSE))) -> 0 | D57: =IF($L$1=0,0,IF(ISERROR(VLOOKUP($U$11&"-"&B57,'BD Seq Op'!C:H,5,FALSE)),0,VLOOKUP($U$11&"-"&B57,'BD Seq Op'!C:H,5,FALSE))) -> 0 | AE57: FALSE
A58: Não | B58: 50 | C58: =IF($L$1=0,0,IF(ISERROR(VLOOKUP($U$11&"-"&B58,'BD Seq Op'!C:H,2,FALSE)),0,VLOOKUP($U$11&"-"&B58,'BD Seq Op'!C:H,2,FALSE))) -> 0 | D58: =IF($L$1=0,0,IF(ISERROR(VLOOKUP($U$11&"-"&B58,'BD Seq Op'!C:H,5,FALSE)),0,VLOOKUP($U$11&"-"&B58,'BD Seq Op'!C:H,5,FALSE))) -> 0 | AE58: FALSE
A59: Não | B59: 51 | C59: =IF($L$1=0,0,IF(ISERROR(VLOOKUP($U$11&"-"&B59,'BD Seq Op'!C:H,2,FALSE)),0,VLOOKUP($U$11&"-"&B59,'BD Seq Op'!C:H,2,FALSE))) -> 0 | D59: =IF($L$1=0,0,IF(ISERROR(VLOOKUP($U$11&"-"&B59,'BD Seq Op'!C:H,5,FALSE)),0,VLOOKUP($U$11&"-"&B59,'BD Seq Op'!C:H,5,FALSE))) -> 0 | AE59: FALSE
A60: Não | B60: 52 | C60: =IF($L$1=0,0,IF(ISERROR(VLOOKUP($U$11&"-"&B60,'BD Seq Op'!C:H,2,FALSE)),0,VLOOKUP($U$11&"-"&B60,'BD Seq Op'!C:H,2,FALSE))) -> 0 | D60: =IF($L$1=0,0,IF(ISERROR(VLOOKUP($U$11&"-"&B60,'BD Seq Op'!C:H,5,FALSE)),0,VLOOKUP($U$11&"-"&B60,'BD Seq Op'!C:H,5,FALSE))) -> 0 | AE60: FALSE
A61: Não | B61: 53 | C61: =IF($L$1=0,0,IF(ISERROR(VLOOKUP($U$11&"-"&B61,'BD Seq Op'!C:H,2,FALSE)),0,VLOOKUP($U$11&"-"&B61,'BD Seq Op'!C:H,2,FALSE))) -> 0 | D61: =IF($L$1=0,0,IF(ISERROR(VLOOKUP($U$11&"-"&B61,'BD Seq Op'!C:H,5,FALSE)),0,VLOOKUP($U$11&"-"&B61,'BD Seq Op'!C:H,5,FALSE))) -> 0 | AE61: FALSE
A62: Não | B62: 54 | C62: =IF($L$1=0,0,IF(ISERROR(VLOOKUP($U$11&"-"&B62,'BD Seq Op'!C:H,2,FALSE)),0,VLOOKUP($U$11&"-"&B62,'BD Seq Op'!C:H,2,FALSE))) -> 0 | D62: =IF($L$1=0,0,IF(ISERROR(VLOOKUP($U$11&"-"&B62,'BD Seq Op'!C:H,5,FALSE)),0,VLOOKUP($U$11&"-"&B62,'BD Seq Op'!C:H,5,FALSE))) -> 0 | AE62: FALSE
A63: Não | B63: 55 | C63: =IF($L$1=0,0,IF(ISERROR(VLOOKUP($U$11&"-"&B63,'BD Seq Op'!C:H,2,FALSE)),0,VLOOKUP($U$11&"-"&B63,'BD Seq Op'!C:H,2,FALSE))) -> 0 | D63: =IF($L$1=0,0,IF(ISERROR(VLOOKUP($U$11&"-"&B63,'BD Seq Op'!C:H,5,FALSE)),0,VLOOKUP($U$11&"-"&B63,'BD Seq Op'!C:H,5,FALSE))) -> 0 | AE63: FALSE
A64: Não | B64: 56 | C64: =IF($L$1=0,0,IF(ISERROR(VLOOKUP($U$11&"-"&B64,'BD Seq Op'!C:H,2,FALSE)),0,VLOOKUP($U$11&"-"&B64,'BD Seq Op'!C:H,2,FALSE))) -> 0 | D64: =IF($L$1=0,0,IF(ISERROR(VLOOKUP($U$11&"-"&B64,'BD Seq Op'!C:H,5,FALSE)),0,VLOOKUP($U$11&"-"&B64,'BD Seq Op'!C:H,5,FALSE))) -> 0 | AE64: FALSE
A65: Não | B65: 57 | C65: =IF($L$1=0,0,IF(ISERROR(VLOOKUP($U$11&"-"&B65,'BD Seq Op'!C:H,2,FALSE)),0,VLOOKUP($U$11&"-"&B65,'BD Seq Op'!C:H,2,FALSE))) -> 0 | D65: =IF($L$1=0,0,IF(ISERROR(VLOOKUP($U$11&"-"&B65,'BD Seq Op'!C:H,5,FALSE)),0,VLOOKUP($U$11&"-"&B65,'BD Seq Op'!C:H,5,FALSE))) -> 0 | AE65: FALSE
A66: Não | B66: 58 | C66: =IF($L$1=0,0,IF(ISERROR(VLOOKUP($U$11&"-"&B66,'BD Seq Op'!C:H,2,FALSE)),0,VLOOKUP($U$11&"-"&B66,'BD Seq Op'!C:H,2,FALSE))) -> 0 | D66: =IF($L$1=0,0,IF(ISERROR(VLOOKUP($U$11&"-"&B66,'BD Seq Op'!C:H,5,FALSE)),0,VLOOKUP($U$11&"-"&B66,'BD Seq Op'!C:H,5,FALSE))) -> 0 | AE66: FALSE
A67: Não | B67: 59 | C67: =IF($L$1=0,0,IF(ISERROR(VLOOKUP($U$11&"-"&B67,'BD Seq Op'!C:H,2,FALSE)),0,VLOOKUP($U$11&"-"&B67,'BD Seq Op'!C:H,2,FALSE))) -> 0 | D67: =IF($L$1=0,0,IF(ISERROR(VLOOKUP($U$11&"-"&B67,'BD Seq Op'!C:H,5,FALSE)),0,VLOOKUP($U$11&"-"&B67,'BD Seq Op'!C:H,5,FALSE))) -> 0 | AE67: FALSE
A68: Não | B68: 60 | C68: =IF($L$1=0,0,IF(ISERROR(VLOOKUP($U$11&"-"&B68,'BD Seq Op'!C:H,2,FALSE)),0,VLOOKUP($U$11&"-"&B68,'BD Seq Op'!C:H,2,FALSE))) -> 0 | D68: =IF($L$1=0,0,IF(ISERROR(VLOOKUP($U$11&"-"&B68,'BD Seq Op'!C:H,5,FALSE)),0,VLOOKUP($U$11&"-"&B68,'BD Seq Op'!C:H,5,FALSE))) -> 0 | AE68: FALSE
A69: Não | B69: 61 | C69: =IF($L$1=0,0,IF(ISERROR(VLOOKUP($U$11&"-"&B69,'BD Seq Op'!C:H,2,FALSE)),0,VLOOKUP($U$11&"-"&B69,'BD Seq Op'!C:H,2,FALSE))) -> 0 | D69: =IF($L$1=0,0,IF(ISERROR(VLOOKUP($U$11&"-"&B69,'BD Seq Op'!C:H,5,FALSE)),0,VLOOKUP($U$11&"-"&B69,'BD Seq Op'!C:H,5,FALSE))) -> 0 | AE69: FALSE
A70: Não | B70: 62 | C70: =IF($L$1=0,0,IF(ISERROR(VLOOKUP($U$11&"-"&B70,'BD Seq Op'!C:H,2,FALSE)),0,VLOOKUP($U$11&"-"&B70,'BD Seq Op'!C:H,2,FALSE))) -> 0 | D70: =IF($L$1=0,0,IF(ISERROR(VLOOKUP($U$11&"-"&B70,'BD Seq Op'!C:H,5,FALSE)),0,VLOOKUP($U$11&"-"&B70,'BD Seq Op'!C:H,5,FALSE))) -> 0 | AE70: FALSE
A71: Não | B71: 63 | C71: =IF($L$1=0,0,IF(ISERROR(VLOOKUP($U$11&"-"&B71,'BD Seq Op'!C:H,2,FALSE)),0,VLOOKUP($U$11&"-"&B71,'BD Seq Op'!C:H,2,FALSE))) -> 0 | D71: =IF($L$1=0,0,IF(ISERROR(VLOOKUP($U$11&"-"&B71,'BD Seq Op'!C:H,5,FALSE)),0,VLOOKUP($U$11&"-"&B71,'BD Seq Op'!C:H,5,FALSE))) -> 0 | AE71: FALSE
A72: Não | B72: 64 | C72: =IF($L$1=0,0,IF(ISERROR(VLOOKUP($U$11&"-"&B72,'BD Seq Op'!C:H,2,FALSE)),0,VLOOKUP($U$11&"-"&B72,'BD Seq Op'!C:H,2,FALSE))) -> 0 | D72: =IF($L$1=0,0,IF(ISERROR(VLOOKUP($U$11&"-"&B72,'BD Seq Op'!C:H,5,FALSE)),0,VLOOKUP($U$11&"-"&B72,'BD Seq Op'!C:H,5,FALSE))) -> 0 | AE72: FALSE
A73: Não | B73: 65 | C73: =IF($L$1=0,0,IF(ISERROR(VLOOKUP($U$11&"-"&B73,'BD Seq Op'!C:H,2,FALSE)),0,VLOOKUP($U$11&"-"&B73,'BD Seq Op'!C:H,2,FALSE))) -> 0 | D73: =IF($L$1=0,0,IF(ISERROR(VLOOKUP($U$11&"-"&B73,'BD Seq Op'!C:H,5,FALSE)),0,VLOOKUP($U$11&"-"&B73,'BD Seq Op'!C:H,5,FALSE))) -> 0 | E73: =IF(C73=0,"",IF($U$1=TRUE,(60*$L$5)/D73,60/D73)) ->  | AE73: FALSE
A74: =IF(C74=0,"Não","Sim") -> Não | B74: 66 | C74: =IF($L$1=0,0,IF(ISERROR(VLOOKUP($U$11&"-"&B74,'BD Seq Op'!C:H,2,FALSE)),0,VLOOKUP($U$11&"-"&B74,'BD Seq Op'!C:H,2,FALSE))) -> 0 | D74: =IF($L$1=0,0,IF(ISERROR(VLOOKUP($U$11&"-"&B74,'BD Seq Op'!C:H,5,FALSE)),0,VLOOKUP($U$11&"-"&B74,'BD Seq Op'!C:H,5,FALSE))) -> 0 | H74: =IF(C74=0,"",IF($U$1=TRUE,$P$5,IF($L$2=0,$V$15,$L$2))) ->  | I74: =IF(C74=0,"",IF(AE74=TRUE,0,D74*H74)) ->  | AE74: FALSE
A75: Não | B75: 67 | C75: =IF($L$1=0,0,IF(ISERROR(VLOOKUP($U$11&"-"&B75,'BD Seq Op'!C:H,2,FALSE)),0,VLOOKUP($U$11&"-"&B75,'BD Seq Op'!C:H,2,FALSE))) -> 0 | D75: =IF($L$1=0,0,IF(ISERROR(VLOOKUP($U$11&"-"&B75,'BD Seq Op'!C:H,5,FALSE)),0,VLOOKUP($U$11&"-"&B75,'BD Seq Op'!C:H,5,FALSE))) -> 0 | AE75: FALSE
A76: Não | B76: 68 | C76: =IF($L$1=0,0,IF(ISERROR(VLOOKUP($U$11&"-"&B76,'BD Seq Op'!C:H,2,FALSE)),0,VLOOKUP($U$11&"-"&B76,'BD Seq Op'!C:H,2,FALSE))) -> 0 | D76: =IF($L$1=0,0,IF(ISERROR(VLOOKUP($U$11&"-"&B76,'BD Seq Op'!C:H,5,FALSE)),0,VLOOKUP($U$11&"-"&B76,'BD Seq Op'!C:H,5,FALSE))) -> 0 | AE76: FALSE
A77: Não | B77: 69 | C77: =IF($L$1=0,0,IF(ISERROR(VLOOKUP($U$11&"-"&B77,'BD Seq Op'!C:H,2,FALSE)),0,VLOOKUP($U$11&"-"&B77,'BD Seq Op'!C:H,2,FALSE))) -> 0 | D77: =IF($L$1=0,0,IF(ISERROR(VLOOKUP($U$11&"-"&B77,'BD Seq Op'!C:H,5,FALSE)),0,VLOOKUP($U$11&"-"&B77,'BD Seq Op'!C:H,5,FALSE))) -> 0 | AE77: FALSE
A78: Não | B78: 70 | C78: =IF($L$1=0,0,IF(ISERROR(VLOOKUP($U$11&"-"&B78,'BD Seq Op'!C:H,2,FALSE)),0,VLOOKUP($U$11&"-"&B78,'BD Seq Op'!C:H,2,FALSE))) -> 0 | D78: =IF($L$1=0,0,IF(ISERROR(VLOOKUP($U$11&"-"&B78,'BD Seq Op'!C:H,5,FALSE)),0,VLOOKUP($U$11&"-"&B78,'BD Seq Op'!C:H,5,FALSE))) -> 0 | AE78: FALSE
A79: Não | B79: 71 | C79: =IF($L$1=0,0,IF(ISERROR(VLOOKUP($U$11&"-"&B79,'BD Seq Op'!C:H,2,FALSE)),0,VLOOKUP($U$11&"-"&B79,'BD Seq Op'!C:H,2,FALSE))) -> 0 | D79: =IF($L$1=0,0,IF(ISERROR(VLOOKUP($U$11&"-"&B79,'BD Seq Op'!C:H,5,FALSE)),0,VLOOKUP($U$11&"-"&B79,'BD Seq Op'!C:H,5,FALSE))) -> 0 | AE79: FALSE
A80: Não | B80: 72 | C80: =IF($L$1=0,0,IF(ISERROR(VLOOKUP($U$11&"-"&B80,'BD Seq Op'!C:H,2,FALSE)),0,VLOOKUP($U$11&"-"&B80,'BD Seq Op'!C:H,2,FALSE))) -> 0 | D80: =IF($L$1=0,0,IF(ISERROR(VLOOKUP($U$11&"-"&B80,'BD Seq Op'!C:H,5,FALSE)),0,VLOOKUP($U$11&"-"&B80,'BD Seq Op'!C:H,5,FALSE))) -> 0 | AE80: FALSE
A81: Não | B81: 73 | C81: =IF($L$1=0,0,IF(ISERROR(VLOOKUP($U$11&"-"&B81,'BD Seq Op'!C:H,2,FALSE)),0,VLOOKUP($U$11&"-"&B81,'BD Seq Op'!C:H,2,FALSE))) -> 0 | D81: =IF($L$1=0,0,IF(ISERROR(VLOOKUP($U$11&"-"&B81,'BD Seq Op'!C:H,5,FALSE)),0,VLOOKUP($U$11&"-"&B81,'BD Seq Op'!C:H,5,FALSE))) -> 0 | AE81: FALSE
A82: Não | B82: 74 | C82: =IF($L$1=0,0,IF(ISERROR(VLOOKUP($U$11&"-"&B82,'BD Seq Op'!C:H,2,FALSE)),0,VLOOKUP($U$11&"-"&B82,'BD Seq Op'!C:H,2,FALSE))) -> 0 | D82: =IF($L$1=0,0,IF(ISERROR(VLOOKUP($U$11&"-"&B82,'BD Seq Op'!C:H,5,FALSE)),0,VLOOKUP($U$11&"-"&B82,'BD Seq Op'!C:H,5,FALSE))) -> 0 | AE82: FALSE
A83: Não | B83: 75 | C83: =IF($L$1=0,0,IF(ISERROR(VLOOKUP($U$11&"-"&B83,'BD Seq Op'!C:H,2,FALSE)),0,VLOOKUP($U$11&"-"&B83,'BD Seq Op'!C:H,2,FALSE))) -> 0 | D83: =IF($L$1=0,0,IF(ISERROR(VLOOKUP($U$11&"-"&B83,'BD Seq Op'!C:H,5,FALSE)),0,VLOOKUP($U$11&"-"&B83,'BD Seq Op'!C:H,5,FALSE))) -> 0 | AE83: FALSE
A84: Não | B84: 76 | C84: =IF($L$1=0,0,IF(ISERROR(VLOOKUP($U$11&"-"&B84,'BD Seq Op'!C:H,2,FALSE)),0,VLOOKUP($U$11&"-"&B84,'BD Seq Op'!C:H,2,FALSE))) -> 0 | D84: =IF($L$1=0,0,IF(ISERROR(VLOOKUP($U$11&"-"&B84,'BD Seq Op'!C:H,5,FALSE)),0,VLOOKUP($U$11&"-"&B84,'BD Seq Op'!C:H,5,FALSE))) -> 0 | AE84: FALSE
A85: Não | B85: 77 | C85: =IF($L$1=0,0,IF(ISERROR(VLOOKUP($U$11&"-"&B85,'BD Seq Op'!C:H,2,FALSE)),0,VLOOKUP($U$11&"-"&B85,'BD Seq Op'!C:H,2,FALSE))) -> 0 | D85: =IF($L$1=0,0,IF(ISERROR(VLOOKUP($U$11&"-"&B85,'BD Seq Op'!C:H,5,FALSE)),0,VLOOKUP($U$11&"-"&B85,'BD Seq Op'!C:H,5,FALSE))) -> 0 | AE85: FALSE
A86: Não | B86: 78 | C86: =IF($L$1=0,0,IF(ISERROR(VLOOKUP($U$11&"-"&B86,'BD Seq Op'!C:H,2,FALSE)),0,VLOOKUP($U$11&"-"&B86,'BD Seq Op'!C:H,2,FALSE))) -> 0 | D86: =IF($L$1=0,0,IF(ISERROR(VLOOKUP($U$11&"-"&B86,'BD Seq Op'!C:H,5,FALSE)),0,VLOOKUP($U$11&"-"&B86,'BD Seq Op'!C:H,5,FALSE))) -> 0 | AE86: FALSE
A87: Não | B87: 79 | C87: =IF($L$1=0,0,IF(ISERROR(VLOOKUP($U$11&"-"&B87,'BD Seq Op'!C:H,2,FALSE)),0,VLOOKUP($U$11&"-"&B87,'BD Seq Op'!C:H,2,FALSE))) -> 0 | D87: =IF($L$1=0,0,IF(ISERROR(VLOOKUP($U$11&"-"&B87,'BD Seq Op'!C:H,5,FALSE)),0,VLOOKUP($U$11&"-"&B87,'BD Seq Op'!C:H,5,FALSE))) -> 0 | AE87: FALSE
A88: Não | B88: 80 | C88: =IF($L$1=0,0,IF(ISERROR(VLOOKUP($U$11&"-"&B88,'BD Seq Op'!C:H,2,FALSE)),0,VLOOKUP($U$11&"-"&B88,'BD Seq Op'!C:H,2,FALSE))) -> 0 | D88: =IF($L$1=0,0,IF(ISERROR(VLOOKUP($U$11&"-"&B88,'BD Seq Op'!C:H,5,FALSE)),0,VLOOKUP($U$11&"-"&B88,'BD Seq Op'!C:H,5,FALSE))) -> 0 | AE88: FALSE
A89: Não | B89: 81 | C89: =IF($L$1=0,0,IF(ISERROR(VLOOKUP($U$11&"-"&B89,'BD Seq Op'!C:H,2,FALSE)),0,VLOOKUP($U$11&"-"&B89,'BD Seq Op'!C:H,2,FALSE))) -> 0 | D89: =IF($L$1=0,0,IF(ISERROR(VLOOKUP($U$11&"-"&B89,'BD Seq Op'!C:H,5,FALSE)),0,VLOOKUP($U$11&"-"&B89,'BD Seq Op'!C:H,5,FALSE))) -> 0 | AE89: FALSE
A90: Não | B90: 82 | C90: =IF($L$1=0,0,IF(ISERROR(VLOOKUP($U$11&"-"&B90,'BD Seq Op'!C:H,2,FALSE)),0,VLOOKUP($U$11&"-"&B90,'BD Seq Op'!C:H,2,FALSE))) -> 0 | D90: =IF($L$1=0,0,IF(ISERROR(VLOOKUP($U$11&"-"&B90,'BD Seq Op'!C:H,5,FALSE)),0,VLOOKUP($U$11&"-"&B90,'BD Seq Op'!C:H,5,FALSE))) -> 0 | AE90: FALSE
A91: Não | B91: 83 | C91: =IF($L$1=0,0,IF(ISERROR(VLOOKUP($U$11&"-"&B91,'BD Seq Op'!C:H,2,FALSE)),0,VLOOKUP($U$11&"-"&B91,'BD Seq Op'!C:H,2,FALSE))) -> 0 | D91: =IF($L$1=0,0,IF(ISERROR(VLOOKUP($U$11&"-"&B91,'BD Seq Op'!C:H,5,FALSE)),0,VLOOKUP($U$11&"-"&B91,'BD Seq Op'!C:H,5,FALSE))) -> 0 | AE91: FALSE
A92: Não | B92: 84 | C92: =IF($L$1=0,0,IF(ISERROR(VLOOKUP($U$11&"-"&B92,'BD Seq Op'!C:H,2,FALSE)),0,VLOOKUP($U$11&"-"&B92,'BD Seq Op'!C:H,2,FALSE))) -> 0 | D92: =IF($L$1=0,0,IF(ISERROR(VLOOKUP($U$11&"-"&B92,'BD Seq Op'!C:H,5,FALSE)),0,VLOOKUP($U$11&"-"&B92,'BD Seq Op'!C:H,5,FALSE))) -> 0 | AE92: FALSE
A93: Não | B93: 85 | C93: =IF($L$1=0,0,IF(ISERROR(VLOOKUP($U$11&"-"&B93,'BD Seq Op'!C:H,2,FALSE)),0,VLOOKUP($U$11&"-"&B93,'BD Seq Op'!C:H,2,FALSE))) -> 0 | D93: =IF($L$1=0,0,IF(ISERROR(VLOOKUP($U$11&"-"&B93,'BD Seq Op'!C:H,5,FALSE)),0,VLOOKUP($U$11&"-"&B93,'BD Seq Op'!C:H,5,FALSE))) -> 0 | AE93: FALSE
A94: Não | B94: 86 | C94: =IF($L$1=0,0,IF(ISERROR(VLOOKUP($U$11&"-"&B94,'BD Seq Op'!C:H,2,FALSE)),0,VLOOKUP($U$11&"-"&B94,'BD Seq Op'!C:H,2,FALSE))) -> 0 | D94: =IF($L$1=0,0,IF(ISERROR(VLOOKUP($U$11&"-"&B94,'BD Seq Op'!C:H,5,FALSE)),0,VLOOKUP($U$11&"-"&B94,'BD Seq Op'!C:H,5,FALSE))) -> 0 | AE94: FALSE
A95: Não | B95: 87 | C95: =IF($L$1=0,0,IF(ISERROR(VLOOKUP($U$11&"-"&B95,'BD Seq Op'!C:H,2,FALSE)),0,VLOOKUP($U$11&"-"&B95,'BD Seq Op'!C:H,2,FALSE))) -> 0 | D95: =IF($L$1=0,0,IF(ISERROR(VLOOKUP($U$11&"-"&B95,'BD Seq Op'!C:H,5,FALSE)),0,VLOOKUP($U$11&"-"&B95,'BD Seq Op'!C:H,5,FALSE))) -> 0 | AE95: FALSE
A96: Não | B96: 88 | C96: =IF($L$1=0,0,IF(ISERROR(VLOOKUP($U$11&"-"&B96,'BD Seq Op'!C:H,2,FALSE)),0,VLOOKUP($U$11&"-"&B96,'BD Seq Op'!C:H,2,FALSE))) -> 0 | D96: =IF($L$1=0,0,IF(ISERROR(VLOOKUP($U$11&"-"&B96,'BD Seq Op'!C:H,5,FALSE)),0,VLOOKUP($U$11&"-"&B96,'BD Seq Op'!C:H,5,FALSE))) -> 0 | AE96: FALSE
A97: Não | B97: 89 | C97: =IF($L$1=0,0,IF(ISERROR(VLOOKUP($U$11&"-"&B97,'BD Seq Op'!C:H,2,FALSE)),0,VLOOKUP($U$11&"-"&B97,'BD Seq Op'!C:H,2,FALSE))) -> 0 | D97: =IF($L$1=0,0,IF(ISERROR(VLOOKUP($U$11&"-"&B97,'BD Seq Op'!C:H,5,FALSE)),0,VLOOKUP($U$11&"-"&B97,'BD Seq Op'!C:H,5,FALSE))) -> 0 | AE97: FALSE
A98: Não | B98: 90 | C98: =IF($L$1=0,0,IF(ISERROR(VLOOKUP($U$11&"-"&B98,'BD Seq Op'!C:H,2,FALSE)),0,VLOOKUP($U$11&"-"&B98,'BD Seq Op'!C:H,2,FALSE))) -> 0 | D98: =IF($L$1=0,0,IF(ISERROR(VLOOKUP($U$11&"-"&B98,'BD Seq Op'!C:H,5,FALSE)),0,VLOOKUP($U$11&"-"&B98,'BD Seq Op'!C:H,5,FALSE))) -> 0 | AE98: FALSE
A99: Não | B99: 91 | C99: =IF($L$1=0,0,IF(ISERROR(VLOOKUP($U$11&"-"&B99,'BD Seq Op'!C:H,2,FALSE)),0,VLOOKUP($U$11&"-"&B99,'BD Seq Op'!C:H,2,FALSE))) -> 0 | D99: =IF($L$1=0,0,IF(ISERROR(VLOOKUP($U$11&"-"&B99,'BD Seq Op'!C:H,5,FALSE)),0,VLOOKUP($U$11&"-"&B99,'BD Seq Op'!C:H,5,FALSE))) -> 0 | AE99: FALSE
A100: Não | B100: 92 | C100: =IF($L$1=0,0,IF(ISERROR(VLOOKUP($U$11&"-"&B100,'BD Seq Op'!C:H,2,FALSE)),0,VLOOKUP($U$11&"-"&B100,'BD Seq Op'!C:H,2,FALSE))) -> 0 | D100: =IF($L$1=0,0,IF(ISERROR(VLOOKUP($U$11&"-"&B100,'BD Seq Op'!C:H,5,FALSE)),0,VLOOKUP($U$11&"-"&B100,'BD Seq Op'!C:H,5,FALSE))) -> 0 | AE100: FALSE
A101: Não | B101: 93 | C101: =IF($L$1=0,0,IF(ISERROR(VLOOKUP($U$11&"-"&B101,'BD Seq Op'!C:H,2,FALSE)),0,VLOOKUP($U$11&"-"&B101,'BD Seq Op'!C:H,2,FALSE))) -> 0 | D101: =IF($L$1=0,0,IF(ISERROR(VLOOKUP($U$11&"-"&B101,'BD Seq Op'!C:H,5,FALSE)),0,VLOOKUP($U$11&"-"&B101,'BD Seq Op'!C:H,5,FALSE))) -> 0 | AE101: FALSE
A102: Não | B102: 94 | C102: =IF($L$1=0,0,IF(ISERROR(VLOOKUP($U$11&"-"&B102,'BD Seq Op'!C:H,2,FALSE)),0,VLOOKUP($U$11&"-"&B102,'BD Seq Op'!C:H,2,FALSE))) -> 0 | D102: =IF($L$1=0,0,IF(ISERROR(VLOOKUP($U$11&"-"&B102,'BD Seq Op'!C:H,5,FALSE)),0,VLOOKUP($U$11&"-"&B102,'BD Seq Op'!C:H,5,FALSE))) -> 0 | AE102: FALSE
A103: Não | B103: 95 | C103: =IF($L$1=0,0,IF(ISERROR(VLOOKUP($U$11&"-"&B103,'BD Seq Op'!C:H,2,FALSE)),0,VLOOKUP($U$11&"-"&B103,'BD Seq Op'!C:H,2,FALSE))) -> 0 | D103: =IF($L$1=0,0,IF(ISERROR(VLOOKUP($U$11&"-"&B103,'BD Seq Op'!C:H,5,FALSE)),0,VLOOKUP($U$11&"-"&B103,'BD Seq Op'!C:H,5,FALSE))) -> 0 | AE103: FALSE
A104: Não | B104: 96 | C104: =IF($L$1=0,0,IF(ISERROR(VLOOKUP($U$11&"-"&B104,'BD Seq Op'!C:H,2,FALSE)),0,VLOOKUP($U$11&"-"&B104,'BD Seq Op'!C:H,2,FALSE))) -> 0 | D104: =IF($L$1=0,0,IF(ISERROR(VLOOKUP($U$11&"-"&B104,'BD Seq Op'!C:H,5,FALSE)),0,VLOOKUP($U$11&"-"&B104,'BD Seq Op'!C:H,5,FALSE))) -> 0 | AE104: FALSE
A105: Não | B105: 97 | C105: =IF($L$1=0,0,IF(ISERROR(VLOOKUP($U$11&"-"&B105,'BD Seq Op'!C:H,2,FALSE)),0,VLOOKUP($U$11&"-"&B105,'BD Seq Op'!C:H,2,FALSE))) -> 0 | D105: =IF($L$1=0,0,IF(ISERROR(VLOOKUP($U$11&"-"&B105,'BD Seq Op'!C:H,5,FALSE)),0,VLOOKUP($U$11&"-"&B105,'BD Seq Op'!C:H,5,FALSE))) -> 0 | E105: =IF(C105=0,"",IF($U$1=TRUE,(60*$L$5)/D105,60/D105)) ->  | AE105: FALSE
A106: Não | B106: 98 | C106: =IF($L$1=0,0,IF(ISERROR(VLOOKUP($U$11&"-"&B106,'BD Seq Op'!C:H,2,FALSE)),0,VLOOKUP($U$11&"-"&B106,'BD Seq Op'!C:H,2,FALSE))) -> 0 | D106: =IF($L$1=0,0,IF(ISERROR(VLOOKUP($U$11&"-"&B106,'BD Seq Op'!C:H,5,FALSE)),0,VLOOKUP($U$11&"-"&B106,'BD Seq Op'!C:H,5,FALSE))) -> 0 | AE106: FALSE
A107: Não | B107: 99 | C107: =IF($L$1=0,0,IF(ISERROR(VLOOKUP($U$11&"-"&B107,'BD Seq Op'!C:H,2,FALSE)),0,VLOOKUP($U$11&"-"&B107,'BD Seq Op'!C:H,2,FALSE))) -> 0 | D107: =IF($L$1=0,0,IF(ISERROR(VLOOKUP($U$11&"-"&B107,'BD Seq Op'!C:H,5,FALSE)),0,VLOOKUP($U$11&"-"&B107,'BD Seq Op'!C:H,5,FALSE))) -> 0 | AE107: FALSE
A108: Não | B108: 100 | C108: =IF($L$1=0,0,IF(ISERROR(VLOOKUP($U$11&"-"&B108,'BD Seq Op'!C:H,2,FALSE)),0,VLOOKUP($U$11&"-"&B108,'BD Seq Op'!C:H,2,FALSE))) -> 0 | D108: =IF($L$1=0,0,IF(ISERROR(VLOOKUP($U$11&"-"&B108,'BD Seq Op'!C:H,5,FALSE)),0,VLOOKUP($U$11&"-"&B108,'BD Seq Op'!C:H,5,FALSE))) -> 0 | AE108: FALSE
A109: Não | B109: 101 | C109: =IF($L$1=0,0,IF(ISERROR(VLOOKUP($U$11&"-"&B109,'BD Seq Op'!C:H,2,FALSE)),0,VLOOKUP($U$11&"-"&B109,'BD Seq Op'!C:H,2,FALSE))) -> 0 | D109: =IF($L$1=0,0,IF(ISERROR(VLOOKUP($U$11&"-"&B109,'BD Seq Op'!C:H,5,FALSE)),0,VLOOKUP($U$11&"-"&B109,'BD Seq Op'!C:H,5,FALSE))) -> 0 | AE109: FALSE
A110: Não | B110: 102 | C110: =IF($L$1=0,0,IF(ISERROR(VLOOKUP($U$11&"-"&B110,'BD Seq Op'!C:H,2,FALSE)),0,VLOOKUP($U$11&"-"&B110,'BD Seq Op'!C:H,2,FALSE))) -> 0 | D110: =IF($L$1=0,0,IF(ISERROR(VLOOKUP($U$11&"-"&B110,'BD Seq Op'!C:H,5,FALSE)),0,VLOOKUP($U$11&"-"&B110,'BD Seq Op'!C:H,5,FALSE))) -> 0 | AE110: FALSE
A111: Não | B111: 103 | C111: =IF($L$1=0,0,IF(ISERROR(VLOOKUP($U$11&"-"&B111,'BD Seq Op'!C:H,2,FALSE)),0,VLOOKUP($U$11&"-"&B111,'BD Seq Op'!C:H,2,FALSE))) -> 0 | D111: =IF($L$1=0,0,IF(ISERROR(VLOOKUP($U$11&"-"&B111,'BD Seq Op'!C:H,5,FALSE)),0,VLOOKUP($U$11&"-"&B111,'BD Seq Op'!C:H,5,FALSE))) -> 0 | AE111: FALSE
A112: Não | B112: 104 | C112: =IF($L$1=0,0,IF(ISERROR(VLOOKUP($U$11&"-"&B112,'BD Seq Op'!C:H,2,FALSE)),0,VLOOKUP($U$11&"-"&B112,'BD Seq Op'!C:H,2,FALSE))) -> 0 | D112: =IF($L$1=0,0,IF(ISERROR(VLOOKUP($U$11&"-"&B112,'BD Seq Op'!C:H,5,FALSE)),0,VLOOKUP($U$11&"-"&B112,'BD Seq Op'!C:H,5,FALSE))) -> 0 | AE112: FALSE
A113: Não | B113: 105 | C113: =IF($L$1=0,0,IF(ISERROR(VLOOKUP($U$11&"-"&B113,'BD Seq Op'!C:H,2,FALSE)),0,VLOOKUP($U$11&"-"&B113,'BD Seq Op'!C:H,2,FALSE))) -> 0 | D113: =IF($L$1=0,0,IF(ISERROR(VLOOKUP($U$11&"-"&B113,'BD Seq Op'!C:H,5,FALSE)),0,VLOOKUP($U$11&"-"&B113,'BD Seq Op'!C:H,5,FALSE))) -> 0 | AE113: FALSE
A114: Não | B114: 106 | C114: =IF($L$1=0,0,IF(ISERROR(VLOOKUP($U$11&"-"&B114,'BD Seq Op'!C:H,2,FALSE)),0,VLOOKUP($U$11&"-"&B114,'BD Seq Op'!C:H,2,FALSE))) -> 0 | D114: =IF($L$1=0,0,IF(ISERROR(VLOOKUP($U$11&"-"&B114,'BD Seq Op'!C:H,5,FALSE)),0,VLOOKUP($U$11&"-"&B114,'BD Seq Op'!C:H,5,FALSE))) -> 0 | AE114: FALSE
A115: Não | B115: 107 | C115: =IF($L$1=0,0,IF(ISERROR(VLOOKUP($U$11&"-"&B115,'BD Seq Op'!C:H,2,FALSE)),0,VLOOKUP($U$11&"-"&B115,'BD Seq Op'!C:H,2,FALSE))) -> 0 | D115: =IF($L$1=0,0,IF(ISERROR(VLOOKUP($U$11&"-"&B115,'BD Seq Op'!C:H,5,FALSE)),0,VLOOKUP($U$11&"-"&B115,'BD Seq Op'!C:H,5,FALSE))) -> 0 | AE115: FALSE
A116: Não | B116: 108 | C116: =IF($L$1=0,0,IF(ISERROR(VLOOKUP($U$11&"-"&B116,'BD Seq Op'!C:H,2,FALSE)),0,VLOOKUP($U$11&"-"&B116,'BD Seq Op'!C:H,2,FALSE))) -> 0 | D116: =IF($L$1=0,0,IF(ISERROR(VLOOKUP($U$11&"-"&B116,'BD Seq Op'!C:H,5,FALSE)),0,VLOOKUP($U$11&"-"&B116,'BD Seq Op'!C:H,5,FALSE))) -> 0 | AE116: FALSE
A117: Não | B117: 109 | C117: =IF($L$1=0,0,IF(ISERROR(VLOOKUP($U$11&"-"&B117,'BD Seq Op'!C:H,2,FALSE)),0,VLOOKUP($U$11&"-"&B117,'BD Seq Op'!C:H,2,FALSE))) -> 0 | D117: =IF($L$1=0,0,IF(ISERROR(VLOOKUP($U$11&"-"&B117,'BD Seq Op'!C:H,5,FALSE)),0,VLOOKUP($U$11&"-"&B117,'BD Seq Op'!C:H,5,FALSE))) -> 0 | AE117: FALSE
A118: Não | B118: 110 | C118: =IF($L$1=0,0,IF(ISERROR(VLOOKUP($U$11&"-"&B118,'BD Seq Op'!C:H,2,FALSE)),0,VLOOKUP($U$11&"-"&B118,'BD Seq Op'!C:H,2,FALSE))) -> 0 | D118: =IF($L$1=0,0,IF(ISERROR(VLOOKUP($U$11&"-"&B118,'BD Seq Op'!C:H,5,FALSE)),0,VLOOKUP($U$11&"-"&B118,'BD Seq Op'!C:H,5,FALSE))) -> 0 | AE118: FALSE
A119: Não | B119: 111 | C119: =IF($L$1=0,0,IF(ISERROR(VLOOKUP($U$11&"-"&B119,'BD Seq Op'!C:H,2,FALSE)),0,VLOOKUP($U$11&"-"&B119,'BD Seq Op'!C:H,2,FALSE))) -> 0 | D119: =IF($L$1=0,0,IF(ISERROR(VLOOKUP($U$11&"-"&B119,'BD Seq Op'!C:H,5,FALSE)),0,VLOOKUP($U$11&"-"&B119,'BD Seq Op'!C:H,5,FALSE))) -> 0 | AE119: FALSE
A120: Não | B120: 112 | C120: =IF($L$1=0,0,IF(ISERROR(VLOOKUP($U$11&"-"&B120,'BD Seq Op'!C:H,2,FALSE)),0,VLOOKUP($U$11&"-"&B120,'BD Seq Op'!C:H,2,FALSE))) -> 0 | D120: =IF($L$1=0,0,IF(ISERROR(VLOOKUP($U$11&"-"&B120,'BD Seq Op'!C:H,5,FALSE)),0,VLOOKUP($U$11&"-"&B120,'BD Seq Op'!C:H,5,FALSE))) -> 0 | AE120: FALSE
A121: Não | B121: 113 | C121: =IF($L$1=0,0,IF(ISERROR(VLOOKUP($U$11&"-"&B121,'BD Seq Op'!C:H,2,FALSE)),0,VLOOKUP($U$11&"-"&B121,'BD Seq Op'!C:H,2,FALSE))) -> 0 | D121: =IF($L$1=0,0,IF(ISERROR(VLOOKUP($U$11&"-"&B121,'BD Seq Op'!C:H,5,FALSE)),0,VLOOKUP($U$11&"-"&B121,'BD Seq Op'!C:H,5,FALSE))) -> 0 | AE121: FALSE
A122: Não | B122: 114 | C122: =IF($L$1=0,0,IF(ISERROR(VLOOKUP($U$11&"-"&B122,'BD Seq Op'!C:H,2,FALSE)),0,VLOOKUP($U$11&"-"&B122,'BD Seq Op'!C:H,2,FALSE))) -> 0 | D122: =IF($L$1=0,0,IF(ISERROR(VLOOKUP($U$11&"-"&B122,'BD Seq Op'!C:H,5,FALSE)),0,VLOOKUP($U$11&"-"&B122,'BD Seq Op'!C:H,5,FALSE))) -> 0 | AE122: FALSE
A123: Não | B123: 115 | C123: =IF($L$1=0,0,IF(ISERROR(VLOOKUP($U$11&"-"&B123,'BD Seq Op'!C:H,2,FALSE)),0,VLOOKUP($U$11&"-"&B123,'BD Seq Op'!C:H,2,FALSE))) -> 0 | D123: =IF($L$1=0,0,IF(ISERROR(VLOOKUP($U$11&"-"&B123,'BD Seq Op'!C:H,5,FALSE)),0,VLOOKUP($U$11&"-"&B123,'BD Seq Op'!C:H,5,FALSE))) -> 0 | AE123: FALSE
A124: Não | B124: 116 | C124: =IF($L$1=0,0,IF(ISERROR(VLOOKUP($U$11&"-"&B124,'BD Seq Op'!C:H,2,FALSE)),0,VLOOKUP($U$11&"-"&B124,'BD Seq Op'!C:H,2,FALSE))) -> 0 | D124: =IF($L$1=0,0,IF(ISERROR(VLOOKUP($U$11&"-"&B124,'BD Seq Op'!C:H,5,FALSE)),0,VLOOKUP($U$11&"-"&B124,'BD Seq Op'!C:H,5,FALSE))) -> 0 | AE124: FALSE
A125: Não | B125: 117 | C125: =IF($L$1=0,0,IF(ISERROR(VLOOKUP($U$11&"-"&B125,'BD Seq Op'!C:H,2,FALSE)),0,VLOOKUP($U$11&"-"&B125,'BD Seq Op'!C:H,2,FALSE))) -> 0 | D125: =IF($L$1=0,0,IF(ISERROR(VLOOKUP($U$11&"-"&B125,'BD Seq Op'!C:H,5,FALSE)),0,VLOOKUP($U$11&"-"&B125,'BD Seq Op'!C:H,5,FALSE))) -> 0 | AE125: FALSE
A126: Não | B126: 118 | C126: =IF($L$1=0,0,IF(ISERROR(VLOOKUP($U$11&"-"&B126,'BD Seq Op'!C:H,2,FALSE)),0,VLOOKUP($U$11&"-"&B126,'BD Seq Op'!C:H,2,FALSE))) -> 0 | D126: =IF($L$1=0,0,IF(ISERROR(VLOOKUP($U$11&"-"&B126,'BD Seq Op'!C:H,5,FALSE)),0,VLOOKUP($U$11&"-"&B126,'BD Seq Op'!C:H,5,FALSE))) -> 0 | AE126: FALSE
A127: Não | B127: 119 | C127: =IF($L$1=0,0,IF(ISERROR(VLOOKUP($U$11&"-"&B127,'BD Seq Op'!C:H,2,FALSE)),0,VLOOKUP($U$11&"-"&B127,'BD Seq Op'!C:H,2,FALSE))) -> 0 | D127: =IF($L$1=0,0,IF(ISERROR(VLOOKUP($U$11&"-"&B127,'BD Seq Op'!C:H,5,FALSE)),0,VLOOKUP($U$11&"-"&B127,'BD Seq Op'!C:H,5,FALSE))) -> 0 | AE127: FALSE
A128: Não | B128: 120 | C128: =IF($L$1=0,0,IF(ISERROR(VLOOKUP($U$11&"-"&B128,'BD Seq Op'!C:H,2,FALSE)),0,VLOOKUP($U$11&"-"&B128,'BD Seq Op'!C:H,2,FALSE))) -> 0 | D128: =IF($L$1=0,0,IF(ISERROR(VLOOKUP($U$11&"-"&B128,'BD Seq Op'!C:H,5,FALSE)),0,VLOOKUP($U$11&"-"&B128,'BD Seq Op'!C:H,5,FALSE))) -> 0 | AE128: FALSE
A129: Sim | E129: Tempo total => | F129: =SUBTOTAL(9,I9:I128) -> 6720

Sheet Cliente
A1: =F1 -> Cliente | B1: =CONCATENATE("Observações ",F1," nas OPs") -> Observações Cliente nas OPs | F1: Cliente
A2: Magazine de Confecções Ltda. | B2: **** CLIENTE ESPECIAL **** Utilizar etiquetas de composição e bordada enviadas pelo Cliente.
A3: Maria & Maria | B3: Utilizar etiquetas do Cliente. Colocar TAGs do Cliente nas peças quando embaladas.
A4: Pepe | B4: **** CLIENTE ESPECIAL **** Utilizar etiquetas de composição e bordada enviadas pelo Cliente. Colocar TAGs do Cliente nas peças quando forem embaladas.

Sheet OP
A1: Nº OP : | P1: =IF(B1=0,"não",IF(ISERROR(VLOOKUP(B1,'BD da OP'!A:A,1,FALSE)),"não",VLOOKUP(B1,'BD da OP'!A:A,1,FALSE))) -> não
A2: Data Emissão : | B2: =TODAY() -> 2016-09-16 | P2: =IF(B1=P1,"OP já cadastrada, se necessário poderá utilizar vírgula para diferenciar a mesma OP. Exemplo: OP 1234,1 / 1234,2 .....","") -> 
A3: Referência : | C3: =IF(P1<>"não","",IF(B3=0,"",VLOOKUP(B3,Ref!A:B,2,FALSE))) ->  | P3: =IF(B1=0,"- - - - - -",IF(B2=0,"- - - - - -",IF(B3=0,"- - - - - -","Cadastrar"))) -> - - - - - -
A4: Cores : | P4: =Cliente!F1 -> Cliente
A5: Tamanhos :
A6: Qtde de Peças :
A7: =CONCATENATE(Cliente!F1," :") -> Cliente :
A8: Previsão Entrega : | I8: Observações que costumam utilizar, para facilitar nas novas OPs. (opcional)
A9: Observações para esta OP: | I9: *** CLIENTE ESPECIAL *** *** Verificar instruções das etiquetas conforme ficha técnica ***
A11: =CONCATENATE("Observações do cadastro ",Cliente!F1) -> Observações do cadastro Cliente | B11: =IF(B7=0,"",IF(ISERROR(VLOOKUP(B7,Cliente!A:B,2,FALSE)),"",VLOOKUP(B7,Cliente!A:B,2,FALSE))) ->  | I11: Utilizar etiquetas do Cliente. Colocar TAGs do Cliente nas peças quando embaladas.
I13: Observação: 3ª opção Linha 2 Linha3
A21: =B1 -> 0 | C21: =B2 -> 2016-09-16 | D21: =B3 -> 0 | E21: =C3 ->  | F21: =B4 -> 0 | G21: =C4 -> 0 | H21: =D4 -> 0 | I21: 0 | J21: 0 | K21: 0 | L21: 0 | M21: 0 | N21: 0 | O21: 0 | P21: =B5 -> 0 | Q21: =C5 -> 0 | R21: 0 | S21: 0 | T21: 0 | U21: 0 | V21: 0 | W21: 0 | X21: 0 | Y21: 0 | Z21: =B6 -> 0 | AA21: =B7 -> 0 | AB21: =B8 -> 00:00:00 | AC21: =B9 -> 0

Sheet Consulta OP
A1: Nº OP : | B1: =IF($N$1=0,"",OFFSET('BD da OP'!A1,$N$1,0)) -> 0.2 | N1: 2
A2: Data Emissão : | B2: =IF($N$1=0,"",OFFSET('BD da OP'!C1,$N$1,0)) -> 2016-08-28
A3: Referência : | B3: =IF($N$1=0,"",OFFSET('BD da OP'!D1,$N$1,0)) -> 10000 | C3: =IF($N$1=0,"",OFFSET('BD da OP'!E1,$N$1,0)) -> Camiseta básica lisa
A4: Cores : | B4: =IF($N$1=0,"",OFFSET('BD da OP'!F1,$N$1,0)) -> Branco | C4: =IF($N$1=0,"",OFFSET('BD da OP'!G1,$N$1,0)) -> Laranja | D4: =IF($N$1=0,"",OFFSET('BD da OP'!H1,$N$1,0)) -> Marinho | E4: =IF($N$1=0,"",OFFSET('BD da OP'!I1,$N$1,0)) -> 0 | F4: =IF($N$1=0,"",OFFSET('BD da OP'!J1,$N$1,0)) -> 0 | G4: =IF($N$1=0,"",OFFSET('BD da OP'!K1,$N$1,0)) -> 0 | H4: =IF($N$1=0,"",OFFSET('BD da OP'!L1,$N$1,0)) -> 0 | I4: =IF($N$1=0,"",OFFSET('BD da OP'!M1,$N$1,0)) -> 0 | J4: =IF($N$1=0,"",OFFSET('BD da OP'!N1,$N$1,0)) -> 0 | K4: =IF($N$1=0,"",OFFSET('BD da OP'!O1,$N$1,0)) -> 0
A5: Tamanhos : | B5: =IF($N$1=0,"",OFFSET('BD da OP'!P1,$N$1,0)) -> PP | C5: =IF($N$1=0,"",OFFSET('BD da OP'!Q1,$N$1,0)) -> P | D5: =IF($N$1=0,"",OFFSET('BD da OP'!R1,$N$1,0)) -> M | E5: =IF($N$1=0,"",OFFSET('BD da OP'!S1,$N$1,0)) -> G | F5: =IF($N$1=0,"",OFFSET('BD da OP'!T1,$N$1,0)) -> 0 | G5: =IF($N$1=0,"",OFFSET('BD da OP'!U1,$N$1,0)) -> 0 | H5: =IF($N$1=0,"",OFFSET('BD da OP'!V1,$N$1,0)) -> 0 | I5: =IF($N$1=0,"",OFFSET('BD da OP'!W1,$N$1,0)) -> 0 | J5: =IF($N$1=0,"",OFFSET('BD da OP'!X1,$N$1,0)) -> 0 | K5: =IF($N$1=0,"",OFFSET('BD da OP'!Y1,$N$1,0)) -> 0
A6: Qtde de Peças : | B6: =IF($N$1=0,"",OFFSET('BD da OP'!Z1,$N$1,0)) -> 1500
A7: Cliente : | B7: =IF($N$1=0,"",OFFSET('BD da OP'!AA1,$N$1,0)) -> Pepe
A8: Previsão Entrega : | B8: =IF($N$1=0,"",OFFSET('BD da OP'!AB1,$N$1,0)) -> 2016-09-25
A9: Observações para esta OP: | B9: =IF($N$1=0,"",IF(ISERROR(VLOOKUP(B1,'BD da OP'!A:AC,29,FALSE)),"",VLOOKUP(B1,'BD da OP'!A:AC,29,FALSE))) -> **** CLIENTE ESPECIAL **** Utilizar etiquetas de composição e bordada enviadas pelo Cliente. Colocar TAGs do Cliente nas peças quando forem embaladas.

Sheet BD da OP
A1: Nº OP. . | B1: Concatenar | C1: Data Emissão . | D1: Ref. | E1: Descrição da Ref. | F1: Cor 1 | G1: Cor 2 | H1: Cor 3 | I1: Cor 4 | J1: Cor 5 | K1: Cor 6 | L1: Cor 7 | M1: Cor 8 | N1: Cor 9 | O1: Cor 10 | P1: Tam 1 | Q1: Tam 2 | R1: Tam 3 | S1: Tam 4 | T1: Tam 5 | U1: Tam 6 | V1: Tam 7 | W1: Tam 8 | X1: Tam 9 | Y1: Tam 10 | Z1: Qtde Peças | AA1: Cliente | AB1: Previsão Entrega | AC1: Observações
A2: 0.1 | B2: =CONCATENATE("Nº OP: ",A2," - Ref: ",D2) -> Nº OP: 0,1 - Ref: 10150 | C2: 2016-09-05 | D2: 10150 | E2: Camiseta básica lisa c/ bordado no peito | F2: Branco | G2: Laranja | H2: Marinho | I2: 0 | J2: 0 | K2: 0 | L2: 0 | M2: 0 | N2: 0 | O2: 0 | P2: PP | Q2: P | R2: M | S2: G | T2: 0 | U2: 0 | V2: 0 | W2: 0 | X2: 0 | Y2: 0 | Z2: 800 | AA2: Magazine de Confecções Ltda. | AB2: 2016-10-05 | AC2: *** CLIENTE ESPECIAL *** *** Verificar instruções das etiquetas conforme ficha técnica ***
A3: 0.2 | B3: =CONCATENATE("Nº OP: ",A3," - Ref: ",D3) -> Nº OP: 0,2 - Ref: 10000 | C3: 2016-08-28 | D3: 10000 | E3: Camiseta básica lisa | F3: Branco | G3: Laranja | H3: Marinho | I3: 0 | J3: 0 | K3: 0 | L3: 0 | M3: 0 | N3: 0 | O3: 0 | P3: PP | Q3: P | R3: M | S3: G | T3: 0 | U3: 0 | V3: 0 | W3: 0 | X3: 0 | Y3: 0 | Z3: 1500 | AA3: Pepe | AB3: 2016-09-25 | AC3: **** CLIENTE ESPECIAL **** Utilizar etiquetas de composição e bordada enviadas pelo Cliente. Colocar TAGs do Cliente nas peças quando forem embaladas.

Sheet Operações
A1: Descrição das Operações | B1: Tipo de Máquina | C1: Tipo de Aparelho | D1: Tempo Padrão
A2: Bainha 2 ag. barra
A3: Bainha 2 ag. mangas
A4: Colocar tag na peça
A5: Dobrar peça e embalar
A6: Fechar laterais c/ etiq
A7: Fechar ombros
A8: Fechar ombros e laterais
A9: Fechar ombros e laterais c/ etiq
A10: Fechar ribana decote e pregar
A11: Fechar/pregar mangas tubular
A12: Fechar/pregar ribana decote
A13: Limpar fios
A14: Marcar meio decote
A15: Pregar etiqueta decote
A16: Pregar mangas fechada
A17: Rematar mangas
A18: Revisar e limpar fios
A19: Separar mangas c/ tesoura

Sheet Ref
A1: Ref. | B1: Descrição da Referência
A2: 10000 | B2: Camiseta básica lisa
A3: 10150 | B3: Camiseta com estampa na frente

Sheet Cores
A1: Cores
A2: Amarelo
A3: Azul
A4: Bigode
A5: Branco
A6: Cinza
A7: Destroyed
A8: Laranja
A9: Marinho
A10: Preto
A11: Resinado
A12: Verde
A13: Vermelho

Sheet Tamanhos
A1: Tamanhos
A2: 01
A3: 02
A4: 03
A5: 10
A6: 12
A7: 14
A8: 16
A9: 2
A10: 34
A11: 36
A12: 38
A13: 4
A14: 40
A15: 42
A16: 44
A17: 6
A18: 8
A19: G
A20: GG
A21: M
A22: P
